Workbook

Sheet CADASTRO
A1: Estoque Atual | B1: Mensagem | C1: CÓD | D1: Descrição | E1: Medida | F1: Setor | G1: Est Mínimo | H1: Custo1 R$ | I1: Custo2 R$ | J1: Custo3 R$ | K1: Custo4 R$ | L1: Custo5 R$ | M1: Custo6 R$ | N1: Custo7 R$ | O1: Custo8 R$ | P1: Custo9 R$ | Q1: Custo10 R$ | R1: Média
A2: =IFERROR(VLOOKUP(C2,PRODUTOS!A3:P251,16,FALSE),0) -> 0 | B2: =IFERROR(IF(A2<G2,"PRODUZIR!"&" "&A2-G2&" "&"A MENOR","EST NORMAL"),"") -> EST NORMAL | C2: 2 | D2: FORMA DE EMPADA | E2: UND | F2: PADARIA TRADICIONAL | H2: 5 | R2: =IFERROR(AVERAGE(H2:Q2),"") -> 5
A3: =IFERROR(VLOOKUP(C3,PRODUTOS!A4:P252,16,FALSE),0) -> 0 | B3: EST NORMAL | C3: 3 | D3: ARO DE QUICHE | E3: UND | F3: PADARIA TRADICIONAL
A4: =IFERROR(VLOOKUP(C4,PRODUTOS!A5:P253,16,FALSE),0) -> 4 | B4: EST NORMAL | C4: 8 | D4: BAGUETE INTEGRAL (PCT C/ 45 UND = 3 KG) | F4: PADARIA TRADICIONAL
A5: =IFERROR(VLOOKUP(C5,PRODUTOS!A6:P254,16,FALSE),0) -> 0 | B5: EST NORMAL | C5: 9 | D5: BAILERINE | F5: CONFEITARIA DOCE
A6: =IFERROR(VLOOKUP(C6,PRODUTOS!A7:P255,16,FALSE),0) -> 1 | B6: EST NORMAL | C6: 11 | D6: BISCOITO ACEBOLADO | F6: PADARIA TRADICIONAL
A7: =IFERROR(VLOOKUP(C7,PRODUTOS!A8:P256,16,FALSE),0) -> 0 | B7: EST NORMAL | C7: 12 | D7: BISCOITO CASTANHA | F7: PADARIA TRADICIONAL
A8: =IFERROR(VLOOKUP(C8,PRODUTOS!A9:P257,16,FALSE),0) -> 6.57 | B8: EST NORMAL | C8: 13 | D8: BISCOITO CATUPIRI | F8: PADARIA TRADICIONAL
A9: =IFERROR(VLOOKUP(C9,PRODUTOS!A10:P258,16,FALSE),0) -> 1 | B9: EST NORMAL | C9: 14 | D9: BISCOITO COCO | F9: PADARIA TRADICIONAL
A10: =IFERROR(VLOOKUP(C10,PRODUTOS!A11:P259,16,FALSE),0) -> 0 | B10: EST NORMAL | C10: 15 | D10: BISCOITO DE BOLO | F10: PADARIA TRADICIONAL
A11: =IFERROR(VLOOKUP(C11,PRODUTOS!A12:P260,16,FALSE),0) -> 0 | B11: EST NORMAL | C11: 16 | D11: BISCOITO MAISENA | F11: PADARIA TRADICIONAL
A12: =IFERROR(VLOOKUP(C12,PRODUTOS!A13:P261,16,FALSE),0) -> 11 | B12: EST NORMAL | C12: 17 | D12: BISCOITO MONTEIRO LOPES | F12: PADARIA TRADICIONAL
A13: =IFERROR(VLOOKUP(C13,PRODUTOS!A14:P262,16,FALSE),0) -> 0 | B13: EST NORMAL | C13: 18 | D13: BISCOITO OLHO DE BOI | F13: PADARIA TRADICIONAL
A14: =IFERROR(VLOOKUP(C14,PRODUTOS!A15:P263,16,FALSE),0) -> 5 | B14: EST NORMAL | C14: 19 | D14: BISCOITO PAI D'ÉGUA | F14: PADARIA TRADICIONAL
A15: =IFERROR(VLOOKUP(C15,PRODUTOS!A16:P264,16,FALSE),0) -> 0 | B15: EST NORMAL | C15: 20 | D15: BOLO CASEIRO | F15: CONFEITARIA DOCE
A16: =IFERROR(VLOOKUP(C16,PRODUTOS!A17:P265,16,FALSE),0) -> 0 | B16: EST NORMAL | C16: 21 | D16: BOLO MILHO CREMOSO G50 | F16: CONFEITARIA DOCE
A17: =IFERROR(VLOOKUP(C17,PRODUTOS!A18:P266,16,FALSE),0) -> 173 | B17: EST NORMAL | C17: 26 | D17: CARRET | F17: FOLHATERIA
A18: =IFERROR(VLOOKUP(C18,PRODUTOS!A19:P267,16,FALSE),0) -> 0 | B18: EST NORMAL | C18: 27 | D18: CASADINHO G50 | F18: CONFEITARIA DOCE
A19: =IFERROR(VLOOKUP(C19,PRODUTOS!A20:P268,16,FALSE),0) -> 3 | B19: EST NORMAL | C19: 28 | D19: CATARINA DE BACALHAU | F19: FOLHATERIA
A20: =IFERROR(VLOOKUP(C20,PRODUTOS!A21:P269,16,FALSE),0) -> 2 | B20: EST NORMAL | C20: 29 | D20: CATARINA DE FRANGO | F20: FOLHATERIA
A21: =IFERROR(VLOOKUP(C21,PRODUTOS!A22:P270,16,FALSE),0) -> 0 | B21: EST NORMAL | C21: 31 | D21: CHOCOMOUSSE G50 | F21: CONFEITARIA DOCE
A22: =IFERROR(VLOOKUP(C22,PRODUTOS!A23:P271,16,FALSE),0) -> 0 | B22: EST NORMAL | C22: 32 | D22: CIABATTA P/ SANDUÍCHES | F22: PADARIA RÚSTICA
A23: =IFERROR(VLOOKUP(C23,PRODUTOS!A24:P272,16,FALSE),0) -> 0 | B23: EST NORMAL | C23: 34 | D23: PÃO BENGALA 18H | F23: PADARIA TRADICIONAL
A24: =IFERROR(VLOOKUP(C24,PRODUTOS!A25:P273,16,FALSE),0) -> 22 | B24: EST NORMAL | C24: 39 | D24: CROISSANT AMÊNDOAS | F24: PADARIA TRADICIONAL
A25: =IFERROR(VLOOKUP(C25,PRODUTOS!A26:P274,16,FALSE),0) -> 0 | B25: EST NORMAL | C25: 40 | D25: PÃO BAGUETE 05H | F25: PADARIA TRADICIONAL
A26: =IFERROR(VLOOKUP(C26,PRODUTOS!A27:P275,16,FALSE),0) -> 190 | B26: EST NORMAL | C26: 41 | D26: CROISSANT CONGELADO | F26: PADARIA TRADICIONAL
A27: =IFERROR(VLOOKUP(C27,PRODUTOS!A28:P276,16,FALSE),0) -> 0 | B27: EST NORMAL | C27: 42 | D27: CROQUE MONSIER | F27: QUITUTERIA
A28: =IFERROR(VLOOKUP(C28,PRODUTOS!A29:P277,16,FALSE),0) -> 0 | B28: EST NORMAL | C28: 43 | D28: CUPCAKE LEITE | F28: CONFEITARIA DOCE
A29: =IFERROR(VLOOKUP(C29,PRODUTOS!A30:P278,16,FALSE),0) -> 17 | B29: EST NORMAL | C29: 44 | D29: DANISH CAPRESE | F29: FOLHATERIA
A30: =IFERROR(VLOOKUP(C30,PRODUTOS!A31:P279,16,FALSE),0) -> 0 | B30: EST NORMAL | C30: 45 | D30: DISCO MINI CAKE CHOCOLATE | F30: CONFEITARIA DOCE
A31: =IFERROR(VLOOKUP(C31,PRODUTOS!A32:P280,16,FALSE),0) -> 0 | B31: EST NORMAL | C31: 46 | D31: DISCOS DE RED VELVET | F31: CONFEITARIA DOCE
A32: =IFERROR(VLOOKUP(C32,PRODUTOS!A33:P281,16,FALSE),0) -> 0 | B32: EST NORMAL | C32: 47 | D32: DISCOS MINI CAKE DE LEITE | F32: CONFEITARIA DOCE
A33: =IFERROR(VLOOKUP(C33,PRODUTOS!A34:P282,16,FALSE),0) -> 0 | B33: EST NORMAL | C33: 48 | D33: DISCOS SUPREMO | F33: CONFEITARIA DOCE
A34: =IFERROR(VLOOKUP(C34,PRODUTOS!A35:P283,16,FALSE),0) -> 72 | B34: EST NORMAL | C34: 49 | D34: DONNUTS | F34: PADARIA TRADICIONAL
A35: =IFERROR(VLOOKUP(C35,PRODUTOS!A36:P284,16,FALSE),0) -> 61 | B35: EST NORMAL | C35: 50 | D35: EMPADA BACALHAU | F35: PADARIA TRADICIONAL
A36: =IFERROR(VLOOKUP(C36,PRODUTOS!A37:P285,16,FALSE),0) -> 144 | B36: EST NORMAL | C36: 51 | D36: EMPADA FRANGO | F36: PADARIA TRADICIONAL
A37: =IFERROR(VLOOKUP(C37,PRODUTOS!A38:P286,16,FALSE),0) -> 128 | B37: EST NORMAL | C37: 52 | D37: EMPADA FRANGO/PALMITO | F37: PADARIA TRADICIONAL
A38: =IFERROR(VLOOKUP(C38,PRODUTOS!A39:P287,16,FALSE),0) -> 55 | B38: EST NORMAL | C38: 53 | D38: EMPADA PALMITO | F38: PADARIA TRADICIONAL
A39: =IFERROR(VLOOKUP(C39,PRODUTOS!A40:P288,16,FALSE),0) -> 0 | B39: EST NORMAL | C39: 54 | D39: EMPADÃO | F39: PADARIA TRADICIONAL
A40: =IFERROR(VLOOKUP(C40,PRODUTOS!A41:P289,16,FALSE),0) -> 12 | B40: EST NORMAL | C40: 60 | D40: FOCACCIA RUSTICA CALABRESA (MASSA) | F40: PADARIA RÚSTICA
A41: =IFERROR(VLOOKUP(C41,PRODUTOS!A42:P290,16,FALSE),0) -> 6 | B41: EST NORMAL | C41: 61 | D41: FOCACCIA TABULEIRO | F41: PADARIA RÚSTICA
A42: =IFERROR(VLOOKUP(C42,PRODUTOS!A43:P291,16,FALSE),0) -> 1 | B42: EST NORMAL | C42: 66 | D42: LASANHA FOLHADA MISTA | F42: FOLHATERIA
A43: =IFERROR(VLOOKUP(C43,PRODUTOS!A44:P292,16,FALSE),0) -> 0 | B43: EST NORMAL | C43: 70 | D43: MASSA DOCINHO BRIGADEIRO | F43: CONFEITARIA DOCE
A44: =IFERROR(VLOOKUP(C44,PRODUTOS!A45:P293,16,FALSE),0) -> 4 | B44: EST NORMAL | C44: 71 | D44: MASSA MINI PIZZA | F44: PADARIA TRADICIONAL
A45: =IFERROR(VLOOKUP(C45,PRODUTOS!A46:P294,16,FALSE),0) -> 0 | B45: EST NORMAL | C45: 72 | D45: MASSAS TARTALETE | F45: CONFEITARIA DOCE
A46: =IFERROR(VLOOKUP(C46,PRODUTOS!A47:P295,16,FALSE),0) -> 0 | B46: EST NORMAL | C46: 73 | D46: MIL FOLHAS | F46: FOLHATERIA
A47: =IFERROR(VLOOKUP(C47,PRODUTOS!A48:P296,16,FALSE),0) -> 0 | B47: EST NORMAL | C47: 74 | D47: MINI BOLO DE CENOURA | F47: CONFEITARIA DOCE
A48: =IFERROR(VLOOKUP(C48,PRODUTOS!A49:P297,16,FALSE),0) -> 0 | B48: EST NORMAL | C48: 75 | D48: MINI CAKE DE CHOCOLATE | F48: CONFEITARIA DOCE
A49: =IFERROR(VLOOKUP(C49,PRODUTOS!A50:P298,16,FALSE),0) -> 0 | B49: EST NORMAL | C49: 76 | D49: MINI CAKE DE LEITE | F49: CONFEITARIA DOCE
A50: =IFERROR(VLOOKUP(C50,PRODUTOS!A51:P299,16,FALSE),0) -> 12.7 | B50: EST NORMAL | C50: 77 | D50: MINI CROISSANT | F50: FOLHATERIA
A51: =IFERROR(VLOOKUP(C51,PRODUTOS!A52:P300,16,FALSE),0) -> 3.394 | B51: EST NORMAL | C51: 78 | D51: MINI FOLHADO BACALHAU | F51: FOLHATERIA
A52: =IFERROR(VLOOKUP(C52,PRODUTOS!A53:P301,16,FALSE),0) -> -3.422 | B52: PRODUZIR! -3,422 A MENOR | C52: 79 | D52: MINI FOLHADO CALABRESA | F52: FOLHATERIA
A53: =IFERROR(VLOOKUP(C53,PRODUTOS!A54:P302,16,FALSE),0) -> 3.58 | B53: EST NORMAL | C53: 80 | D53: MINI FOLHADO CUPUAÇU | F53: FOLHATERIA
A54: =IFERROR(VLOOKUP(C54,PRODUTOS!A55:P303,16,FALSE),0) -> 0.4 | B54: EST NORMAL | C54: 81 | D54: MINI FOLHADO DE QUEIJO | F54: FOLHATERIA
A55: =IFERROR(VLOOKUP(C55,PRODUTOS!A56:P304,16,FALSE),0) -> -3.9 | B55: PRODUZIR! -3,9 A MENOR | C55: 82 | D55: MINI FOLHADO FRANGO | F55: FOLHATERIA
A56: =IFERROR(VLOOKUP(C56,PRODUTOS!A57:P305,16,FALSE),0) -> 12.66 | B56: EST NORMAL | C56: 83 | D56: MINI FOLHADO GOIABADA | F56: FOLHATERIA
A57: =IFERROR(VLOOKUP(C57,PRODUTOS!A58:P306,16,FALSE),0) -> -3.32 | B57: PRODUZIR! -3,32 A MENOR | C57: 84 | D57: MINI FOLHADO MISTO | F57: FOLHATERIA
A58: =IFERROR(VLOOKUP(C58,PRODUTOS!A59:P307,16,FALSE),0) -> 0 | B58: EST NORMAL | C58: 85 | D58: MINI LASANHA FOLHADA | F58: FOLHATERIA
A59: =IFERROR(VLOOKUP(C59,PRODUTOS!A60:P308,16,FALSE),0) -> 0 | B59: EST NORMAL | C59: 86 | D59: MINI LASANHA MISTA | F59: FOLHATERIA
A60: =IFERROR(VLOOKUP(C60,PRODUTOS!A61:P309,16,FALSE),0) -> 0 | B60: EST NORMAL | C60: 87 | D60: MINI PAIN AU CHOCOLAT | F60: FOLHATERIA
A61: =IFERROR(VLOOKUP(C61,PRODUTOS!A62:P310,16,FALSE),0) -> 390 | B61: EST NORMAL | C61: 88 | D61: MINI PÃO BATATA (ERVAS,PARMESÃO) | F61: PADARIA TRADICIONAL
A62: =IFERROR(VLOOKUP(C62,PRODUTOS!A63:P311,16,FALSE),0) -> 286 | B62: EST NORMAL | C62: 89 | D62: MINI PÃO BATATA HAMBÚRGUER | F62: PADARIA TRADICIONAL
A63: =IFERROR(VLOOKUP(C63,PRODUTOS!A64:P312,16,FALSE),0) -> 0 | B63: EST NORMAL | C63: 90 | D63: MINI PÃO BRIOCHE (C/ 6 UNIDADES = 740G) | F63: PADARIA TRADICIONAL
A64: =IFERROR(VLOOKUP(C64,PRODUTOS!A65:P313,16,FALSE),0) -> 4 | B64: EST NORMAL | C64: 91 | D64: MINI PÃO BRIOCHE (PCT C/ 24UND) | F64: PADARIA TRADICIONAL
A65: =IFERROR(VLOOKUP(C65,PRODUTOS!A66:P314,16,FALSE),0) -> 8 | B65: EST NORMAL | C65: 92 | D65: MINI PÃO DELÍCIA (PCT C/ 24UND) | F65: PADARIA TRADICIONAL
A66: =IFERROR(VLOOKUP(C66,PRODUTOS!A67:P315,16,FALSE),0) -> -0.004 | B66: =IFERROR(IF(A66<G66,"PRODUZIR!"&" "&A66-G66&" "&"A MENOR","EST NORMAL"),"") -> PRODUZIR! -0,00400000000000134 A MENOR | C66: 93 | D66: MINI PASTEL FOLHADO | F66: FOLHATERIA | R66: =IFERROR(AVERAGE(H66:Q66),"") -> 
A67: =IFERROR(VLOOKUP(C67,PRODUTOS!A68:P316,16,FALSE),0) -> 10 | B67: EST NORMAL | C67: 94 | D67: MINI TRANÇA BACALHAU | F67: FOLHATERIA
A68: =IFERROR(VLOOKUP(C68,PRODUTOS!A69:P317,16,FALSE),0) -> 2 | B68: EST NORMAL | C68: 95 | D68: MINI TRANÇA CALABRESA | F68: FOLHATERIA
A69: =IFERROR(VLOOKUP(C69,PRODUTOS!A70:P318,16,FALSE),0) -> 0 | B69: EST NORMAL | C69: 96 | D69: MINI TRANÇA FILÉ | F69: FOLHATERIA
A70: =IFERROR(VLOOKUP(C70,PRODUTOS!A71:P319,16,FALSE),0) -> 10 | B70: EST NORMAL | C70: 97 | D70: MINI TRANÇA FRANGO | F70: FOLHATERIA
A71: =IFERROR(VLOOKUP(C71,PRODUTOS!A72:P320,16,FALSE),0) -> 2 | B71: EST NORMAL | C71: 98 | D71: MINI TRANÇA MISTA | F71: FOLHATERIA
A72: =IFERROR(VLOOKUP(C72,PRODUTOS!A73:P321,16,FALSE),0) -> 0 | B72: EST NORMAL | C72: 99 | D72: MINI TRANÇA MORTADELA DEFUMADO | F72: FOLHATERIA
A73: =IFERROR(VLOOKUP(C73,PRODUTOS!A74:P322,16,FALSE),0) -> 0 | B73: EST NORMAL | C73: 100 | D73: MINI TRANÇA PATO | F73: FOLHATERIA
A74: =IFERROR(VLOOKUP(C74,PRODUTOS!A75:P323,16,FALSE),0) -> 0 | B74: EST NORMAL | C74: 101 | D74: MINI TRANÇA PEITO DEFUMADO | F74: FOLHATERIA
A75: =IFERROR(VLOOKUP(C75,PRODUTOS!A76:P324,16,FALSE),0) -> 0 | B75: EST NORMAL | C75: 102 | D75: MINI TRANÇA PERNIL | F75: FOLHATERIA
A76: =IFERROR(VLOOKUP(C76,PRODUTOS!A77:P325,16,FALSE),0) -> 0 | B76: EST NORMAL | C76: 103 | D76: MINI TRANÇA PERU/JAMBU | F76: FOLHATERIA
A77: =IFERROR(VLOOKUP(C77,PRODUTOS!A78:P326,16,FALSE),0) -> 21 | B77: EST NORMAL | C77: 104 | D77: MINI TRANÇA SALAME | F77: FOLHATERIA
A78: =IFERROR(VLOOKUP(C78,PRODUTOS!A79:P327,16,FALSE),0) -> 0 | B78: EST NORMAL | C78: 106 | D78: NEGÃO G50 | F78: CONFEITARIA DOCE
A79: =IFERROR(VLOOKUP(C79,PRODUTOS!A80:P328,16,FALSE),0) -> 11.19 | B79: EST NORMAL | C79: 107 | D79: ORELHINHA CANELA | F79: FOLHATERIA
A80: =IFERROR(VLOOKUP(C80,PRODUTOS!A81:P329,16,FALSE),0) -> 8.378 | B80: EST NORMAL | C80: 108 | D80: ORELINHA TRADICIONAL | F80: FOLHATERIA
A81: =IFERROR(VLOOKUP(C81,PRODUTOS!A82:P330,16,FALSE),0) -> 0 | B81: EST NORMAL | C81: 109 | D81: PAIN AU CHOCOLAT | F81: FOLHATERIA
A82: =IFERROR(VLOOKUP(C82,PRODUTOS!A83:P331,16,FALSE),0) -> 4.14 | B82: EST NORMAL | C82: 110 | D82: PALITO CANELA | F82: FOLHATERIA
A83: =IFERROR(VLOOKUP(C83,PRODUTOS!A84:P332,16,FALSE),0) -> 0 | B83: EST NORMAL | C83: 111 | D83: PALITO QUEIJO | F83: FOLHATERIA
A84: =IFERROR(VLOOKUP(C84,PRODUTOS!A85:P333,16,FALSE),0) -> 130 | B84: EST NORMAL | C84: 112 | D84: PALMIER | F84: FOLHATERIA
A85: =IFERROR(VLOOKUP(C85,PRODUTOS!A86:P334,16,FALSE),0) -> 0 | B85: EST NORMAL | C85: 113 | D85: PÃO AUSTRALIANO BAGUETE | F85: PADARIA TRADICIONAL
A86: =IFERROR(VLOOKUP(C86,PRODUTOS!A87:P335,16,FALSE),0) -> 0 | B86: EST NORMAL | C86: 114 | D86: PÃO AUSTRALIANO HAMBÚRGUER | F86: PADARIA TRADICIONAL
A87: =IFERROR(VLOOKUP(C87,PRODUTOS!A88:P336,16,FALSE),0) -> 0 | B87: EST NORMAL | C87: 115 | D87: PÃO AUSTRALIANO RÚSTICO | F87: PADARIA RÚSTICA
A88: =IFERROR(VLOOKUP(C88,PRODUTOS!A89:P337,16,FALSE),0) -> 0 | B88: EST NORMAL | C88: 116 | D88: PÃO BAGUETE 10 HORAS | F88: PADARIA TRADICIONAL
A89: =IFERROR(VLOOKUP(C89,PRODUTOS!A90:P338,16,FALSE),0) -> 0 | B89: EST NORMAL | C89: 117 | D89: PÃO BAGUETE DE TRADIÇÃO | F89: PADARIA RÚSTICA
A90: =IFERROR(VLOOKUP(C90,PRODUTOS!A91:P339,16,FALSE),0) -> 0 | B90: EST NORMAL | C90: 118 | D90: PÃO BAGUETE FRANCESA | F90: PADARIA RÚSTICA
A91: =IFERROR(VLOOKUP(C91,PRODUTOS!A92:P340,16,FALSE),0) -> 11 | B91: EST NORMAL | C91: 119 | D91: PÃO BAGUETE LYON | F91: PADARIA RÚSTICA
A92: =IFERROR(VLOOKUP(C92,PRODUTOS!A93:P341,16,FALSE),0) -> 0 | B92: EST NORMAL | C92: 120 | D92: PÃO BAGUETE PORTUGUESA | F92: PADARIA TRADICIONAL
A93: =IFERROR(VLOOKUP(C93,PRODUTOS!A94:P342,16,FALSE),0) -> 92 | B93: EST NORMAL | C93: 121 | D93: PÃO BAIÃO | F93: PADARIA TRADICIONAL
A94: =IFERROR(VLOOKUP(C94,PRODUTOS!A95:P343,16,FALSE),0) -> 3 | B94: EST NORMAL | C94: 122 | D94: PÃO BENGALA 10 HORAS | F94: PADARIA TRADICIONAL
A95: =IFERROR(VLOOKUP(C95,PRODUTOS!A96:P344,16,FALSE),0) -> 29 | B95: EST NORMAL | C95: 123 | D95: PÃO BRIOCHE DE FORMA 1000 | F95: PADARIA TRADICIONAL
A96: =IFERROR(VLOOKUP(C96,PRODUTOS!A97:P345,16,FALSE),0) -> 10 | B96: EST NORMAL | C96: 124 | D96: PÃO BRIOCHE HAMBÚRGUER | F96: PADARIA TRADICIONAL
A97: =IFERROR(VLOOKUP(C97,PRODUTOS!A98:P346,16,FALSE),0) -> 0 | B97: EST NORMAL | C97: 125 | D97: PÃO C/ CEBOLA E ERVAS DE PROVENCE | F97: PADARIA RÚSTICA
A98: =IFERROR(VLOOKUP(C98,PRODUTOS!A99:P347,16,FALSE),0) -> 81 | B98: EST NORMAL | C98: 126 | D98: PÃO CAMPONÊS | F98: PADARIA RÚSTICA
A99: =IFERROR(VLOOKUP(C99,PRODUTOS!A100:P348,16,FALSE),0) -> 0 | B99: EST NORMAL | C99: 127 | D99: PÃO CIABATTA C/ AZEITONAS | F99: PADARIA RÚSTICA
A100: =IFERROR(VLOOKUP(C100,PRODUTOS!A101:P349,16,FALSE),0) -> 0 | B100: EST NORMAL | C100: 128 | D100: PÃO CIABATTA C/ CALABRESA | F100: PADARIA RÚSTICA
A101: =IFERROR(VLOOKUP(C101,PRODUTOS!A102:P350,16,FALSE),0) -> 0 | B101: EST NORMAL | C101: 129 | D101: PÃO CIABATTA C/ CEBOLA | F101: PADARIA RÚSTICA
A102: =IFERROR(VLOOKUP(C102,PRODUTOS!A103:P351,16,FALSE),0) -> 0 | B102: EST NORMAL | C102: 130 | D102: PÃO CIABATTA DE TRADIÇÃO | F102: PADARIA RÚSTICA
A103: =IFERROR(VLOOKUP(C103,PRODUTOS!A104:P352,16,FALSE),0) -> 13 | B103: EST NORMAL | C103: 131 | D103: PÃO CUCA DE BANANA | F103: PADARIA TRADICIONAL
A104: =IFERROR(VLOOKUP(C104,PRODUTOS!A105:P353,16,FALSE),0) -> 52 | B104: EST NORMAL | C104: 132 | D104: PÃO CUCA GOIABADA | F104: PADARIA TRADICIONAL
A105: =IFERROR(VLOOKUP(C105,PRODUTOS!A106:P354,16,FALSE),0) -> 0 | B105: EST NORMAL | C105: 133 | D105: PÃO CUCA PACOCA | F105: PADARIA TRADICIONAL
A106: =IFERROR(VLOOKUP(C106,PRODUTOS!A107:P355,16,FALSE),0) -> 0 | B106: EST NORMAL | C106: 134 | D106: PÃO DAMIEN MONTECER | F106: PADARIA RÚSTICA
A107: =IFERROR(VLOOKUP(C107,PRODUTOS!A108:P356,16,FALSE),0) -> 104 | B107: EST NORMAL | C107: 135 | D107: PÃO DE BATATA FILÃO | F107: PADARIA TRADICIONAL
A108: =IFERROR(VLOOKUP(C108,PRODUTOS!A109:P357,16,FALSE),0) -> 0 | B108: EST NORMAL | C108: 136 | D108: PÃO DE CACAU | F108: PADARIA RÚSTICA
A109: =IFERROR(VLOOKUP(C109,PRODUTOS!A110:P358,16,FALSE),0) -> 0 | B109: EST NORMAL | C109: 137 | D109: PÃO DE CERVEJA C/ GRÃOS TORRADOS | F109: PADARIA RÚSTICA
A110: =IFERROR(VLOOKUP(C110,PRODUTOS!A111:P359,16,FALSE),0) -> 0 | B110: EST NORMAL | C110: 138 | D110: PÃO DE FORMA 100% INTEGRAL | F110: PADARIA RÚSTICA
A111: =IFERROR(VLOOKUP(C111,PRODUTOS!A112:P360,16,FALSE),0) -> 0 | B111: EST NORMAL | C111: 139 | D111: PÃO DE LÓ (BRANCA) | F111: CONFEITARIA DOCE
A112: =IFERROR(VLOOKUP(C112,PRODUTOS!A113:P361,16,FALSE),0) -> 0 | B112: EST NORMAL | C112: 140 | D112: PÃO DE LÓ (CHOCOLATE) | F112: CONFEITARIA DOCE
A113: =IFERROR(VLOOKUP(C113,PRODUTOS!A114:P362,16,FALSE),0) -> 0 | B113: EST NORMAL | C113: 141 | D113: PÃO DE MANIÇOBA | F113: PADARIA RÚSTICA
A114: =IFERROR(VLOOKUP(C114,PRODUTOS!A115:P363,16,FALSE),0) -> 0 | B114: EST NORMAL | C114: 142 | D114: PÃO DE PATO | F114: PADARIA RÚSTICA
A115: =IFERROR(VLOOKUP(C115,PRODUTOS!A116:P364,16,FALSE),0) -> 0 | B115: EST NORMAL | C115: 143 | D115: PÃO DE PUPUNHA | F115: PADARIA RÚSTICA
A116: =IFERROR(VLOOKUP(C116,PRODUTOS!A117:P365,16,FALSE),0) -> 0 | B116: EST NORMAL | C116: 144 | D116: PÃO DE ROSAS | F116: FOLHATERIA
A117: =IFERROR(VLOOKUP(C117,PRODUTOS!A118:P366,16,FALSE),0) -> 0 | B117: EST NORMAL | C117: 145 | D117: PÃO DE VINHO / CALABRESA | F117: PADARIA RÚSTICA
A118: =IFERROR(VLOOKUP(C118,PRODUTOS!A119:P367,16,FALSE),0) -> 21 | B118: EST NORMAL | C118: 146 | D118: PÃO DOCE LIEVITO | F118: PADARIA TRADICIONAL
A119: =IFERROR(VLOOKUP(C119,PRODUTOS!A120:P368,16,FALSE),0) -> 0 | B119: EST NORMAL | C119: 147 | D119: PÃO FOCACCIA C/ AZEITONAS | F119: PADARIA RÚSTICA
A120: =IFERROR(VLOOKUP(C120,PRODUTOS!A121:P369,16,FALSE),0) -> 0 | B120: EST NORMAL | C120: 148 | D120: PÃO FOCACCIA C/ BACON | F120: PADARIA RÚSTICA
A121: =IFERROR(VLOOKUP(C121,PRODUTOS!A122:P370,16,FALSE),0) -> 0 | B121: EST NORMAL | C121: 149 | D121: PÃO FOCACCIA C/ CEBOLA | F121: PADARIA RÚSTICA
A122: =IFERROR(VLOOKUP(C122,PRODUTOS!A123:P371,16,FALSE),0) -> 0 | B122: EST NORMAL | C122: 150 | D122: PÃO FOCACCIA GÊNOVA | F122: PADARIA RÚSTICA
A123: =IFERROR(VLOOKUP(C123,PRODUTOS!A124:P372,16,FALSE),0) -> 0 | B123: EST NORMAL | C123: 151 | D123: PÃO FOCACCIA POMODORI | F123: PADARIA RÚSTICA
A124: =IFERROR(VLOOKUP(C124,PRODUTOS!A125:P373,16,FALSE),0) -> 0 | B124: EST NORMAL | C124: 152 | D124: PÃO BAGUETE 18H | F124: PADARIA TRADICIONAL
A125: =IFERROR(VLOOKUP(C125,PRODUTOS!A126:P374,16,FALSE),0) -> 26 | B125: EST NORMAL | C125: 153 | D125: PÃO FORMA BATATA A25 | F125: PADARIA TRADICIONAL
A126: =IFERROR(VLOOKUP(C126,PRODUTOS!A127:P375,16,FALSE),0) -> 77 | B126: EST NORMAL | C126: 154 | D126: PÃO FORMA BRIOCHE A25 | F126: PADARIA TRADICIONAL
A127: =IFERROR(VLOOKUP(C127,PRODUTOS!A128:P376,16,FALSE),0) -> 25 | B127: EST NORMAL | C127: 155 | D127: PÃO FORMA INTEGRAL 1000 | F127: PADARIA TRADICIONAL
A128: =IFERROR(VLOOKUP(C128,PRODUTOS!A129:P377,16,FALSE),0) -> 16 | B128: EST NORMAL | C128: 156 | D128: PÃO FORMA INTEGRAL 700 | F128: PADARIA TRADICIONAL
A129: =IFERROR(VLOOKUP(C129,PRODUTOS!A130:P378,16,FALSE),0) -> 49 | B129: EST NORMAL | C129: 157 | D129: PÃO FORMA LEITE A25 | F129: PADARIA TRADICIONAL
A130: =IFERROR(VLOOKUP(C130,PRODUTOS!A131:P379,16,FALSE),0) -> 0 | B130: =IFERROR(IF(A130<G130,"PRODUZIR!"&" "&A130-G130&" "&"A MENOR","EST NORMAL"),"") -> EST NORMAL | C130: 158 | D130: PÃO FORMA MILHO A25 | F130: PADARIA TRADICIONAL | R130: =IFERROR(AVERAGE(H130:Q130),"") -> 
A131: =IFERROR(VLOOKUP(C131,PRODUTOS!A132:P380,16,FALSE),0) -> 21 | B131: EST NORMAL | C131: 159 | D131: PÃO FORMA TRADICIONAL 1000 | F131: PADARIA TRADICIONAL
A132: =IFERROR(VLOOKUP(C132,PRODUTOS!A133:P381,16,FALSE),0) -> 7 | B132: EST NORMAL | C132: 160 | D132: PÃO FORMA TRADICIONAL 700 | F132: PADARIA TRADICIONAL
A133: =IFERROR(VLOOKUP(C133,PRODUTOS!A134:P382,16,FALSE),0) -> -30 | B133: PRODUZIR! -30 A MENOR | C133: 161 | D133: PÃO FRANCÊS 10H | F133: PADARIA TRADICIONAL
A134: =IFERROR(VLOOKUP(C134,PRODUTOS!A135:P383,16,FALSE),0) -> -35 | B134: PRODUZIR! -35 A MENOR | C134: 162 | D134: PÃO FRANCÊS 18H | F134: PADARIA TRADICIONAL
A135: =IFERROR(VLOOKUP(C135,PRODUTOS!A136:P384,16,FALSE),0) -> -10 | B135: PRODUZIR! -10 A MENOR | C135: 163 | D135: PÃO FRANCÊS 5H | F135: PADARIA TRADICIONAL
A136: =IFERROR(VLOOKUP(C136,PRODUTOS!A137:P385,16,FALSE),0) -> 0 | B136: EST NORMAL | C136: 164 | D136: PÃO ITALIANO FILÃO | F136: PADARIA RÚSTICA
A137: =IFERROR(VLOOKUP(C137,PRODUTOS!A138:P386,16,FALSE),0) -> 0 | B137: EST NORMAL | C137: 165 | D137: PÃO ITALIANO PAVÊ | F137: PADARIA RÚSTICA
A138: =IFERROR(VLOOKUP(C138,PRODUTOS!A139:P387,16,FALSE),0) -> 0 | B138: EST NORMAL | C138: 166 | D138: PÃO PORTUGUÊS | F138: PADARIA RÚSTICA
A139: =IFERROR(VLOOKUP(C139,PRODUTOS!A140:P388,16,FALSE),0) -> 18.5 | B139: EST NORMAL | C139: 167 | D139: PÃO QUEIJO CALABRESA | F139: PADARIA TRADICIONAL
A140: =IFERROR(VLOOKUP(C140,PRODUTOS!A141:P389,16,FALSE),0) -> 0 | B140: EST NORMAL | C140: 168 | D140: PÃO QUEIJO CUIA | F140: PADARIA TRADICIONAL
A141: =IFERROR(VLOOKUP(C141,PRODUTOS!A142:P390,16,FALSE),0) -> 55 | B141: EST NORMAL | C141: 169 | D141: PÃO SEMI ITALIANO | F141: PADARIA TRADICIONAL
A142: =IFERROR(VLOOKUP(C142,PRODUTOS!A143:P391,16,FALSE),0) -> 151 | B142: EST NORMAL | C142: 170 | D142: PÃO VIENNOIS | F142: PADARIA TRADICIONAL
A143: =IFERROR(VLOOKUP(C143,PRODUTOS!A144:P392,16,FALSE),0) -> 0 | B143: EST NORMAL | C143: 171 | D143: PÃO BAGUETE 5H | F143: PADARIA TRADICIONAL
A144: =IFERROR(VLOOKUP(C144,PRODUTOS!A145:P393,16,FALSE),0) -> 16 | B144: EST NORMAL | C144: 172 | D144: PASTEL DE BELÉM (MASSA) | F144: FOLHATERIA
A145: =IFERROR(VLOOKUP(C145,PRODUTOS!A146:P394,16,FALSE),0) -> 57 | B145: EST NORMAL | C145: 173 | D145: PASTEL FOLHADO BACALHAU | F145: FOLHATERIA
A146: =IFERROR(VLOOKUP(C146,PRODUTOS!A147:P395,16,FALSE),0) -> 69 | B146: EST NORMAL | C146: 174 | D146: PASTEL FOLHADO FRANGO | F146: FOLHATERIA
A147: =IFERROR(VLOOKUP(C147,PRODUTOS!A148:P396,16,FALSE),0) -> 0 | B147: EST NORMAL | C147: 175 | D147: PASTEL FOLHADO MISTO | F147: FOLHATERIA
A148: =IFERROR(VLOOKUP(C148,PRODUTOS!A149:P397,16,FALSE),0) -> 72 | B148: EST NORMAL | C148: 176 | D148: PASTEL FOLHADO QUEIJO | F148: FOLHATERIA
A149: =IFERROR(VLOOKUP(C149,PRODUTOS!A150:P398,16,FALSE),0) -> 20 | B149: EST NORMAL | C149: 180 | D149: PIZZA FOLHADA MIX FRIOS | F149: FOLHATERIA
A150: =IFERROR(VLOOKUP(C150,PRODUTOS!A151:P399,16,FALSE),0) -> 32 | B150: EST NORMAL | C150: 181 | D150: PIZZA INTEGRAL (MASSA) | F150: PADARIA TRADICIONAL
A151: =IFERROR(VLOOKUP(C151,PRODUTOS!A152:P400,16,FALSE),0) -> 0 | B151: EST NORMAL | C151: 182 | D151: PIZZA ROMANA BACON | F151: PADARIA RÚSTICA
A152: =IFERROR(VLOOKUP(C152,PRODUTOS!A153:P401,16,FALSE),0) -> 0 | B152: EST NORMAL | C152: 183 | D152: PIZZA ROMANA CALABRESA | F152: PADARIA RÚSTICA
A153: =IFERROR(VLOOKUP(C153,PRODUTOS!A154:P402,16,FALSE),0) -> 0 | B153: EST NORMAL | C153: 184 | D153: PIZZA ROMANA MARGUERITA | F153: PADARIA RÚSTICA
A154: =IFERROR(VLOOKUP(C154,PRODUTOS!A155:P403,16,FALSE),0) -> 0 | B154: EST NORMAL | C154: 185 | D154: PIZZA ROMANA MEXICANA | F154: PADARIA RÚSTICA
A155: =IFERROR(VLOOKUP(C155,PRODUTOS!A156:P404,16,FALSE),0) -> 0 | B155: EST NORMAL | C155: 186 | D155: PLACA BRANCA | F155: CONFEITARIA DOCE
A156: =IFERROR(VLOOKUP(C156,PRODUTOS!A157:P405,16,FALSE),0) -> 0 | B156: EST NORMAL | C156: 187 | D156: PLACA CHOCOLATE | F156: CONFEITARIA DOCE
A157: =IFERROR(VLOOKUP(C157,PRODUTOS!A158:P406,16,FALSE),0) -> 0 | B157: EST NORMAL | C157: 188 | D157: PLACA QUADRADINHO | F157: CONFEITARIA DOCE
A158: =IFERROR(VLOOKUP(C158,PRODUTOS!A159:P407,16,FALSE),0) -> 0 | B158: EST NORMAL | C158: 189 | D158: PLACA UVINHA | F158: CONFEITARIA DOCE
A159: =IFERROR(VLOOKUP(C159,PRODUTOS!A160:P408,16,FALSE),0) -> 43 | B159: EST NORMAL | C159: 222 | D159: QUICHE 4 QUEIJOS | F159: QUITUTERIA
A160: =IFERROR(VLOOKUP(C160,PRODUTOS!A161:P409,16,FALSE),0) -> 1 | B160: EST NORMAL | C160: 223 | D160: QUICHE ALHO PORO | F160: QUITUTERIA
A161: =IFERROR(VLOOKUP(C161,PRODUTOS!A162:P410,16,FALSE),0) -> 16 | B161: EST NORMAL | C161: 224 | D161: QUICHE BACALHAU | F161: QUITUTERIA
A162: =IFERROR(VLOOKUP(C162,PRODUTOS!A163:P411,16,FALSE),0) -> 42 | B162: EST NORMAL | C162: 225 | D162: QUICHE FRANGO | F162: QUITUTERIA
A163: =IFERROR(VLOOKUP(C163,PRODUTOS!A164:P412,16,FALSE),0) -> 0 | B163: EST NORMAL | C163: 226 | D163: QUICHE LORRAINE | F163: QUITUTERIA
A164: =IFERROR(VLOOKUP(C164,PRODUTOS!A165:P413,16,FALSE),0) -> 53 | B164: EST NORMAL | C164: 227 | D164: QUICHE MARAJOARA | F164: QUITUTERIA
A165: =IFERROR(VLOOKUP(C165,PRODUTOS!A166:P414,16,FALSE),0) -> 0 | B165: EST NORMAL | C165: 228 | D165: QUICHE MARGUERITA | F165: QUITUTERIA
A166: =IFERROR(VLOOKUP(C166,PRODUTOS!A167:P415,16,FALSE),0) -> 35 | B166: EST NORMAL | C166: 229 | D166: QUICHE QUEIJO CUIA | F166: QUITUTERIA
A167: =IFERROR(VLOOKUP(C167,PRODUTOS!A168:P416,16,FALSE),0) -> 0 | B167: EST NORMAL | C167: 230 | D167: QUICHE QUEIJO CUIA/JAMBU | F167: QUITUTERIA
A168: =IFERROR(VLOOKUP(C168,PRODUTOS!A169:P417,16,FALSE),0) -> 0 | B168: EST NORMAL | C168: 231 | D168: QUICHE TOMATE SECO | F168: QUITUTERIA
A169: =IFERROR(VLOOKUP(C169,PRODUTOS!A170:P418,16,FALSE),0) -> 0 | B169: EST NORMAL | C169: 233 | D169: RECHEIO BRANCO | F169: CONFEITARIA DOCE
A170: =IFERROR(VLOOKUP(C170,PRODUTOS!A171:P419,16,FALSE),0) -> 0 | B170: EST NORMAL | C170: 234 | D170: RECHEIO DE CHOCOLATE | F170: CONFEITARIA DOCE
A171: =IFERROR(VLOOKUP(C171,PRODUTOS!A172:P420,16,FALSE),0) -> 0 | B171: EST NORMAL | C171: 242 | D171: RECHEIO NEGÃO | F171: CONFEITARIA DOCE
A172: =IFERROR(VLOOKUP(C172,PRODUTOS!A173:P421,16,FALSE),0) -> 0 | B172: EST NORMAL | C172: 243 | D172: ROSCA DE CHUVA | F172: PADARIA TRADICIONAL
A173: =IFERROR(VLOOKUP(C173,PRODUTOS!A174:P422,16,FALSE),0) -> 887 | B173: EST NORMAL | C173: 244 | D173: ROSQUINHA DE LEITE (PCT C/ 32UND) | F173: PADARIA TRADICIONAL
A174: =IFERROR(VLOOKUP(C174,PRODUTOS!A175:P423,16,FALSE),0) -> 6 | B174: EST NORMAL | C174: 245 | D174: SALGADO ITALIANO FRANGO | F174: PADARIA TRADICIONAL
A175: =IFERROR(VLOOKUP(C175,PRODUTOS!A176:P424,16,FALSE),0) -> 64 | B175: EST NORMAL | C175: 246 | D175: SALGADO ITALIANO MIX FRIOS | F175: PADARIA TRADICIONAL
A176: =IFERROR(VLOOKUP(C176,PRODUTOS!A177:P425,16,FALSE),0) -> 15 | B176: EST NORMAL | C176: 247 | D176: SONHO | F176: PADARIA TRADICIONAL
A177: =IFERROR(VLOOKUP(C177,PRODUTOS!A178:P426,16,FALSE),0) -> 0 | B177: EST NORMAL | C177: 248 | D177: TARTELETES | F177: CONFEITARIA DOCE
A178: =IFERROR(VLOOKUP(C178,PRODUTOS!A179:P427,16,FALSE),0) -> 0 | B178: EST NORMAL | C178: 249 | D178: TORTA ALEMÃ | F178: CONFEITARIA DOCE
A179: =IFERROR(VLOOKUP(C179,PRODUTOS!A180:P428,16,FALSE),0) -> 0 | B179: EST NORMAL | C179: 250 | D179: TORTA BACURI | F179: CONFEITARIA DOCE
A180: =IFERROR(VLOOKUP(C180,PRODUTOS!A181:P429,16,FALSE),0) -> 0 | B180: EST NORMAL | C180: 251 | D180: TORTA BULGARA | F180: CONFEITARIA DOCE
A181: =IFERROR(VLOOKUP(C181,PRODUTOS!A182:P430,16,FALSE),0) -> 0 | B181: EST NORMAL | C181: 252 | D181: TORTA CHEESE CAKE ROMEU JULIETA | F181: CONFEITARIA DOCE
A182: =IFERROR(VLOOKUP(C182,PRODUTOS!A183:P431,16,FALSE),0) -> 0 | B182: EST NORMAL | C182: 253 | D182: TORTA CHEESECAKE FRUTAS VERMELHAS | F182: CONFEITARIA DOCE
A183: =IFERROR(VLOOKUP(C183,PRODUTOS!A184:P432,16,FALSE),0) -> 0 | B183: EST NORMAL | C183: 254 | D183: TORTA CUPUAÇU | F183: CONFEITARIA DOCE
A184: =IFERROR(VLOOKUP(C184,PRODUTOS!A185:P433,16,FALSE),0) -> 0 | B184: EST NORMAL | C184: 255 | D184: TORTA LIMÃO | F184: CONFEITARIA DOCE
A185: =IFERROR(VLOOKUP(C185,PRODUTOS!A186:P434,16,FALSE),0) -> 0 | B185: EST NORMAL | C185: 256 | D185: TORTA MORANGO | F185: CONFEITARIA DOCE
A186: =IFERROR(VLOOKUP(C186,PRODUTOS!A187:P435,16,FALSE),0) -> 0 | B186: EST NORMAL | C186: 257 | D186: TORTA NEGA MALUCA | F186: CONFEITARIA DOCE
A187: =IFERROR(VLOOKUP(C187,PRODUTOS!A188:P436,16,FALSE),0) -> 0 | B187: EST NORMAL | C187: 258 | D187: TORTA RED VELVET | F187: CONFEITARIA DOCE
A188: =IFERROR(VLOOKUP(C188,PRODUTOS!A189:P437,16,FALSE),0) -> 0 | B188: EST NORMAL | C188: 259 | D188: TORTA SUPREMO | F188: CONFEITARIA DOCE
A189: =IFERROR(VLOOKUP(C189,PRODUTOS!A190:P438,16,FALSE),0) -> 0 | B189: EST NORMAL | C189: 260 | D189: TRANÇA DELICIA CALABRESA | F189: FOLHATERIA
A190: =IFERROR(VLOOKUP(C190,PRODUTOS!A191:P439,16,FALSE),0) -> 0 | B190: EST NORMAL | C190: 261 | D190: TRANÇA DELICIA CARNE | F190: FOLHATERIA
A191: =IFERROR(VLOOKUP(C191,PRODUTOS!A192:P440,16,FALSE),0) -> 0 | B191: EST NORMAL | C191: 262 | D191: TRANÇA DELICIA PEITO DEFUMADO | F191: FOLHATERIA
A192: =IFERROR(VLOOKUP(C192,PRODUTOS!A193:P441,16,FALSE),0) -> 10 | B192: EST NORMAL | C192: 263 | D192: TRANÇA FOLHADA BACALHAU | F192: FOLHATERIA
A193: =IFERROR(VLOOKUP(C193,PRODUTOS!A194:P442,16,FALSE),0) -> 12 | B193: EST NORMAL | C193: 264 | D193: TRANÇA FOLHADA CALABRESA | F193: FOLHATERIA
A194: =IFERROR(VLOOKUP(C194,PRODUTOS!A195:P443,16,FALSE),0) -> 0 | B194: =IFERROR(IF(A194<G194,"PRODUZIR!"&" "&A194-G194&" "&"A MENOR","EST NORMAL"),"") -> EST NORMAL | C194: 265 | D194: TRANÇA FOLHADA FILÉ | F194: FOLHATERIA | R194: =IFERROR(AVERAGE(H194:Q194),"") -> 
A195: =IFERROR(VLOOKUP(C195,PRODUTOS!A196:P444,16,FALSE),0) -> 9 | B195: EST NORMAL | C195: 266 | D195: TRANÇA FOLHADA FRANGO/JAMBU | F195: FOLHATERIA
A196: =IFERROR(VLOOKUP(C196,PRODUTOS!A197:P445,16,FALSE),0) -> 6 | B196: EST NORMAL | C196: 267 | D196: TRANÇA FOLHADA MISTA | F196: FOLHATERIA
A197: =IFERROR(VLOOKUP(C197,PRODUTOS!A198:P446,16,FALSE),0) -> 14 | B197: EST NORMAL | C197: 268 | D197: TRANÇA FOLHADA MORTADELA DEFUMADA | F197: FOLHATERIA
A198: =IFERROR(VLOOKUP(C198,PRODUTOS!A199:P447,16,FALSE),0) -> 12 | B198: EST NORMAL | C198: 269 | D198: TRANÇA FOLHADA PEITO DEFUMADO | F198: FOLHATERIA
A199: =IFERROR(VLOOKUP(C199,PRODUTOS!A200:P448,16,FALSE),0) -> 13 | B199: EST NORMAL | C199: 270 | D199: TRANÇA FOLHADA PERNIL | F199: FOLHATERIA
A200: =IFERROR(VLOOKUP(C200,PRODUTOS!A201:P449,16,FALSE),0) -> 4 | B200: EST NORMAL | C200: 271 | D200: TRANÇA FOLHADA PERU/JAMBU | F200: FOLHATERIA
... 48 more rows

Sheet PRODUTOS
B1: Estoque Geral Produto Acabado
A2: CÓD | B2: DESCRIÇÃO | C2: MEDIDA | D2: SETOR | E2: CUSTO R$ | G2: SALDO INICIAL | H2: CUSTO R$ | J2: ENTRADA | K2: CUSTO R$ | M2: SAÍDAS | N2: CUSTO R$ | P2: SALDO | Q2: CUSTO R$ | S2: INVENTÁRIO | T2: CUSTO R$ | V2: AJUSTE | W2: CUSTO R$
A3: 2 | B3: =IF(A3="","",IFERROR(VLOOKUP(A3,CADASTRO!C:F,2,FALSE),"")) -> FORMA DE EMPADA | C3: =IFERROR(VLOOKUP(A3,CADASTRO!C:F,3,FALSE),"") -> UND | D3: =IFERROR(VLOOKUP(A3,CADASTRO!C:F,4,0),"") -> PADARIA TRADICIONAL | E3: =IFERROR(VLOOKUP(A3,CADASTRO!C:R,16,0),"") -> 5 | H3: 0 | J3: =SUMIF(ENTRADAS!A:E,A3,ENTRADAS!E:E) -> 205 | K3: =IFERROR(J3*$E3,"") -> 1025 | M3: =SUMIF(SAÍDAS!A:E,PRODUTOS!A3,SAÍDAS!E:E) -> 205 | N3: =IFERROR(M3*$E3,"") -> 1025 | P3: =G3+J3-M3 -> 0 | Q3: =IFERROR(P3*$E3,"") -> 0 | S3: =P3 -> 0 | T3: =IFERROR(S3*$E3,"") -> 0 | V3: =S3-P3 -> 0 | W3: =IFERROR(V3*$E3,"") -> 0
A4: 3 | B4: =IF(A4="","",IFERROR(VLOOKUP(A4,CADASTRO!C:F,2,FALSE),"")) -> ARO DE QUICHE | C4: =IFERROR(VLOOKUP(A4,CADASTRO!C:F,3,FALSE),"") -> UND | D4: =IFERROR(VLOOKUP(A4,CADASTRO!C:F,4,0),"") -> PADARIA TRADICIONAL | E4: =IFERROR(VLOOKUP(A4,CADASTRO!C:R,16,0),"") ->  | H4: 0 | J4: =SUMIF(ENTRADAS!A:E,A4,ENTRADAS!E:E) -> 0 | K4: =IFERROR(J4*$E4,"") ->  | M4: =SUMIF(SAÍDAS!A:E,PRODUTOS!A4,SAÍDAS!E:E) -> 0 | N4: =IFERROR(M4*$E4,"") ->  | P4: =G4+J4-M4 -> 0 | Q4: =IFERROR(P4*$E4,"") ->  | S4: =P4 -> 0 | T4: =IFERROR(S4*$E4,"") ->  | V4: =S4-P4 -> 0 | W4: =IFERROR(V4*$E4,"") -> 
A5: 8 | B5: =IF(A5="","",IFERROR(VLOOKUP(A5,CADASTRO!C:F,2,FALSE),"")) -> BAGUETE INTEGRAL (PCT C/ 45 UND = 3 KG) | C5: =IFERROR(VLOOKUP(A5,CADASTRO!C:F,3,FALSE),"") -> 0 | D5: =IFERROR(VLOOKUP(A5,CADASTRO!C:F,4,0),"") -> PADARIA TRADICIONAL | E5: =IFERROR(VLOOKUP(A5,CADASTRO!C:R,16,0),"") ->  | G5: 1 | H5: 0 | J5: =SUMIF(ENTRADAS!A:E,A5,ENTRADAS!E:E) -> 12 | M5: =SUMIF(SAÍDAS!A:E,PRODUTOS!A5,SAÍDAS!E:E) -> 9 | P5: 4 | S5: 4 | V5: 0
A6: 9 | B6: =IF(A6="","",IFERROR(VLOOKUP(A6,CADASTRO!C:F,2,FALSE),"")) -> BAILERINE | C6: =IFERROR(VLOOKUP(A6,CADASTRO!C:F,3,FALSE),"") -> 0 | D6: =IFERROR(VLOOKUP(A6,CADASTRO!C:F,4,0),"") -> CONFEITARIA DOCE | E6: =IFERROR(VLOOKUP(A6,CADASTRO!C:R,16,0),"") ->  | J6: =SUMIF(ENTRADAS!A:E,A6,ENTRADAS!E:E) -> 0 | M6: =SUMIF(SAÍDAS!A:E,PRODUTOS!A6,SAÍDAS!E:E) -> 0 | P6: 0 | S6: 0 | V6: 0
A7: 11 | B7: =IF(A7="","",IFERROR(VLOOKUP(A7,CADASTRO!C:F,2,FALSE),"")) -> BISCOITO ACEBOLADO | C7: =IFERROR(VLOOKUP(A7,CADASTRO!C:F,3,FALSE),"") -> 0 | D7: =IFERROR(VLOOKUP(A7,CADASTRO!C:F,4,0),"") -> PADARIA TRADICIONAL | E7: =IFERROR(VLOOKUP(A7,CADASTRO!C:R,16,0),"") ->  | J7: =SUMIF(ENTRADAS!A:E,A7,ENTRADAS!E:E) -> 9.55 | M7: =SUMIF(SAÍDAS!A:E,PRODUTOS!A7,SAÍDAS!E:E) -> 8.55 | P7: 1 | S7: 1 | V7: 0
A8: 12 | B8: =IF(A8="","",IFERROR(VLOOKUP(A8,CADASTRO!C:F,2,FALSE),"")) -> BISCOITO CASTANHA | C8: =IFERROR(VLOOKUP(A8,CADASTRO!C:F,3,FALSE),"") -> 0 | D8: =IFERROR(VLOOKUP(A8,CADASTRO!C:F,4,0),"") -> PADARIA TRADICIONAL | E8: =IFERROR(VLOOKUP(A8,CADASTRO!C:R,16,0),"") ->  | G8: 5 | J8: =SUMIF(ENTRADAS!A:E,A8,ENTRADAS!E:E) -> 0 | M8: =SUMIF(SAÍDAS!A:E,PRODUTOS!A8,SAÍDAS!E:E) -> 5 | P8: 0 | S8: 0 | V8: 0
A9: 13 | B9: =IF(A9="","",IFERROR(VLOOKUP(A9,CADASTRO!C:F,2,FALSE),"")) -> BISCOITO CATUPIRI | C9: =IFERROR(VLOOKUP(A9,CADASTRO!C:F,3,FALSE),"") -> 0 | D9: =IFERROR(VLOOKUP(A9,CADASTRO!C:F,4,0),"") -> PADARIA TRADICIONAL | E9: =IFERROR(VLOOKUP(A9,CADASTRO!C:R,16,0),"") ->  | G9: 1 | J9: =SUMIF(ENTRADAS!A:E,A9,ENTRADAS!E:E) -> 9.57 | M9: =SUMIF(SAÍDAS!A:E,PRODUTOS!A9,SAÍDAS!E:E) -> 4 | P9: 6.57 | S9: 6.57 | V9: 0
A10: 14 | B10: =IF(A10="","",IFERROR(VLOOKUP(A10,CADASTRO!C:F,2,FALSE),"")) -> BISCOITO COCO | C10: =IFERROR(VLOOKUP(A10,CADASTRO!C:F,3,FALSE),"") -> 0 | D10: =IFERROR(VLOOKUP(A10,CADASTRO!C:F,4,0),"") -> PADARIA TRADICIONAL | E10: =IFERROR(VLOOKUP(A10,CADASTRO!C:R,16,0),"") ->  | G10: 3 | J10: =SUMIF(ENTRADAS!A:E,A10,ENTRADAS!E:E) -> 11.25 | M10: =SUMIF(SAÍDAS!A:E,PRODUTOS!A10,SAÍDAS!E:E) -> 13.25 | P10: 1 | S10: 1 | V10: 0
A11: 15 | B11: =IF(A11="","",IFERROR(VLOOKUP(A11,CADASTRO!C:F,2,FALSE),"")) -> BISCOITO DE BOLO | C11: =IFERROR(VLOOKUP(A11,CADASTRO!C:F,3,FALSE),"") -> 0 | D11: =IFERROR(VLOOKUP(A11,CADASTRO!C:F,4,0),"") -> PADARIA TRADICIONAL | E11: =IFERROR(VLOOKUP(A11,CADASTRO!C:R,16,0),"") ->  | J11: =SUMIF(ENTRADAS!A:E,A11,ENTRADAS!E:E) -> 0 | M11: =SUMIF(SAÍDAS!A:E,PRODUTOS!A11,SAÍDAS!E:E) -> 0 | P11: 0 | S11: 0 | V11: 0
A12: 16 | B12: =IF(A12="","",IFERROR(VLOOKUP(A12,CADASTRO!C:F,2,FALSE),"")) -> BISCOITO MAISENA | C12: =IFERROR(VLOOKUP(A12,CADASTRO!C:F,3,FALSE),"") -> 0 | D12: =IFERROR(VLOOKUP(A12,CADASTRO!C:F,4,0),"") -> PADARIA TRADICIONAL | E12: =IFERROR(VLOOKUP(A12,CADASTRO!C:R,16,0),"") ->  | G12: 2 | J12: =SUMIF(ENTRADAS!A:E,A12,ENTRADAS!E:E) -> 0 | M12: =SUMIF(SAÍDAS!A:E,PRODUTOS!A12,SAÍDAS!E:E) -> 2 | P12: 0 | S12: 0 | V12: 0
A13: 17 | B13: =IF(A13="","",IFERROR(VLOOKUP(A13,CADASTRO!C:F,2,FALSE),"")) -> BISCOITO MONTEIRO LOPES | C13: =IFERROR(VLOOKUP(A13,CADASTRO!C:F,3,FALSE),"") -> 0 | D13: =IFERROR(VLOOKUP(A13,CADASTRO!C:F,4,0),"") -> PADARIA TRADICIONAL | E13: =IFERROR(VLOOKUP(A13,CADASTRO!C:R,16,0),"") ->  | G13: 8 | J13: =SUMIF(ENTRADAS!A:E,A13,ENTRADAS!E:E) -> 37.73 | M13: =SUMIF(SAÍDAS!A:E,PRODUTOS!A13,SAÍDAS!E:E) -> 34.73 | P13: 11 | S13: 11 | V13: 0
A14: 18 | B14: =IF(A14="","",IFERROR(VLOOKUP(A14,CADASTRO!C:F,2,FALSE),"")) -> BISCOITO OLHO DE BOI | C14: =IFERROR(VLOOKUP(A14,CADASTRO!C:F,3,FALSE),"") -> 0 | D14: =IFERROR(VLOOKUP(A14,CADASTRO!C:F,4,0),"") -> PADARIA TRADICIONAL | E14: =IFERROR(VLOOKUP(A14,CADASTRO!C:R,16,0),"") ->  | G14: 5 | J14: =SUMIF(ENTRADAS!A:E,A14,ENTRADAS!E:E) -> 0 | M14: =SUMIF(SAÍDAS!A:E,PRODUTOS!A14,SAÍDAS!E:E) -> 5 | P14: 0 | S14: 0 | V14: 0
A15: 19 | B15: =IF(A15="","",IFERROR(VLOOKUP(A15,CADASTRO!C:F,2,FALSE),"")) -> BISCOITO PAI D'ÉGUA | C15: =IFERROR(VLOOKUP(A15,CADASTRO!C:F,3,FALSE),"") -> 0 | D15: =IFERROR(VLOOKUP(A15,CADASTRO!C:F,4,0),"") -> PADARIA TRADICIONAL | E15: =IFERROR(VLOOKUP(A15,CADASTRO!C:R,16,0),"") ->  | G15: 1 | J15: =SUMIF(ENTRADAS!A:E,A15,ENTRADAS!E:E) -> 11.35 | M15: =SUMIF(SAÍDAS!A:E,PRODUTOS!A15,SAÍDAS!E:E) -> 7.35 | P15: 5 | S15: 5 | V15: 0
A16: 20 | B16: =IF(A16="","",IFERROR(VLOOKUP(A16,CADASTRO!C:F,2,FALSE),"")) -> BOLO CASEIRO | C16: =IFERROR(VLOOKUP(A16,CADASTRO!C:F,3,FALSE),"") -> 0 | D16: =IFERROR(VLOOKUP(A16,CADASTRO!C:F,4,0),"") -> CONFEITARIA DOCE | E16: =IFERROR(VLOOKUP(A16,CADASTRO!C:R,16,0),"") ->  | J16: =SUMIF(ENTRADAS!A:E,A16,ENTRADAS!E:E) -> 0 | M16: =SUMIF(SAÍDAS!A:E,PRODUTOS!A16,SAÍDAS!E:E) -> 0 | P16: 0 | S16: 0 | V16: 0
A17: 21 | B17: =IF(A17="","",IFERROR(VLOOKUP(A17,CADASTRO!C:F,2,FALSE),"")) -> BOLO MILHO CREMOSO G50 | C17: =IFERROR(VLOOKUP(A17,CADASTRO!C:F,3,FALSE),"") -> 0 | D17: =IFERROR(VLOOKUP(A17,CADASTRO!C:F,4,0),"") -> CONFEITARIA DOCE | E17: =IFERROR(VLOOKUP(A17,CADASTRO!C:R,16,0),"") ->  | J17: =SUMIF(ENTRADAS!A:E,A17,ENTRADAS!E:E) -> 0 | M17: =SUMIF(SAÍDAS!A:E,PRODUTOS!A17,SAÍDAS!E:E) -> 0 | P17: 0 | S17: 0 | V17: 0
A18: 26 | B18: =IF(A18="","",IFERROR(VLOOKUP(A18,CADASTRO!C:F,2,FALSE),"")) -> CARRET | C18: =IFERROR(VLOOKUP(A18,CADASTRO!C:F,3,FALSE),"") -> 0 | D18: =IFERROR(VLOOKUP(A18,CADASTRO!C:F,4,0),"") -> FOLHATERIA | E18: =IFERROR(VLOOKUP(A18,CADASTRO!C:R,16,0),"") ->  | G18: 38 | J18: =SUMIF(ENTRADAS!A:E,A18,ENTRADAS!E:E) -> 220 | M18: =SUMIF(SAÍDAS!A:E,PRODUTOS!A18,SAÍDAS!E:E) -> 85 | P18: 173 | S18: 173 | V18: 0
A19: 27 | B19: =IF(A19="","",IFERROR(VLOOKUP(A19,CADASTRO!C:F,2,FALSE),"")) -> CASADINHO G50 | C19: =IFERROR(VLOOKUP(A19,CADASTRO!C:F,3,FALSE),"") -> 0 | D19: =IFERROR(VLOOKUP(A19,CADASTRO!C:F,4,0),"") -> CONFEITARIA DOCE | E19: =IFERROR(VLOOKUP(A19,CADASTRO!C:R,16,0),"") ->  | J19: =SUMIF(ENTRADAS!A:E,A19,ENTRADAS!E:E) -> 0 | M19: =SUMIF(SAÍDAS!A:E,PRODUTOS!A19,SAÍDAS!E:E) -> 0 | P19: 0 | S19: 0 | V19: 0
A20: 28 | B20: =IF(A20="","",IFERROR(VLOOKUP(A20,CADASTRO!C:F,2,FALSE),"")) -> CATARINA DE BACALHAU | C20: =IFERROR(VLOOKUP(A20,CADASTRO!C:F,3,FALSE),"") -> 0 | D20: =IFERROR(VLOOKUP(A20,CADASTRO!C:F,4,0),"") -> FOLHATERIA | E20: =IFERROR(VLOOKUP(A20,CADASTRO!C:R,16,0),"") ->  | J20: =SUMIF(ENTRADAS!A:E,A20,ENTRADAS!E:E) -> 24 | M20: =SUMIF(SAÍDAS!A:E,PRODUTOS!A20,SAÍDAS!E:E) -> 21 | P20: 3 | S20: 3 | V20: 0
A21: 29 | B21: =IF(A21="","",IFERROR(VLOOKUP(A21,CADASTRO!C:F,2,FALSE),"")) -> CATARINA DE FRANGO | C21: =IFERROR(VLOOKUP(A21,CADASTRO!C:F,3,FALSE),"") -> 0 | D21: =IFERROR(VLOOKUP(A21,CADASTRO!C:F,4,0),"") -> FOLHATERIA | E21: =IFERROR(VLOOKUP(A21,CADASTRO!C:R,16,0),"") ->  | J21: =SUMIF(ENTRADAS!A:E,A21,ENTRADAS!E:E) -> 24 | M21: =SUMIF(SAÍDAS!A:E,PRODUTOS!A21,SAÍDAS!E:E) -> 22 | P21: 2 | S21: 2 | V21: 0
A22: 31 | B22: =IF(A22="","",IFERROR(VLOOKUP(A22,CADASTRO!C:F,2,FALSE),"")) -> CHOCOMOUSSE G50 | C22: =IFERROR(VLOOKUP(A22,CADASTRO!C:F,3,FALSE),"") -> 0 | D22: =IFERROR(VLOOKUP(A22,CADASTRO!C:F,4,0),"") -> CONFEITARIA DOCE | E22: =IFERROR(VLOOKUP(A22,CADASTRO!C:R,16,0),"") ->  | J22: =SUMIF(ENTRADAS!A:E,A22,ENTRADAS!E:E) -> 0 | M22: =SUMIF(SAÍDAS!A:E,PRODUTOS!A22,SAÍDAS!E:E) -> 0 | P22: 0 | S22: 0 | V22: 0
A23: 32 | B23: =IF(A23="","",IFERROR(VLOOKUP(A23,CADASTRO!C:F,2,FALSE),"")) -> CIABATTA P/ SANDUÍCHES | C23: =IFERROR(VLOOKUP(A23,CADASTRO!C:F,3,FALSE),"") -> 0 | D23: =IFERROR(VLOOKUP(A23,CADASTRO!C:F,4,0),"") -> PADARIA RÚSTICA | E23: =IFERROR(VLOOKUP(A23,CADASTRO!C:R,16,0),"") ->  | J23: =SUMIF(ENTRADAS!A:E,A23,ENTRADAS!E:E) -> 0 | M23: =SUMIF(SAÍDAS!A:E,PRODUTOS!A23,SAÍDAS!E:E) -> 0 | P23: 0 | S23: 0 | V23: 0
A24: 34 | B24: =IF(A24="","",IFERROR(VLOOKUP(A24,CADASTRO!C:F,2,FALSE),"")) -> PÃO BENGALA 18H | C24: =IFERROR(VLOOKUP(A24,CADASTRO!C:F,3,FALSE),"") -> 0 | D24: =IFERROR(VLOOKUP(A24,CADASTRO!C:F,4,0),"") -> PADARIA TRADICIONAL | E24: =IFERROR(VLOOKUP(A24,CADASTRO!C:R,16,0),"") ->  | J24: =SUMIF(ENTRADAS!A:E,A24,ENTRADAS!E:E) -> 0 | M24: =SUMIF(SAÍDAS!A:E,PRODUTOS!A24,SAÍDAS!E:E) -> 0 | P24: 0 | S24: 0 | V24: 0
A25: 39 | B25: =IF(A25="","",IFERROR(VLOOKUP(A25,CADASTRO!C:F,2,FALSE),"")) -> CROISSANT AMÊNDOAS | C25: =IFERROR(VLOOKUP(A25,CADASTRO!C:F,3,FALSE),"") -> 0 | D25: =IFERROR(VLOOKUP(A25,CADASTRO!C:F,4,0),"") -> PADARIA TRADICIONAL | E25: =IFERROR(VLOOKUP(A25,CADASTRO!C:R,16,0),"") ->  | G25: 53 | J25: =SUMIF(ENTRADAS!A:E,A25,ENTRADAS!E:E) -> 122 | M25: =SUMIF(SAÍDAS!A:E,PRODUTOS!A25,SAÍDAS!E:E) -> 153 | P25: 22 | S25: 22 | V25: 0
A26: 40 | B26: =IF(A26="","",IFERROR(VLOOKUP(A26,CADASTRO!C:F,2,FALSE),"")) -> PÃO BAGUETE 05H | C26: =IFERROR(VLOOKUP(A26,CADASTRO!C:F,3,FALSE),"") -> 0 | D26: =IFERROR(VLOOKUP(A26,CADASTRO!C:F,4,0),"") -> PADARIA TRADICIONAL | E26: =IFERROR(VLOOKUP(A26,CADASTRO!C:R,16,0),"") ->  | J26: =SUMIF(ENTRADAS!A:E,A26,ENTRADAS!E:E) -> 0 | M26: =SUMIF(SAÍDAS!A:E,PRODUTOS!A26,SAÍDAS!E:E) -> 0 | P26: 0 | S26: 0 | V26: 0
A27: 41 | B27: =IF(A27="","",IFERROR(VLOOKUP(A27,CADASTRO!C:F,2,FALSE),"")) -> CROISSANT CONGELADO | C27: =IFERROR(VLOOKUP(A27,CADASTRO!C:F,3,FALSE),"") -> 0 | D27: =IFERROR(VLOOKUP(A27,CADASTRO!C:F,4,0),"") -> PADARIA TRADICIONAL | E27: =IFERROR(VLOOKUP(A27,CADASTRO!C:R,16,0),"") ->  | G27: 465 | J27: =SUMIF(ENTRADAS!A:E,A27,ENTRADAS!E:E) -> 3018 | M27: =SUMIF(SAÍDAS!A:E,PRODUTOS!A27,SAÍDAS!E:E) -> 3293 | P27: 190 | S27: 190 | V27: 0
A28: 42 | B28: =IF(A28="","",IFERROR(VLOOKUP(A28,CADASTRO!C:F,2,FALSE),"")) -> CROQUE MONSIER | C28: =IFERROR(VLOOKUP(A28,CADASTRO!C:F,3,FALSE),"") -> 0 | D28: =IFERROR(VLOOKUP(A28,CADASTRO!C:F,4,0),"") -> QUITUTERIA | E28: =IFERROR(VLOOKUP(A28,CADASTRO!C:R,16,0),"") ->  | J28: =SUMIF(ENTRADAS!A:E,A28,ENTRADAS!E:E) -> 0 | M28: =SUMIF(SAÍDAS!A:E,PRODUTOS!A28,SAÍDAS!E:E) -> 0 | P28: 0 | S28: 0 | V28: 0
A29: 43 | B29: =IF(A29="","",IFERROR(VLOOKUP(A29,CADASTRO!C:F,2,FALSE),"")) -> CUPCAKE LEITE | C29: =IFERROR(VLOOKUP(A29,CADASTRO!C:F,3,FALSE),"") -> 0 | D29: =IFERROR(VLOOKUP(A29,CADASTRO!C:F,4,0),"") -> CONFEITARIA DOCE | E29: =IFERROR(VLOOKUP(A29,CADASTRO!C:R,16,0),"") ->  | J29: =SUMIF(ENTRADAS!A:E,A29,ENTRADAS!E:E) -> 0 | M29: =SUMIF(SAÍDAS!A:E,PRODUTOS!A29,SAÍDAS!E:E) -> 0 | P29: 0 | S29: 0 | V29: 0
A30: 44 | B30: =IF(A30="","",IFERROR(VLOOKUP(A30,CADASTRO!C:F,2,FALSE),"")) -> DANISH CAPRESE | C30: =IFERROR(VLOOKUP(A30,CADASTRO!C:F,3,FALSE),"") -> 0 | D30: =IFERROR(VLOOKUP(A30,CADASTRO!C:F,4,0),"") -> FOLHATERIA | E30: =IFERROR(VLOOKUP(A30,CADASTRO!C:R,16,0),"") ->  | G30: 11 | J30: =SUMIF(ENTRADAS!A:E,A30,ENTRADAS!E:E) -> 52 | M30: =SUMIF(SAÍDAS!A:E,PRODUTOS!A30,SAÍDAS!E:E) -> 46 | P30: 17 | S30: 17 | V30: 0
A31: 45 | B31: =IF(A31="","",IFERROR(VLOOKUP(A31,CADASTRO!C:F,2,FALSE),"")) -> DISCO MINI CAKE CHOCOLATE | C31: =IFERROR(VLOOKUP(A31,CADASTRO!C:F,3,FALSE),"") -> 0 | D31: =IFERROR(VLOOKUP(A31,CADASTRO!C:F,4,0),"") -> CONFEITARIA DOCE | E31: =IFERROR(VLOOKUP(A31,CADASTRO!C:R,16,0),"") ->  | J31: =SUMIF(ENTRADAS!A:E,A31,ENTRADAS!E:E) -> 0 | M31: =SUMIF(SAÍDAS!A:E,PRODUTOS!A31,SAÍDAS!E:E) -> 0 | P31: 0 | S31: 0 | V31: 0
A32: 46 | B32: =IF(A32="","",IFERROR(VLOOKUP(A32,CADASTRO!C:F,2,FALSE),"")) -> DISCOS DE RED VELVET | C32: =IFERROR(VLOOKUP(A32,CADASTRO!C:F,3,FALSE),"") -> 0 | D32: =IFERROR(VLOOKUP(A32,CADASTRO!C:F,4,0),"") -> CONFEITARIA DOCE | E32: =IFERROR(VLOOKUP(A32,CADASTRO!C:R,16,0),"") ->  | J32: =SUMIF(ENTRADAS!A:E,A32,ENTRADAS!E:E) -> 0 | M32: =SUMIF(SAÍDAS!A:E,PRODUTOS!A32,SAÍDAS!E:E) -> 0 | P32: 0 | S32: 0 | V32: 0
A33: 47 | B33: =IF(A33="","",IFERROR(VLOOKUP(A33,CADASTRO!C:F,2,FALSE),"")) -> DISCOS MINI CAKE DE LEITE | C33: =IFERROR(VLOOKUP(A33,CADASTRO!C:F,3,FALSE),"") -> 0 | D33: =IFERROR(VLOOKUP(A33,CADASTRO!C:F,4,0),"") -> CONFEITARIA DOCE | E33: =IFERROR(VLOOKUP(A33,CADASTRO!C:R,16,0),"") ->  | J33: =SUMIF(ENTRADAS!A:E,A33,ENTRADAS!E:E) -> 0 | M33: =SUMIF(SAÍDAS!A:E,PRODUTOS!A33,SAÍDAS!E:E) -> 0 | P33: 0 | S33: 0 | V33: 0
A34: 48 | B34: =IF(A34="","",IFERROR(VLOOKUP(A34,CADASTRO!C:F,2,FALSE),"")) -> DISCOS SUPREMO | C34: =IFERROR(VLOOKUP(A34,CADASTRO!C:F,3,FALSE),"") -> 0 | D34: =IFERROR(VLOOKUP(A34,CADASTRO!C:F,4,0),"") -> CONFEITARIA DOCE | E34: =IFERROR(VLOOKUP(A34,CADASTRO!C:R,16,0),"") ->  | J34: =SUMIF(ENTRADAS!A:E,A34,ENTRADAS!E:E) -> 0 | M34: =SUMIF(SAÍDAS!A:E,PRODUTOS!A34,SAÍDAS!E:E) -> 0 | P34: 0 | S34: 0 | V34: 0
A35: 49 | B35: =IF(A35="","",IFERROR(VLOOKUP(A35,CADASTRO!C:F,2,FALSE),"")) -> DONNUTS | C35: =IFERROR(VLOOKUP(A35,CADASTRO!C:F,3,FALSE),"") -> 0 | D35: =IFERROR(VLOOKUP(A35,CADASTRO!C:F,4,0),"") -> PADARIA TRADICIONAL | E35: =IFERROR(VLOOKUP(A35,CADASTRO!C:R,16,0),"") ->  | J35: =SUMIF(ENTRADAS!A:E,A35,ENTRADAS!E:E) -> 182 | M35: =SUMIF(SAÍDAS!A:E,PRODUTOS!A35,SAÍDAS!E:E) -> 110 | P35: 72 | S35: 72 | V35: 0
A36: 50 | B36: =IF(A36="","",IFERROR(VLOOKUP(A36,CADASTRO!C:F,2,FALSE),"")) -> EMPADA BACALHAU | C36: =IFERROR(VLOOKUP(A36,CADASTRO!C:F,3,FALSE),"") -> 0 | D36: =IFERROR(VLOOKUP(A36,CADASTRO!C:F,4,0),"") -> PADARIA TRADICIONAL | E36: =IFERROR(VLOOKUP(A36,CADASTRO!C:R,16,0),"") ->  | G36: 26 | J36: =SUMIF(ENTRADAS!A:E,A36,ENTRADAS!E:E) -> 76 | M36: =SUMIF(SAÍDAS!A:E,PRODUTOS!A36,SAÍDAS!E:E) -> 41 | P36: 61 | S36: 61 | V36: 0
A37: 51 | B37: =IF(A37="","",IFERROR(VLOOKUP(A37,CADASTRO!C:F,2,FALSE),"")) -> EMPADA FRANGO | C37: =IFERROR(VLOOKUP(A37,CADASTRO!C:F,3,FALSE),"") -> 0 | D37: =IFERROR(VLOOKUP(A37,CADASTRO!C:F,4,0),"") -> PADARIA TRADICIONAL | E37: =IFERROR(VLOOKUP(A37,CADASTRO!C:R,16,0),"") ->  | G37: 208 | J37: =SUMIF(ENTRADAS!A:E,A37,ENTRADAS!E:E) -> 0 | M37: =SUMIF(SAÍDAS!A:E,PRODUTOS!A37,SAÍDAS!E:E) -> 64 | P37: 144 | S37: 144 | V37: 0
A38: 52 | B38: =IF(A38="","",IFERROR(VLOOKUP(A38,CADASTRO!C:F,2,FALSE),"")) -> EMPADA FRANGO/PALMITO | C38: =IFERROR(VLOOKUP(A38,CADASTRO!C:F,3,FALSE),"") -> 0 | D38: =IFERROR(VLOOKUP(A38,CADASTRO!C:F,4,0),"") -> PADARIA TRADICIONAL | E38: =IFERROR(VLOOKUP(A38,CADASTRO!C:R,16,0),"") ->  | G38: 172 | J38: =SUMIF(ENTRADAS!A:E,A38,ENTRADAS!E:E) -> 0 | M38: =SUMIF(SAÍDAS!A:E,PRODUTOS!A38,SAÍDAS!E:E) -> 44 | P38: 128 | S38: 128 | V38: 0
A39: 53 | B39: =IF(A39="","",IFERROR(VLOOKUP(A39,CADASTRO!C:F,2,FALSE),"")) -> EMPADA PALMITO | C39: =IFERROR(VLOOKUP(A39,CADASTRO!C:F,3,FALSE),"") -> 0 | D39: =IFERROR(VLOOKUP(A39,CADASTRO!C:F,4,0),"") -> PADARIA TRADICIONAL | E39: =IFERROR(VLOOKUP(A39,CADASTRO!C:R,16,0),"") ->  | J39: =SUMIF(ENTRADAS!A:E,A39,ENTRADAS!E:E) -> 72 | M39: =SUMIF(SAÍDAS!A:E,PRODUTOS!A39,SAÍDAS!E:E) -> 17 | P39: 55 | S39: 55 | V39: 0
A40: 54 | B40: =IF(A40="","",IFERROR(VLOOKUP(A40,CADASTRO!C:F,2,FALSE),"")) -> EMPADÃO | C40: =IFERROR(VLOOKUP(A40,CADASTRO!C:F,3,FALSE),"") -> 0 | D40: =IFERROR(VLOOKUP(A40,CADASTRO!C:F,4,0),"") -> PADARIA TRADICIONAL | E40: =IFERROR(VLOOKUP(A40,CADASTRO!C:R,16,0),"") ->  | J40: =SUMIF(ENTRADAS!A:E,A40,ENTRADAS!E:E) -> 0 | M40: =SUMIF(SAÍDAS!A:E,PRODUTOS!A40,SAÍDAS!E:E) -> 0 | P40: 0 | S40: 0 | V40: 0
A41: 60 | B41: =IF(A41="","",IFERROR(VLOOKUP(A41,CADASTRO!C:F,2,FALSE),"")) -> FOCACCIA RUSTICA CALABRESA (MASSA) | C41: =IFERROR(VLOOKUP(A41,CADASTRO!C:F,3,FALSE),"") -> 0 | D41: =IFERROR(VLOOKUP(A41,CADASTRO!C:F,4,0),"") -> PADARIA RÚSTICA | E41: =IFERROR(VLOOKUP(A41,CADASTRO!C:R,16,0),"") ->  | G41: 2 | J41: =SUMIF(ENTRADAS!A:E,A41,ENTRADAS!E:E) -> 18 | M41: =SUMIF(SAÍDAS!A:E,PRODUTOS!A41,SAÍDAS!E:E) -> 8 | P41: 12 | S41: 12 | V41: 0
A42: 61 | B42: =IF(A42="","",IFERROR(VLOOKUP(A42,CADASTRO!C:F,2,FALSE),"")) -> FOCACCIA TABULEIRO | C42: =IFERROR(VLOOKUP(A42,CADASTRO!C:F,3,FALSE),"") -> 0 | D42: =IFERROR(VLOOKUP(A42,CADASTRO!C:F,4,0),"") -> PADARIA RÚSTICA | E42: =IFERROR(VLOOKUP(A42,CADASTRO!C:R,16,0),"") ->  | G42: 2 | J42: =SUMIF(ENTRADAS!A:E,A42,ENTRADAS!E:E) -> 10 | M42: =SUMIF(SAÍDAS!A:E,PRODUTOS!A42,SAÍDAS!E:E) -> 6 | P42: 6 | S42: 6 | V42: 0
A43: 66 | B43: =IF(A43="","",IFERROR(VLOOKUP(A43,CADASTRO!C:F,2,FALSE),"")) -> LASANHA FOLHADA MISTA | C43: =IFERROR(VLOOKUP(A43,CADASTRO!C:F,3,FALSE),"") -> 0 | D43: =IFERROR(VLOOKUP(A43,CADASTRO!C:F,4,0),"") -> FOLHATERIA | E43: =IFERROR(VLOOKUP(A43,CADASTRO!C:R,16,0),"") ->  | J43: =SUMIF(ENTRADAS!A:E,A43,ENTRADAS!E:E) -> 5 | M43: =SUMIF(SAÍDAS!A:E,PRODUTOS!A43,SAÍDAS!E:E) -> 4 | P43: 1 | S43: 1 | V43: 0
A44: 70 | B44: =IF(A44="","",IFERROR(VLOOKUP(A44,CADASTRO!C:F,2,FALSE),"")) -> MASSA DOCINHO BRIGADEIRO | C44: =IFERROR(VLOOKUP(A44,CADASTRO!C:F,3,FALSE),"") -> 0 | D44: =IFERROR(VLOOKUP(A44,CADASTRO!C:F,4,0),"") -> CONFEITARIA DOCE | E44: =IFERROR(VLOOKUP(A44,CADASTRO!C:R,16,0),"") ->  | J44: =SUMIF(ENTRADAS!A:E,A44,ENTRADAS!E:E) -> 0 | M44: =SUMIF(SAÍDAS!A:E,PRODUTOS!A44,SAÍDAS!E:E) -> 0 | P44: 0 | S44: 0 | V44: 0
A45: 71 | B45: =IF(A45="","",IFERROR(VLOOKUP(A45,CADASTRO!C:F,2,FALSE),"")) -> MASSA MINI PIZZA | C45: =IFERROR(VLOOKUP(A45,CADASTRO!C:F,3,FALSE),"") -> 0 | D45: =IFERROR(VLOOKUP(A45,CADASTRO!C:F,4,0),"") -> PADARIA TRADICIONAL | E45: =IFERROR(VLOOKUP(A45,CADASTRO!C:R,16,0),"") ->  | J45: =SUMIF(ENTRADAS!A:E,A45,ENTRADAS!E:E) -> 11 | M45: =SUMIF(SAÍDAS!A:E,PRODUTOS!A45,SAÍDAS!E:E) -> 7 | P45: 4 | S45: 4 | V45: 0
A46: 72 | B46: =IF(A46="","",IFERROR(VLOOKUP(A46,CADASTRO!C:F,2,FALSE),"")) -> MASSAS TARTALETE | C46: =IFERROR(VLOOKUP(A46,CADASTRO!C:F,3,FALSE),"") -> 0 | D46: =IFERROR(VLOOKUP(A46,CADASTRO!C:F,4,0),"") -> CONFEITARIA DOCE | E46: =IFERROR(VLOOKUP(A46,CADASTRO!C:R,16,0),"") ->  | J46: =SUMIF(ENTRADAS!A:E,A46,ENTRADAS!E:E) -> 0 | M46: =SUMIF(SAÍDAS!A:E,PRODUTOS!A46,SAÍDAS!E:E) -> 0 | P46: 0 | S46: 0 | V46: 0
A47: 73 | B47: =IF(A47="","",IFERROR(VLOOKUP(A47,CADASTRO!C:F,2,FALSE),"")) -> MIL FOLHAS | C47: =IFERROR(VLOOKUP(A47,CADASTRO!C:F,3,FALSE),"") -> 0 | D47: =IFERROR(VLOOKUP(A47,CADASTRO!C:F,4,0),"") -> FOLHATERIA | E47: =IFERROR(VLOOKUP(A47,CADASTRO!C:R,16,0),"") ->  | J47: =SUMIF(ENTRADAS!A:E,A47,ENTRADAS!E:E) -> 0 | M47: =SUMIF(SAÍDAS!A:E,PRODUTOS!A47,SAÍDAS!E:E) -> 0 | P47: 0 | S47: 0 | V47: 0
A48: 74 | B48: =IF(A48="","",IFERROR(VLOOKUP(A48,CADASTRO!C:F,2,FALSE),"")) -> MINI BOLO DE CENOURA | C48: =IFERROR(VLOOKUP(A48,CADASTRO!C:F,3,FALSE),"") -> 0 | D48: =IFERROR(VLOOKUP(A48,CADASTRO!C:F,4,0),"") -> CONFEITARIA DOCE | E48: =IFERROR(VLOOKUP(A48,CADASTRO!C:R,16,0),"") ->  | J48: =SUMIF(ENTRADAS!A:E,A48,ENTRADAS!E:E) -> 0 | M48: =SUMIF(SAÍDAS!A:E,PRODUTOS!A48,SAÍDAS!E:E) -> 0 | P48: 0 | S48: 0 | V48: 0
A49: 75 | B49: =IF(A49="","",IFERROR(VLOOKUP(A49,CADASTRO!C:F,2,FALSE),"")) -> MINI CAKE DE CHOCOLATE | C49: =IFERROR(VLOOKUP(A49,CADASTRO!C:F,3,FALSE),"") -> 0 | D49: =IFERROR(VLOOKUP(A49,CADASTRO!C:F,4,0),"") -> CONFEITARIA DOCE | E49: =IFERROR(VLOOKUP(A49,CADASTRO!C:R,16,0),"") ->  | J49: =SUMIF(ENTRADAS!A:E,A49,ENTRADAS!E:E) -> 0 | M49: =SUMIF(SAÍDAS!A:E,PRODUTOS!A49,SAÍDAS!E:E) -> 0 | P49: 0 | S49: 0 | V49: 0
A50: 76 | B50: =IF(A50="","",IFERROR(VLOOKUP(A50,CADASTRO!C:F,2,FALSE),"")) -> MINI CAKE DE LEITE | C50: =IFERROR(VLOOKUP(A50,CADASTRO!C:F,3,FALSE),"") -> 0 | D50: =IFERROR(VLOOKUP(A50,CADASTRO!C:F,4,0),"") -> CONFEITARIA DOCE | E50: =IFERROR(VLOOKUP(A50,CADASTRO!C:R,16,0),"") ->  | J50: =SUMIF(ENTRADAS!A:E,A50,ENTRADAS!E:E) -> 0 | M50: =SUMIF(SAÍDAS!A:E,PRODUTOS!A50,SAÍDAS!E:E) -> 0 | P50: 0 | S50: 0 | V50: 0
A51: 77 | B51: =IF(A51="","",IFERROR(VLOOKUP(A51,CADASTRO!C:F,2,FALSE),"")) -> MINI CROISSANT | C51: =IFERROR(VLOOKUP(A51,CADASTRO!C:F,3,FALSE),"") -> 0 | D51: =IFERROR(VLOOKUP(A51,CADASTRO!C:F,4,0),"") -> FOLHATERIA | E51: =IFERROR(VLOOKUP(A51,CADASTRO!C:R,16,0),"") ->  | G51: 12.7 | J51: =SUMIF(ENTRADAS!A:E,A51,ENTRADAS!E:E) -> 0 | M51: =SUMIF(SAÍDAS!A:E,PRODUTOS!A51,SAÍDAS!E:E) -> 0 | P51: 12.7 | S51: 12.7 | V51: 0
A52: 78 | B52: =IF(A52="","",IFERROR(VLOOKUP(A52,CADASTRO!C:F,2,FALSE),"")) -> MINI FOLHADO BACALHAU | C52: =IFERROR(VLOOKUP(A52,CADASTRO!C:F,3,FALSE),"") -> 0 | D52: =IFERROR(VLOOKUP(A52,CADASTRO!C:F,4,0),"") -> FOLHATERIA | E52: =IFERROR(VLOOKUP(A52,CADASTRO!C:R,16,0),"") ->  | G52: 7.644 | J52: =SUMIF(ENTRADAS!A:E,A52,ENTRADAS!E:E) -> 10.73 | M52: =SUMIF(SAÍDAS!A:E,PRODUTOS!A52,SAÍDAS!E:E) -> 14.98 | P52: 3.394 | S52: 3.394 | V52: 0
A53: 79 | B53: =IF(A53="","",IFERROR(VLOOKUP(A53,CADASTRO!C:F,2,FALSE),"")) -> MINI FOLHADO CALABRESA | C53: =IFERROR(VLOOKUP(A53,CADASTRO!C:F,3,FALSE),"") -> 0 | D53: =IFERROR(VLOOKUP(A53,CADASTRO!C:F,4,0),"") -> FOLHATERIA | E53: =IFERROR(VLOOKUP(A53,CADASTRO!C:R,16,0),"") ->  | G53: 7.388 | J53: =SUMIF(ENTRADAS!A:E,A53,ENTRADAS!E:E) -> 10.39 | M53: =SUMIF(SAÍDAS!A:E,PRODUTOS!A53,SAÍDAS!E:E) -> 21.2 | P53: -3.422 | S53: -3.422 | V53: 0
A54: 80 | B54: =IF(A54="","",IFERROR(VLOOKUP(A54,CADASTRO!C:F,2,FALSE),"")) -> MINI FOLHADO CUPUAÇU | C54: =IFERROR(VLOOKUP(A54,CADASTRO!C:F,3,FALSE),"") -> 0 | D54: =IFERROR(VLOOKUP(A54,CADASTRO!C:F,4,0),"") -> FOLHATERIA | E54: =IFERROR(VLOOKUP(A54,CADASTRO!C:R,16,0),"") ->  | J54: =SUMIF(ENTRADAS!A:E,A54,ENTRADAS!E:E) -> 22.62 | M54: =SUMIF(SAÍDAS!A:E,PRODUTOS!A54,SAÍDAS!E:E) -> 19.04 | P54: 3.58 | S54: 3.58 | V54: 0
A55: 81 | B55: =IF(A55="","",IFERROR(VLOOKUP(A55,CADASTRO!C:F,2,FALSE),"")) -> MINI FOLHADO DE QUEIJO | C55: =IFERROR(VLOOKUP(A55,CADASTRO!C:F,3,FALSE),"") -> 0 | D55: =IFERROR(VLOOKUP(A55,CADASTRO!C:F,4,0),"") -> FOLHATERIA | E55: =IFERROR(VLOOKUP(A55,CADASTRO!C:R,16,0),"") ->  | J55: =SUMIF(ENTRADAS!A:E,A55,ENTRADAS!E:E) -> 25.16 | M55: =SUMIF(SAÍDAS!A:E,PRODUTOS!A55,SAÍDAS!E:E) -> 24.76 | P55: 0.4 | S55: 0.4 | V55: 0
A56: 82 | B56: =IF(A56="","",IFERROR(VLOOKUP(A56,CADASTRO!C:F,2,FALSE),"")) -> MINI FOLHADO FRANGO | C56: =IFERROR(VLOOKUP(A56,CADASTRO!C:F,3,FALSE),"") -> 0 | D56: =IFERROR(VLOOKUP(A56,CADASTRO!C:F,4,0),"") -> FOLHATERIA | E56: =IFERROR(VLOOKUP(A56,CADASTRO!C:R,16,0),"") ->  | J56: =SUMIF(ENTRADAS!A:E,A56,ENTRADAS!E:E) -> 10.73 | M56: =SUMIF(SAÍDAS!A:E,PRODUTOS!A56,SAÍDAS!E:E) -> 14.63 | P56: -3.9 | S56: -3.9 | V56: 0
A57: 83 | B57: =IF(A57="","",IFERROR(VLOOKUP(A57,CADASTRO!C:F,2,FALSE),"")) -> MINI FOLHADO GOIABADA | C57: =IFERROR(VLOOKUP(A57,CADASTRO!C:F,3,FALSE),"") -> 0 | D57: =IFERROR(VLOOKUP(A57,CADASTRO!C:F,4,0),"") -> FOLHATERIA | E57: =IFERROR(VLOOKUP(A57,CADASTRO!C:R,16,0),"") ->  | G57: 9.9 | J57: =SUMIF(ENTRADAS!A:E,A57,ENTRADAS!E:E) -> 6.39 | M57: =SUMIF(SAÍDAS!A:E,PRODUTOS!A57,SAÍDAS!E:E) -> 3.63 | P57: 12.66 | S57: 12.66 | V57: 0
A58: 84 | B58: =IF(A58="","",IFERROR(VLOOKUP(A58,CADASTRO!C:F,2,FALSE),"")) -> MINI FOLHADO MISTO | C58: =IFERROR(VLOOKUP(A58,CADASTRO!C:F,3,FALSE),"") -> 0 | D58: =IFERROR(VLOOKUP(A58,CADASTRO!C:F,4,0),"") -> FOLHATERIA | E58: =IFERROR(VLOOKUP(A58,CADASTRO!C:R,16,0),"") ->  | J58: =SUMIF(ENTRADAS!A:E,A58,ENTRADAS!E:E) -> 14.82 | M58: =SUMIF(SAÍDAS!A:E,PRODUTOS!A58,SAÍDAS!E:E) -> 18.14 | P58: -3.32 | S58: -3.32 | V58: 0
A59: 85 | B59: =IF(A59="","",IFERROR(VLOOKUP(A59,CADASTRO!C:F,2,FALSE),"")) -> MINI LASANHA FOLHADA | C59: =IFERROR(VLOOKUP(A59,CADASTRO!C:F,3,FALSE),"") -> 0 | D59: =IFERROR(VLOOKUP(A59,CADASTRO!C:F,4,0),"") -> FOLHATERIA | E59: =IFERROR(VLOOKUP(A59,CADASTRO!C:R,16,0),"") ->  | J59: =SUMIF(ENTRADAS!A:E,A59,ENTRADAS!E:E) -> 0 | M59: =SUMIF(SAÍDAS!A:E,PRODUTOS!A59,SAÍDAS!E:E) -> 0 | P59: 0 | S59: 0 | V59: 0
A60: 86 | B60: =IF(A60="","",IFERROR(VLOOKUP(A60,CADASTRO!C:F,2,FALSE),"")) -> MINI LASANHA MISTA | C60: =IFERROR(VLOOKUP(A60,CADASTRO!C:F,3,FALSE),"") -> 0 | D60: =IFERROR(VLOOKUP(A60,CADASTRO!C:F,4,0),"") -> FOLHATERIA | E60: =IFERROR(VLOOKUP(A60,CADASTRO!C:R,16,0),"") ->  | J60: =SUMIF(ENTRADAS!A:E,A60,ENTRADAS!E:E) -> 0 | M60: =SUMIF(SAÍDAS!A:E,PRODUTOS!A60,SAÍDAS!E:E) -> 0 | P60: 0 | S60: 0 | V60: 0
A61: 87 | B61: =IF(A61="","",IFERROR(VLOOKUP(A61,CADASTRO!C:F,2,FALSE),"")) -> MINI PAIN AU CHOCOLAT | C61: =IFERROR(VLOOKUP(A61,CADASTRO!C:F,3,FALSE),"") -> 0 | D61: =IFERROR(VLOOKUP(A61,CADASTRO!C:F,4,0),"") -> FOLHATERIA | E61: =IFERROR(VLOOKUP(A61,CADASTRO!C:R,16,0),"") ->  | J61: =SUMIF(ENTRADAS!A:E,A61,ENTRADAS!E:E) -> 7.13 | M61: =SUMIF(SAÍDAS!A:E,PRODUTOS!A61,SAÍDAS!E:E) -> 7.13 | P61: 0 | S61: 0 | V61: 0
A62: 88 | B62: =IF(A62="","",IFERROR(VLOOKUP(A62,CADASTRO!C:F,2,FALSE),"")) -> MINI PÃO BATATA (ERVAS,PARMESÃO) | C62: =IFERROR(VLOOKUP(A62,CADASTRO!C:F,3,FALSE),"") -> 0 | D62: =IFERROR(VLOOKUP(A62,CADASTRO!C:F,4,0),"") -> PADARIA TRADICIONAL | E62: =IFERROR(VLOOKUP(A62,CADASTRO!C:R,16,0),"") ->  | J62: =SUMIF(ENTRADAS!A:E,A62,ENTRADAS!E:E) -> 1700 | M62: =SUMIF(SAÍDAS!A:E,PRODUTOS!A62,SAÍDAS!E:E) -> 1310 | P62: 390 | S62: 390 | V62: 0
A63: 89 | B63: =IF(A63="","",IFERROR(VLOOKUP(A63,CADASTRO!C:F,2,FALSE),"")) -> MINI PÃO BATATA HAMBÚRGUER | C63: =IFERROR(VLOOKUP(A63,CADASTRO!C:F,3,FALSE),"") -> 0 | D63: =IFERROR(VLOOKUP(A63,CADASTRO!C:F,4,0),"") -> PADARIA TRADICIONAL | E63: =IFERROR(VLOOKUP(A63,CADASTRO!C:R,16,0),"") ->  | J63: =SUMIF(ENTRADAS!A:E,A63,ENTRADAS!E:E) -> 1080 | M63: =SUMIF(SAÍDAS!A:E,PRODUTOS!A63,SAÍDAS!E:E) -> 794 | P63: 286 | S63: 286 | V63: 0
A64: 90 | B64: =IF(A64="","",IFERROR(VLOOKUP(A64,CADASTRO!C:F,2,FALSE),"")) -> MINI PÃO BRIOCHE (C/ 6 UNIDADES = 740G) | C64: =IFERROR(VLOOKUP(A64,CADASTRO!C:F,3,FALSE),"") -> 0 | D64: =IFERROR(VLOOKUP(A64,CADASTRO!C:F,4,0),"") -> PADARIA TRADICIONAL | E64: =IFERROR(VLOOKUP(A64,CADASTRO!C:R,16,0),"") ->  | J64: =SUMIF(ENTRADAS!A:E,A64,ENTRADAS!E:E) -> 0 | M64: =SUMIF(SAÍDAS!A:E,PRODUTOS!A64,SAÍDAS!E:E) -> 0 | P64: 0 | S64: 0 | V64: 0
A65: 91 | B65: =IF(A65="","",IFERROR(VLOOKUP(A65,CADASTRO!C:F,2,FALSE),"")) -> MINI PÃO BRIOCHE (PCT C/ 24UND) | C65: =IFERROR(VLOOKUP(A65,CADASTRO!C:F,3,FALSE),"") -> 0 | D65: =IFERROR(VLOOKUP(A65,CADASTRO!C:F,4,0),"") -> PADARIA TRADICIONAL | E65: =IFERROR(VLOOKUP(A65,CADASTRO!C:R,16,0),"") ->  | J65: =SUMIF(ENTRADAS!A:E,A65,ENTRADAS!E:E) -> 16 | M65: =SUMIF(SAÍDAS!A:E,PRODUTOS!A65,SAÍDAS!E:E) -> 12 | P65: 4 | S65: 4 | V65: 0
A66: 92 | B66: =IF(A66="","",IFERROR(VLOOKUP(A66,CADASTRO!C:F,2,FALSE),"")) -> MINI PÃO DELÍCIA (PCT C/ 24UND) | C66: =IFERROR(VLOOKUP(A66,CADASTRO!C:F,3,FALSE),"") -> 0 | D66: =IFERROR(VLOOKUP(A66,CADASTRO!C:F,4,0),"") -> PADARIA TRADICIONAL | E66: =IFERROR(VLOOKUP(A66,CADASTRO!C:R,16,0),"") ->  | J66: =SUMIF(ENTRADAS!A:E,A66,ENTRADAS!E:E) -> 36 | M66: =SUMIF(SAÍDAS!A:E,PRODUTOS!A66,SAÍDAS!E:E) -> 28 | P66: 8 | S66: 8 | V66: 0
A67: 93 | B67: =IF(A67="","",IFERROR(VLOOKUP(A67,CADASTRO!C:F,2,FALSE),"")) -> MINI PASTEL FOLHADO | C67: =IFERROR(VLOOKUP(A67,CADASTRO!C:F,3,FALSE),"") -> 0 | D67: =IFERROR(VLOOKUP(A67,CADASTRO!C:F,4,0),"") -> FOLHATERIA | E67: =IFERROR(VLOOKUP(A67,CADASTRO!C:R,16,0),"") ->  | G67: 3.216 | J67: =SUMIF(ENTRADAS!A:E,A67,ENTRADAS!E:E) -> 10.42 | M67: =SUMIF(SAÍDAS!A:E,PRODUTOS!A67,SAÍDAS!E:E) -> 13.64 | P67: =G67+J67-M67 -> -0.004 | S67: -0.004 | V67: 0
A68: 94 | B68: =IF(A68="","",IFERROR(VLOOKUP(A68,CADASTRO!C:F,2,FALSE),"")) -> MINI TRANÇA BACALHAU | C68: =IFERROR(VLOOKUP(A68,CADASTRO!C:F,3,FALSE),"") -> 0 | D68: =IFERROR(VLOOKUP(A68,CADASTRO!C:F,4,0),"") -> FOLHATERIA | E68: =IFERROR(VLOOKUP(A68,CADASTRO!C:R,16,0),"") ->  | G68: 9 | J68: =SUMIF(ENTRADAS!A:E,A68,ENTRADAS!E:E) -> 16 | K68: =IFERROR(J68*$E68,"") ->  | M68: =SUMIF(SAÍDAS!A:E,PRODUTOS!A68,SAÍDAS!E:E) -> 15 | N68: =IFERROR(M68*$E68,"") ->  | P68: 10 | Q68: =IFERROR(P68*$E68,"") ->  | S68: =P68 -> 10 | T68: =IFERROR(S68*$E68,"") ->  | V68: =S68-P68 -> 0 | W68: =IFERROR(V68*$E68,"") -> 
A69: 95 | B69: =IF(A69="","",IFERROR(VLOOKUP(A69,CADASTRO!C:F,2,FALSE),"")) -> MINI TRANÇA CALABRESA | C69: =IFERROR(VLOOKUP(A69,CADASTRO!C:F,3,FALSE),"") -> 0 | D69: =IFERROR(VLOOKUP(A69,CADASTRO!C:F,4,0),"") -> FOLHATERIA | E69: =IFERROR(VLOOKUP(A69,CADASTRO!C:R,16,0),"") ->  | J69: =SUMIF(ENTRADAS!A:E,A69,ENTRADAS!E:E) -> 16 | M69: =SUMIF(SAÍDAS!A:E,PRODUTOS!A69,SAÍDAS!E:E) -> 14 | P69: 2 | S69: 2 | V69: 0
A70: 96 | B70: =IF(A70="","",IFERROR(VLOOKUP(A70,CADASTRO!C:F,2,FALSE),"")) -> MINI TRANÇA FILÉ | C70: =IFERROR(VLOOKUP(A70,CADASTRO!C:F,3,FALSE),"") -> 0 | D70: =IFERROR(VLOOKUP(A70,CADASTRO!C:F,4,0),"") -> FOLHATERIA | E70: =IFERROR(VLOOKUP(A70,CADASTRO!C:R,16,0),"") ->  | J70: =SUMIF(ENTRADAS!A:E,A70,ENTRADAS!E:E) -> 0 | M70: =SUMIF(SAÍDAS!A:E,PRODUTOS!A70,SAÍDAS!E:E) -> 0 | P70: 0 | S70: 0 | V70: 0
A71: 97 | B71: =IF(A71="","",IFERROR(VLOOKUP(A71,CADASTRO!C:F,2,FALSE),"")) -> MINI TRANÇA FRANGO | C71: =IFERROR(VLOOKUP(A71,CADASTRO!C:F,3,FALSE),"") -> 0 | D71: =IFERROR(VLOOKUP(A71,CADASTRO!C:F,4,0),"") -> FOLHATERIA | E71: =IFERROR(VLOOKUP(A71,CADASTRO!C:R,16,0),"") ->  | G71: 20 | J71: =SUMIF(ENTRADAS!A:E,A71,ENTRADAS!E:E) -> 0 | M71: =SUMIF(SAÍDAS!A:E,PRODUTOS!A71,SAÍDAS!E:E) -> 10 | P71: 10 | S71: 10 | V71: 0
A72: 98 | B72: =IF(A72="","",IFERROR(VLOOKUP(A72,CADASTRO!C:F,2,FALSE),"")) -> MINI TRANÇA MISTA | C72: =IFERROR(VLOOKUP(A72,CADASTRO!C:F,3,FALSE),"") -> 0 | D72: =IFERROR(VLOOKUP(A72,CADASTRO!C:F,4,0),"") -> FOLHATERIA | E72: =IFERROR(VLOOKUP(A72,CADASTRO!C:R,16,0),"") ->  | J72: =SUMIF(ENTRADAS!A:E,A72,ENTRADAS!E:E) -> 16 | M72: =SUMIF(SAÍDAS!A:E,PRODUTOS!A72,SAÍDAS!E:E) -> 14 | P72: 2 | S72: 2 | V72: 0
A73: 99 | B73: =IF(A73="","",IFERROR(VLOOKUP(A73,CADASTRO!C:F,2,FALSE),"")) -> MINI TRANÇA MORTADELA DEFUMADO | C73: =IFERROR(VLOOKUP(A73,CADASTRO!C:F,3,FALSE),"") -> 0 | D73: =IFERROR(VLOOKUP(A73,CADASTRO!C:F,4,0),"") -> FOLHATERIA | E73: =IFERROR(VLOOKUP(A73,CADASTRO!C:R,16,0),"") ->  | J73: =SUMIF(ENTRADAS!A:E,A73,ENTRADAS!E:E) -> 0 | M73: =SUMIF(SAÍDAS!A:E,PRODUTOS!A73,SAÍDAS!E:E) -> 0 | P73: 0 | S73: 0 | V73: 0
A74: 100 | B74: =IF(A74="","",IFERROR(VLOOKUP(A74,CADASTRO!C:F,2,FALSE),"")) -> MINI TRANÇA PATO | C74: =IFERROR(VLOOKUP(A74,CADASTRO!C:F,3,FALSE),"") -> 0 | D74: =IFERROR(VLOOKUP(A74,CADASTRO!C:F,4,0),"") -> FOLHATERIA | E74: =IFERROR(VLOOKUP(A74,CADASTRO!C:R,16,0),"") ->  | J74: =SUMIF(ENTRADAS!A:E,A74,ENTRADAS!E:E) -> 0 | M74: =SUMIF(SAÍDAS!A:E,PRODUTOS!A74,SAÍDAS!E:E) -> 0 | P74: 0 | S74: 0 | V74: 0
A75: 101 | B75: =IF(A75="","",IFERROR(VLOOKUP(A75,CADASTRO!C:F,2,FALSE),"")) -> MINI TRANÇA PEITO DEFUMADO | C75: =IFERROR(VLOOKUP(A75,CADASTRO!C:F,3,FALSE),"") -> 0 | D75: =IFERROR(VLOOKUP(A75,CADASTRO!C:F,4,0),"") -> FOLHATERIA | E75: =IFERROR(VLOOKUP(A75,CADASTRO!C:R,16,0),"") ->  | J75: =SUMIF(ENTRADAS!A:E,A75,ENTRADAS!E:E) -> 0 | M75: =SUMIF(SAÍDAS!A:E,PRODUTOS!A75,SAÍDAS!E:E) -> 0 | P75: 0 | S75: 0 | V75: 0
A76: 102 | B76: =IF(A76="","",IFERROR(VLOOKUP(A76,CADASTRO!C:F,2,FALSE),"")) -> MINI TRANÇA PERNIL | C76: =IFERROR(VLOOKUP(A76,CADASTRO!C:F,3,FALSE),"") -> 0 | D76: =IFERROR(VLOOKUP(A76,CADASTRO!C:F,4,0),"") -> FOLHATERIA | E76: =IFERROR(VLOOKUP(A76,CADASTRO!C:R,16,0),"") ->  | J76: =SUMIF(ENTRADAS!A:E,A76,ENTRADAS!E:E) -> 0 | M76: =SUMIF(SAÍDAS!A:E,PRODUTOS!A76,SAÍDAS!E:E) -> 0 | P76: 0 | S76: 0 | V76: 0
A77: 103 | B77: =IF(A77="","",IFERROR(VLOOKUP(A77,CADASTRO!C:F,2,FALSE),"")) -> MINI TRANÇA PERU/JAMBU | C77: =IFERROR(VLOOKUP(A77,CADASTRO!C:F,3,FALSE),"") -> 0 | D77: =IFERROR(VLOOKUP(A77,CADASTRO!C:F,4,0),"") -> FOLHATERIA | E77: =IFERROR(VLOOKUP(A77,CADASTRO!C:R,16,0),"") ->  | J77: =SUMIF(ENTRADAS!A:E,A77,ENTRADAS!E:E) -> 0 | M77: =SUMIF(SAÍDAS!A:E,PRODUTOS!A77,SAÍDAS!E:E) -> 0 | P77: 0 | S77: 0 | V77: 0
A78: 104 | B78: =IF(A78="","",IFERROR(VLOOKUP(A78,CADASTRO!C:F,2,FALSE),"")) -> MINI TRANÇA SALAME | C78: =IFERROR(VLOOKUP(A78,CADASTRO!C:F,3,FALSE),"") -> 0 | D78: =IFERROR(VLOOKUP(A78,CADASTRO!C:F,4,0),"") -> FOLHATERIA | E78: =IFERROR(VLOOKUP(A78,CADASTRO!C:R,16,0),"") ->  | G78: 33 | J78: =SUMIF(ENTRADAS!A:E,A78,ENTRADAS!E:E) -> 0 | M78: =SUMIF(SAÍDAS!A:E,PRODUTOS!A78,SAÍDAS!E:E) -> 12 | P78: 21 | S78: 21 | V78: 0
A79: 106 | B79: =IF(A79="","",IFERROR(VLOOKUP(A79,CADASTRO!C:F,2,FALSE),"")) -> NEGÃO G50 | C79: =IFERROR(VLOOKUP(A79,CADASTRO!C:F,3,FALSE),"") -> 0 | D79: =IFERROR(VLOOKUP(A79,CADASTRO!C:F,4,0),"") -> CONFEITARIA DOCE | E79: =IFERROR(VLOOKUP(A79,CADASTRO!C:R,16,0),"") ->  | J79: =SUMIF(ENTRADAS!A:E,A79,ENTRADAS!E:E) -> 0 | M79: =SUMIF(SAÍDAS!A:E,PRODUTOS!A79,SAÍDAS!E:E) -> 0 | P79: 0 | S79: 0 | V79: 0
A80: 107 | B80: =IF(A80="","",IFERROR(VLOOKUP(A80,CADASTRO!C:F,2,FALSE),"")) -> ORELHINHA CANELA | C80: =IFERROR(VLOOKUP(A80,CADASTRO!C:F,3,FALSE),"") -> 0 | D80: =IFERROR(VLOOKUP(A80,CADASTRO!C:F,4,0),"") -> FOLHATERIA | E80: =IFERROR(VLOOKUP(A80,CADASTRO!C:R,16,0),"") ->  | G80: 11 | J80: =SUMIF(ENTRADAS!A:E,A80,ENTRADAS!E:E) -> 7.48 | M80: =SUMIF(SAÍDAS!A:E,PRODUTOS!A80,SAÍDAS!E:E) -> 7.29 | P80: 11.19 | S80: 11.19 | V80: 0
A81: 108 | B81: =IF(A81="","",IFERROR(VLOOKUP(A81,CADASTRO!C:F,2,FALSE),"")) -> ORELINHA TRADICIONAL | C81: =IFERROR(VLOOKUP(A81,CADASTRO!C:F,3,FALSE),"") -> 0 | D81: =IFERROR(VLOOKUP(A81,CADASTRO!C:F,4,0),"") -> FOLHATERIA | E81: =IFERROR(VLOOKUP(A81,CADASTRO!C:R,16,0),"") ->  | G81: 3.378 | J81: =SUMIF(ENTRADAS!A:E,A81,ENTRADAS!E:E) -> 23.38 | M81: =SUMIF(SAÍDAS!A:E,PRODUTOS!A81,SAÍDAS!E:E) -> 18.38 | P81: 8.378 | S81: 8.378 | V81: 0
A82: 109 | B82: =IF(A82="","",IFERROR(VLOOKUP(A82,CADASTRO!C:F,2,FALSE),"")) -> PAIN AU CHOCOLAT | C82: =IFERROR(VLOOKUP(A82,CADASTRO!C:F,3,FALSE),"") -> 0 | D82: =IFERROR(VLOOKUP(A82,CADASTRO!C:F,4,0),"") -> FOLHATERIA | E82: =IFERROR(VLOOKUP(A82,CADASTRO!C:R,16,0),"") ->  | J82: =SUMIF(ENTRADAS!A:E,A82,ENTRADAS!E:E) -> 0 | M82: =SUMIF(SAÍDAS!A:E,PRODUTOS!A82,SAÍDAS!E:E) -> 0 | P82: 0 | S82: 0 | V82: 0
A83: 110 | B83: =IF(A83="","",IFERROR(VLOOKUP(A83,CADASTRO!C:F,2,FALSE),"")) -> PALITO CANELA | C83: =IFERROR(VLOOKUP(A83,CADASTRO!C:F,3,FALSE),"") -> 0 | D83: =IFERROR(VLOOKUP(A83,CADASTRO!C:F,4,0),"") -> FOLHATERIA | E83: =IFERROR(VLOOKUP(A83,CADASTRO!C:R,16,0),"") ->  | J83: =SUMIF(ENTRADAS!A:E,A83,ENTRADAS!E:E) -> 15.48 | M83: =SUMIF(SAÍDAS!A:E,PRODUTOS!A83,SAÍDAS!E:E) -> 11.34 | P83: 4.14 | S83: 4.14 | V83: 0
A84: 111 | B84: =IF(A84="","",IFERROR(VLOOKUP(A84,CADASTRO!C:F,2,FALSE),"")) -> PALITO QUEIJO | C84: =IFERROR(VLOOKUP(A84,CADASTRO!C:F,3,FALSE),"") -> 0 | D84: =IFERROR(VLOOKUP(A84,CADASTRO!C:F,4,0),"") -> FOLHATERIA | E84: =IFERROR(VLOOKUP(A84,CADASTRO!C:R,16,0),"") ->  | G84: 3.55 | J84: =SUMIF(ENTRADAS!A:E,A84,ENTRADAS!E:E) -> 10.7 | M84: =SUMIF(SAÍDAS!A:E,PRODUTOS!A84,SAÍDAS!E:E) -> 14.25 | P84: 0 | S84: 0 | V84: 0
A85: 112 | B85: =IF(A85="","",IFERROR(VLOOKUP(A85,CADASTRO!C:F,2,FALSE),"")) -> PALMIER | C85: =IFERROR(VLOOKUP(A85,CADASTRO!C:F,3,FALSE),"") -> 0 | D85: =IFERROR(VLOOKUP(A85,CADASTRO!C:F,4,0),"") -> FOLHATERIA | E85: =IFERROR(VLOOKUP(A85,CADASTRO!C:R,16,0),"") ->  | J85: =SUMIF(ENTRADAS!A:E,A85,ENTRADAS!E:E) -> 140 | M85: =SUMIF(SAÍDAS!A:E,PRODUTOS!A85,SAÍDAS!E:E) -> 10 | P85: 130 | S85: 130 | V85: 0
A86: 113 | B86: =IF(A86="","",IFERROR(VLOOKUP(A86,CADASTRO!C:F,2,FALSE),"")) -> PÃO AUSTRALIANO BAGUETE | C86: =IFERROR(VLOOKUP(A86,CADASTRO!C:F,3,FALSE),"") -> 0 | D86: =IFERROR(VLOOKUP(A86,CADASTRO!C:F,4,0),"") -> PADARIA TRADICIONAL | E86: =IFERROR(VLOOKUP(A86,CADASTRO!C:R,16,0),"") ->  | J86: =SUMIF(ENTRADAS!A:E,A86,ENTRADAS!E:E) -> 0 | M86: =SUMIF(SAÍDAS!A:E,PRODUTOS!A86,SAÍDAS!E:E) -> 0 | P86: 0 | S86: 0 | V86: 0
A87: 114 | B87: =IF(A87="","",IFERROR(VLOOKUP(A87,CADASTRO!C:F,2,FALSE),"")) -> PÃO AUSTRALIANO HAMBÚRGUER | C87: =IFERROR(VLOOKUP(A87,CADASTRO!C:F,3,FALSE),"") -> 0 | D87: =IFERROR(VLOOKUP(A87,CADASTRO!C:F,4,0),"") -> PADARIA TRADICIONAL | E87: =IFERROR(VLOOKUP(A87,CADASTRO!C:R,16,0),"") ->  | J87: =SUMIF(ENTRADAS!A:E,A87,ENTRADAS!E:E) -> 0 | M87: =SUMIF(SAÍDAS!A:E,PRODUTOS!A87,SAÍDAS!E:E) -> 0 | P87: 0 | S87: 0 | V87: 0
A88: 115 | B88: =IF(A88="","",IFERROR(VLOOKUP(A88,CADASTRO!C:F,2,FALSE),"")) -> PÃO AUSTRALIANO RÚSTICO | C88: =IFERROR(VLOOKUP(A88,CADASTRO!C:F,3,FALSE),"") -> 0 | D88: =IFERROR(VLOOKUP(A88,CADASTRO!C:F,4,0),"") -> PADARIA RÚSTICA | E88: =IFERROR(VLOOKUP(A88,CADASTRO!C:R,16,0),"") ->  | J88: =SUMIF(ENTRADAS!A:E,A88,ENTRADAS!E:E) -> 0 | M88: =SUMIF(SAÍDAS!A:E,PRODUTOS!A88,SAÍDAS!E:E) -> 0 | P88: 0 | S88: 0 | V88: 0
A89: 116 | B89: =IF(A89="","",IFERROR(VLOOKUP(A89,CADASTRO!C:F,2,FALSE),"")) -> PÃO BAGUETE 10 HORAS | C89: =IFERROR(VLOOKUP(A89,CADASTRO!C:F,3,FALSE),"") -> 0 | D89: =IFERROR(VLOOKUP(A89,CADASTRO!C:F,4,0),"") -> PADARIA TRADICIONAL | E89: =IFERROR(VLOOKUP(A89,CADASTRO!C:R,16,0),"") ->  | G89: 15 | J89: =SUMIF(ENTRADAS!A:E,A89,ENTRADAS!E:E) -> 15 | M89: =SUMIF(SAÍDAS!A:E,PRODUTOS!A89,SAÍDAS!E:E) -> 30 | P89: 0 | S89: 0 | V89: 0
A90: 117 | B90: =IF(A90="","",IFERROR(VLOOKUP(A90,CADASTRO!C:F,2,FALSE),"")) -> PÃO BAGUETE DE TRADIÇÃO | C90: =IFERROR(VLOOKUP(A90,CADASTRO!C:F,3,FALSE),"") -> 0 | D90: =IFERROR(VLOOKUP(A90,CADASTRO!C:F,4,0),"") -> PADARIA RÚSTICA | E90: =IFERROR(VLOOKUP(A90,CADASTRO!C:R,16,0),"") ->  | J90: =SUMIF(ENTRADAS!A:E,A90,ENTRADAS!E:E) -> 0 | M90: =SUMIF(SAÍDAS!A:E,PRODUTOS!A90,SAÍDAS!E:E) -> 0 | P90: 0 | S90: 0 | V90: 0
A91: 118 | B91: =IF(A91="","",IFERROR(VLOOKUP(A91,CADASTRO!C:F,2,FALSE),"")) -> PÃO BAGUETE FRANCESA | C91: =IFERROR(VLOOKUP(A91,CADASTRO!C:F,3,FALSE),"") -> 0 | D91: =IFERROR(VLOOKUP(A91,CADASTRO!C:F,4,0),"") -> PADARIA RÚSTICA | E91: =IFERROR(VLOOKUP(A91,CADASTRO!C:R,16,0),"") ->  | J91: =SUMIF(ENTRADAS!A:E,A91,ENTRADAS!E:E) -> 0 | M91: =SUMIF(SAÍDAS!A:E,PRODUTOS!A91,SAÍDAS!E:E) -> 0 | P91: 0 | S91: 0 | V91: 0
A92: 119 | B92: =IF(A92="","",IFERROR(VLOOKUP(A92,CADASTRO!C:F,2,FALSE),"")) -> PÃO BAGUETE LYON | C92: =IFERROR(VLOOKUP(A92,CADASTRO!C:F,3,FALSE),"") -> 0 | D92: =IFERROR(VLOOKUP(A92,CADASTRO!C:F,4,0),"") -> PADARIA RÚSTICA | E92: =IFERROR(VLOOKUP(A92,CADASTRO!C:R,16,0),"") ->  | G92: 67 | J92: =SUMIF(ENTRADAS!A:E,A92,ENTRADAS!E:E) -> 59 | M92: =SUMIF(SAÍDAS!A:E,PRODUTOS!A92,SAÍDAS!E:E) -> 115 | P92: 11 | S92: 11 | V92: 0
A93: 120 | B93: =IF(A93="","",IFERROR(VLOOKUP(A93,CADASTRO!C:F,2,FALSE),"")) -> PÃO BAGUETE PORTUGUESA | C93: =IFERROR(VLOOKUP(A93,CADASTRO!C:F,3,FALSE),"") -> 0 | D93: =IFERROR(VLOOKUP(A93,CADASTRO!C:F,4,0),"") -> PADARIA TRADICIONAL | E93: =IFERROR(VLOOKUP(A93,CADASTRO!C:R,16,0),"") ->  | J93: =SUMIF(ENTRADAS!A:E,A93,ENTRADAS!E:E) -> 0 | M93: =SUMIF(SAÍDAS!A:E,PRODUTOS!A93,SAÍDAS!E:E) -> 0 | P93: 0 | S93: 0 | V93: 0
A94: 121 | B94: =IF(A94="","",IFERROR(VLOOKUP(A94,CADASTRO!C:F,2,FALSE),"")) -> PÃO BAIÃO | C94: =IFERROR(VLOOKUP(A94,CADASTRO!C:F,3,FALSE),"") -> 0 | D94: =IFERROR(VLOOKUP(A94,CADASTRO!C:F,4,0),"") -> PADARIA TRADICIONAL | E94: =IFERROR(VLOOKUP(A94,CADASTRO!C:R,16,0),"") ->  | G94: 60 | J94: =SUMIF(ENTRADAS!A:E,A94,ENTRADAS!E:E) -> 211 | M94: =SUMIF(SAÍDAS!A:E,PRODUTOS!A94,SAÍDAS!E:E) -> 179 | P94: 92 | S94: 92 | V94: 0
A95: 122 | B95: =IF(A95="","",IFERROR(VLOOKUP(A95,CADASTRO!C:F,2,FALSE),"")) -> PÃO BENGALA 10 HORAS | C95: =IFERROR(VLOOKUP(A95,CADASTRO!C:F,3,FALSE),"") -> 0 | D95: =IFERROR(VLOOKUP(A95,CADASTRO!C:F,4,0),"") -> PADARIA TRADICIONAL | E95: =IFERROR(VLOOKUP(A95,CADASTRO!C:R,16,0),"") ->  | G95: 40 | J95: =SUMIF(ENTRADAS!A:E,A95,ENTRADAS!E:E) -> 16 | M95: =SUMIF(SAÍDAS!A:E,PRODUTOS!A95,SAÍDAS!E:E) -> 53 | P95: 3 | S95: 3 | V95: 0
A96: 123 | B96: =IF(A96="","",IFERROR(VLOOKUP(A96,CADASTRO!C:F,2,FALSE),"")) -> PÃO BRIOCHE DE FORMA 1000 | C96: =IFERROR(VLOOKUP(A96,CADASTRO!C:F,3,FALSE),"") -> 0 | D96: =IFERROR(VLOOKUP(A96,CADASTRO!C:F,4,0),"") -> PADARIA TRADICIONAL | E96: =IFERROR(VLOOKUP(A96,CADASTRO!C:R,16,0),"") ->  | G96: 3 | J96: =SUMIF(ENTRADAS!A:E,A96,ENTRADAS!E:E) -> 46 | M96: =SUMIF(SAÍDAS!A:E,PRODUTOS!A96,SAÍDAS!E:E) -> 20 | P96: 29 | S96: 29 | V96: 0
A97: 124 | B97: =IF(A97="","",IFERROR(VLOOKUP(A97,CADASTRO!C:F,2,FALSE),"")) -> PÃO BRIOCHE HAMBÚRGUER | C97: =IFERROR(VLOOKUP(A97,CADASTRO!C:F,3,FALSE),"") -> 0 | D97: =IFERROR(VLOOKUP(A97,CADASTRO!C:F,4,0),"") -> PADARIA TRADICIONAL | E97: =IFERROR(VLOOKUP(A97,CADASTRO!C:R,16,0),"") ->  | J97: =SUMIF(ENTRADAS!A:E,A97,ENTRADAS!E:E) -> 69 | M97: =SUMIF(SAÍDAS!A:E,PRODUTOS!A97,SAÍDAS!E:E) -> 59 | P97: 10 | S97: 10 | V97: 0
A98: 125 | B98: =IF(A98="","",IFERROR(VLOOKUP(A98,CADASTRO!C:F,2,FALSE),"")) -> PÃO C/ CEBOLA E ERVAS DE PROVENCE | C98: =IFERROR(VLOOKUP(A98,CADASTRO!C:F,3,FALSE),"") -> 0 | D98: =IFERROR(VLOOKUP(A98,CADASTRO!C:F,4,0),"") -> PADARIA RÚSTICA | E98: =IFERROR(VLOOKUP(A98,CADASTRO!C:R,16,0),"") ->  | J98: =SUMIF(ENTRADAS!A:E,A98,ENTRADAS!E:E) -> 0 | M98: =SUMIF(SAÍDAS!A:E,PRODUTOS!A98,SAÍDAS!E:E) -> 0 | P98: 0 | S98: 0 | V98: 0
A99: 126 | B99: =IF(A99="","",IFERROR(VLOOKUP(A99,CADASTRO!C:F,2,FALSE),"")) -> PÃO CAMPONÊS | C99: =IFERROR(VLOOKUP(A99,CADASTRO!C:F,3,FALSE),"") -> 0 | D99: =IFERROR(VLOOKUP(A99,CADASTRO!C:F,4,0),"") -> PADARIA RÚSTICA | E99: =IFERROR(VLOOKUP(A99,CADASTRO!C:R,16,0),"") ->  | G99: 96 | J99: =SUMIF(ENTRADAS!A:E,A99,ENTRADAS!E:E) -> 45 | M99: =SUMIF(SAÍDAS!A:E,PRODUTOS!A99,SAÍDAS!E:E) -> 60 | P99: 81 | S99: 81 | V99: 0
A100: 127 | B100: =IF(A100="","",IFERROR(VLOOKUP(A100,CADASTRO!C:F,2,FALSE),"")) -> PÃO CIABATTA C/ AZEITONAS | C100: =IFERROR(VLOOKUP(A100,CADASTRO!C:F,3,FALSE),"") -> 0 | D100: =IFERROR(VLOOKUP(A100,CADASTRO!C:F,4,0),"") -> PADARIA RÚSTICA | E100: =IFERROR(VLOOKUP(A100,CADASTRO!C:R,16,0),"") ->  | J100: =SUMIF(ENTRADAS!A:E,A100,ENTRADAS!E:E) -> 0 | M100: =SUMIF(SAÍDAS!A:E,PRODUTOS!A100,SAÍDAS!E:E) -> 0 | P100: 0 | S100: 0 | V100: 0
A101: 128 | B101: =IF(A101="","",IFERROR(VLOOKUP(A101,CADASTRO!C:F,2,FALSE),"")) -> PÃO CIABATTA C/ CALABRESA | C101: =IFERROR(VLOOKUP(A101,CADASTRO!C:F,3,FALSE),"") -> 0 | D101: =IFERROR(VLOOKUP(A101,CADASTRO!C:F,4,0),"") -> PADARIA RÚSTICA | E101: =IFERROR(VLOOKUP(A101,CADASTRO!C:R,16,0),"") ->  | J101: =SUMIF(ENTRADAS!A:E,A101,ENTRADAS!E:E) -> 0 | M101: =SUMIF(SAÍDAS!A:E,PRODUTOS!A101,SAÍDAS!E:E) -> 0 | P101: 0 | S101: 0 | V101: 0
A102: 129 | B102: =IF(A102="","",IFERROR(VLOOKUP(A102,CADASTRO!C:F,2,FALSE),"")) -> PÃO CIABATTA C/ CEBOLA | C102: =IFERROR(VLOOKUP(A102,CADASTRO!C:F,3,FALSE),"") -> 0 | D102: =IFERROR(VLOOKUP(A102,CADASTRO!C:F,4,0),"") -> PADARIA RÚSTICA | E102: =IFERROR(VLOOKUP(A102,CADASTRO!C:R,16,0),"") ->  | J102: =SUMIF(ENTRADAS!A:E,A102,ENTRADAS!E:E) -> 0 | M102: =SUMIF(SAÍDAS!A:E,PRODUTOS!A102,SAÍDAS!E:E) -> 0 | P102: 0 | S102: 0 | V102: 0
A103: 130 | B103: =IF(A103="","",IFERROR(VLOOKUP(A103,CADASTRO!C:F,2,FALSE),"")) -> PÃO CIABATTA DE TRADIÇÃO | C103: =IFERROR(VLOOKUP(A103,CADASTRO!C:F,3,FALSE),"") -> 0 | D103: =IFERROR(VLOOKUP(A103,CADASTRO!C:F,4,0),"") -> PADARIA RÚSTICA | E103: =IFERROR(VLOOKUP(A103,CADASTRO!C:R,16,0),"") ->  | J103: =SUMIF(ENTRADAS!A:E,A103,ENTRADAS!E:E) -> 0 | M103: =SUMIF(SAÍDAS!A:E,PRODUTOS!A103,SAÍDAS!E:E) -> 0 | P103: 0 | S103: 0 | V103: 0
A104: 131 | B104: =IF(A104="","",IFERROR(VLOOKUP(A104,CADASTRO!C:F,2,FALSE),"")) -> PÃO CUCA DE BANANA | C104: =IFERROR(VLOOKUP(A104,CADASTRO!C:F,3,FALSE),"") -> 0 | D104: =IFERROR(VLOOKUP(A104,CADASTRO!C:F,4,0),"") -> PADARIA TRADICIONAL | E104: =IFERROR(VLOOKUP(A104,CADASTRO!C:R,16,0),"") ->  | J104: =SUMIF(ENTRADAS!A:E,A104,ENTRADAS!E:E) -> 25 | M104: =SUMIF(SAÍDAS!A:E,PRODUTOS!A104,SAÍDAS!E:E) -> 12 | P104: 13 | S104: 13 | V104: 0
A105: 132 | B105: =IF(A105="","",IFERROR(VLOOKUP(A105,CADASTRO!C:F,2,FALSE),"")) -> PÃO CUCA GOIABADA | C105: =IFERROR(VLOOKUP(A105,CADASTRO!C:F,3,FALSE),"") -> 0 | D105: =IFERROR(VLOOKUP(A105,CADASTRO!C:F,4,0),"") -> PADARIA TRADICIONAL | E105: =IFERROR(VLOOKUP(A105,CADASTRO!C:R,16,0),"") ->  | G105: 48 | J105: =SUMIF(ENTRADAS!A:E,A105,ENTRADAS!E:E) -> 32 | M105: =SUMIF(SAÍDAS!A:E,PRODUTOS!A105,SAÍDAS!E:E) -> 28 | P105: 52 | S105: 52 | V105: 0
A106: 133 | B106: =IF(A106="","",IFERROR(VLOOKUP(A106,CADASTRO!C:F,2,FALSE),"")) -> PÃO CUCA PACOCA | C106: =IFERROR(VLOOKUP(A106,CADASTRO!C:F,3,FALSE),"") -> 0 | D106: =IFERROR(VLOOKUP(A106,CADASTRO!C:F,4,0),"") -> PADARIA TRADICIONAL | E106: =IFERROR(VLOOKUP(A106,CADASTRO!C:R,16,0),"") ->  | J106: =SUMIF(ENTRADAS!A:E,A106,ENTRADAS!E:E) -> 0 | M106: =SUMIF(SAÍDAS!A:E,PRODUTOS!A106,SAÍDAS!E:E) -> 0 | P106: 0 | S106: 0 | V106: 0
A107: 134 | B107: =IF(A107="","",IFERROR(VLOOKUP(A107,CADASTRO!C:F,2,FALSE),"")) -> PÃO DAMIEN MONTECER | C107: =IFERROR(VLOOKUP(A107,CADASTRO!C:F,3,FALSE),"") -> 0 | D107: =IFERROR(VLOOKUP(A107,CADASTRO!C:F,4,0),"") -> PADARIA RÚSTICA | E107: =IFERROR(VLOOKUP(A107,CADASTRO!C:R,16,0),"") ->  | J107: =SUMIF(ENTRADAS!A:E,A107,ENTRADAS!E:E) -> 0 | M107: =SUMIF(SAÍDAS!A:E,PRODUTOS!A107,SAÍDAS!E:E) -> 0 | P107: 0 | S107: 0 | V107: 0
A108: 135 | B108: =IF(A108="","",IFERROR(VLOOKUP(A108,CADASTRO!C:F,2,FALSE),"")) -> PÃO DE BATATA FILÃO | C108: =IFERROR(VLOOKUP(A108,CADASTRO!C:F,3,FALSE),"") -> 0 | D108: =IFERROR(VLOOKUP(A108,CADASTRO!C:F,4,0),"") -> PADARIA TRADICIONAL | E108: =IFERROR(VLOOKUP(A108,CADASTRO!C:R,16,0),"") ->  | J108: =SUMIF(ENTRADAS!A:E,A108,ENTRADAS!E:E) -> 400 | M108: =SUMIF(SAÍDAS!A:E,PRODUTOS!A108,SAÍDAS!E:E) -> 296 | P108: 104 | S108: 104 | V108: 0
A109: 136 | B109: =IF(A109="","",IFERROR(VLOOKUP(A109,CADASTRO!C:F,2,FALSE),"")) -> PÃO DE CACAU | C109: =IFERROR(VLOOKUP(A109,CADASTRO!C:F,3,FALSE),"") -> 0 | D109: =IFERROR(VLOOKUP(A109,CADASTRO!C:F,4,0),"") -> PADARIA RÚSTICA | E109: =IFERROR(VLOOKUP(A109,CADASTRO!C:R,16,0),"") ->  | J109: =SUMIF(ENTRADAS!A:E,A109,ENTRADAS!E:E) -> 0 | M109: =SUMIF(SAÍDAS!A:E,PRODUTOS!A109,SAÍDAS!E:E) -> 0 | P109: 0 | S109: 0 | V109: 0
A110: 137 | B110: =IF(A110="","",IFERROR(VLOOKUP(A110,CADASTRO!C:F,2,FALSE),"")) -> PÃO DE CERVEJA C/ GRÃOS TORRADOS | C110: =IFERROR(VLOOKUP(A110,CADASTRO!C:F,3,FALSE),"") -> 0 | D110: =IFERROR(VLOOKUP(A110,CADASTRO!C:F,4,0),"") -> PADARIA RÚSTICA | E110: =IFERROR(VLOOKUP(A110,CADASTRO!C:R,16,0),"") ->  | J110: =SUMIF(ENTRADAS!A:E,A110,ENTRADAS!E:E) -> 0 | M110: =SUMIF(SAÍDAS!A:E,PRODUTOS!A110,SAÍDAS!E:E) -> 0 | P110: 0 | S110: 0 | V110: 0
A111: 138 | B111: =IF(A111="","",IFERROR(VLOOKUP(A111,CADASTRO!C:F,2,FALSE),"")) -> PÃO DE FORMA 100% INTEGRAL | C111: =IFERROR(VLOOKUP(A111,CADASTRO!C:F,3,FALSE),"") -> 0 | D111: =IFERROR(VLOOKUP(A111,CADASTRO!C:F,4,0),"") -> PADARIA RÚSTICA | E111: =IFERROR(VLOOKUP(A111,CADASTRO!C:R,16,0),"") ->  | J111: =SUMIF(ENTRADAS!A:E,A111,ENTRADAS!E:E) -> 0 | M111: =SUMIF(SAÍDAS!A:E,PRODUTOS!A111,SAÍDAS!E:E) -> 0 | P111: 0 | S111: 0 | V111: 0
A112: 139 | B112: =IF(A112="","",IFERROR(VLOOKUP(A112,CADASTRO!C:F,2,FALSE),"")) -> PÃO DE LÓ (BRANCA) | C112: =IFERROR(VLOOKUP(A112,CADASTRO!C:F,3,FALSE),"") -> 0 | D112: =IFERROR(VLOOKUP(A112,CADASTRO!C:F,4,0),"") -> CONFEITARIA DOCE | E112: =IFERROR(VLOOKUP(A112,CADASTRO!C:R,16,0),"") ->  | J112: =SUMIF(ENTRADAS!A:E,A112,ENTRADAS!E:E) -> 0 | M112: =SUMIF(SAÍDAS!A:E,PRODUTOS!A112,SAÍDAS!E:E) -> 0 | P112: 0 | S112: 0 | V112: 0
A113: 140 | B113: =IF(A113="","",IFERROR(VLOOKUP(A113,CADASTRO!C:F,2,FALSE),"")) -> PÃO DE LÓ (CHOCOLATE) | C113: =IFERROR(VLOOKUP(A113,CADASTRO!C:F,3,FALSE),"") -> 0 | D113: =IFERROR(VLOOKUP(A113,CADASTRO!C:F,4,0),"") -> CONFEITARIA DOCE | E113: =IFERROR(VLOOKUP(A113,CADASTRO!C:R,16,0),"") ->  | J113: =SUMIF(ENTRADAS!A:E,A113,ENTRADAS!E:E) -> 0 | M113: =SUMIF(SAÍDAS!A:E,PRODUTOS!A113,SAÍDAS!E:E) -> 0 | P113: 0 | S113: 0 | V113: 0
A114: 141 | B114: =IF(A114="","",IFERROR(VLOOKUP(A114,CADASTRO!C:F,2,FALSE),"")) -> PÃO DE MANIÇOBA | C114: =IFERROR(VLOOKUP(A114,CADASTRO!C:F,3,FALSE),"") -> 0 | D114: =IFERROR(VLOOKUP(A114,CADASTRO!C:F,4,0),"") -> PADARIA RÚSTICA | E114: =IFERROR(VLOOKUP(A114,CADASTRO!C:R,16,0),"") ->  | J114: =SUMIF(ENTRADAS!A:E,A114,ENTRADAS!E:E) -> 0 | M114: =SUMIF(SAÍDAS!A:E,PRODUTOS!A114,SAÍDAS!E:E) -> 0 | P114: 0 | S114: 0 | V114: 0
A115: 142 | B115: =IF(A115="","",IFERROR(VLOOKUP(A115,CADASTRO!C:F,2,FALSE),"")) -> PÃO DE PATO | C115: =IFERROR(VLOOKUP(A115,CADASTRO!C:F,3,FALSE),"") -> 0 | D115: =IFERROR(VLOOKUP(A115,CADASTRO!C:F,4,0),"") -> PADARIA RÚSTICA | E115: =IFERROR(VLOOKUP(A115,CADASTRO!C:R,16,0),"") ->  | J115: =SUMIF(ENTRADAS!A:E,A115,ENTRADAS!E:E) -> 0 | M115: =SUMIF(SAÍDAS!A:E,PRODUTOS!A115,SAÍDAS!E:E) -> 0 | P115: 0 | S115: 0 | V115: 0
A116: 143 | B116: =IF(A116="","",IFERROR(VLOOKUP(A116,CADASTRO!C:F,2,FALSE),"")) -> PÃO DE PUPUNHA | C116: =IFERROR(VLOOKUP(A116,CADASTRO!C:F,3,FALSE),"") -> 0 | D116: =IFERROR(VLOOKUP(A116,CADASTRO!C:F,4,0),"") -> PADARIA RÚSTICA | E116: =IFERROR(VLOOKUP(A116,CADASTRO!C:R,16,0),"") ->  | J116: =SUMIF(ENTRADAS!A:E,A116,ENTRADAS!E:E) -> 0 | M116: =SUMIF(SAÍDAS!A:E,PRODUTOS!A116,SAÍDAS!E:E) -> 0 | P116: 0 | S116: 0 | V116: 0
A117: 144 | B117: =IF(A117="","",IFERROR(VLOOKUP(A117,CADASTRO!C:F,2,FALSE),"")) -> PÃO DE ROSAS | C117: =IFERROR(VLOOKUP(A117,CADASTRO!C:F,3,FALSE),"") -> 0 | D117: =IFERROR(VLOOKUP(A117,CADASTRO!C:F,4,0),"") -> FOLHATERIA | E117: =IFERROR(VLOOKUP(A117,CADASTRO!C:R,16,0),"") ->  | J117: =SUMIF(ENTRADAS!A:E,A117,ENTRADAS!E:E) -> 21 | M117: =SUMIF(SAÍDAS!A:E,PRODUTOS!A117,SAÍDAS!E:E) -> 21 | P117: 0 | S117: 0 | V117: 0
A118: 145 | B118: =IF(A118="","",IFERROR(VLOOKUP(A118,CADASTRO!C:F,2,FALSE),"")) -> PÃO DE VINHO / CALABRESA | C118: =IFERROR(VLOOKUP(A118,CADASTRO!C:F,3,FALSE),"") -> 0 | D118: =IFERROR(VLOOKUP(A118,CADASTRO!C:F,4,0),"") -> PADARIA RÚSTICA | E118: =IFERROR(VLOOKUP(A118,CADASTRO!C:R,16,0),"") ->  | J118: =SUMIF(ENTRADAS!A:E,A118,ENTRADAS!E:E) -> 0 | M118: =SUMIF(SAÍDAS!A:E,PRODUTOS!A118,SAÍDAS!E:E) -> 0 | P118: 0 | S118: 0 | V118: 0
A119: 146 | B119: =IF(A119="","",IFERROR(VLOOKUP(A119,CADASTRO!C:F,2,FALSE),"")) -> PÃO DOCE LIEVITO | C119: =IFERROR(VLOOKUP(A119,CADASTRO!C:F,3,FALSE),"") -> 0 | D119: =IFERROR(VLOOKUP(A119,CADASTRO!C:F,4,0),"") -> PADARIA TRADICIONAL | E119: =IFERROR(VLOOKUP(A119,CADASTRO!C:R,16,0),"") ->  | G119: 37 | J119: =SUMIF(ENTRADAS!A:E,A119,ENTRADAS!E:E) -> 0 | M119: =SUMIF(SAÍDAS!A:E,PRODUTOS!A119,SAÍDAS!E:E) -> 16 | P119: 21 | S119: 21 | V119: 0
A120: 147 | B120: =IF(A120="","",IFERROR(VLOOKUP(A120,CADASTRO!C:F,2,FALSE),"")) -> PÃO FOCACCIA C/ AZEITONAS | C120: =IFERROR(VLOOKUP(A120,CADASTRO!C:F,3,FALSE),"") -> 0 | D120: =IFERROR(VLOOKUP(A120,CADASTRO!C:F,4,0),"") -> PADARIA RÚSTICA | E120: =IFERROR(VLOOKUP(A120,CADASTRO!C:R,16,0),"") ->  | J120: =SUMIF(ENTRADAS!A:E,A120,ENTRADAS!E:E) -> 0 | M120: =SUMIF(SAÍDAS!A:E,PRODUTOS!A120,SAÍDAS!E:E) -> 0 | P120: 0 | S120: 0 | V120: 0
A121: 148 | B121: =IF(A121="","",IFERROR(VLOOKUP(A121,CADASTRO!C:F,2,FALSE),"")) -> PÃO FOCACCIA C/ BACON | C121: =IFERROR(VLOOKUP(A121,CADASTRO!C:F,3,FALSE),"") -> 0 | D121: =IFERROR(VLOOKUP(A121,CADASTRO!C:F,4,0),"") -> PADARIA RÚSTICA | E121: =IFERROR(VLOOKUP(A121,CADASTRO!C:R,16,0),"") ->  | J121: =SUMIF(ENTRADAS!A:E,A121,ENTRADAS!E:E) -> 0 | M121: =SUMIF(SAÍDAS!A:E,PRODUTOS!A121,SAÍDAS!E:E) -> 0 | P121: 0 | S121: 0 | V121: 0
A122: 149 | B122: =IF(A122="","",IFERROR(VLOOKUP(A122,CADASTRO!C:F,2,FALSE),"")) -> PÃO FOCACCIA C/ CEBOLA | C122: =IFERROR(VLOOKUP(A122,CADASTRO!C:F,3,FALSE),"") -> 0 | D122: =IFERROR(VLOOKUP(A122,CADASTRO!C:F,4,0),"") -> PADARIA RÚSTICA | E122: =IFERROR(VLOOKUP(A122,CADASTRO!C:R,16,0),"") ->  | J122: =SUMIF(ENTRADAS!A:E,A122,ENTRADAS!E:E) -> 0 | M122: =SUMIF(SAÍDAS!A:E,PRODUTOS!A122,SAÍDAS!E:E) -> 0 | P122: 0 | S122: 0 | V122: 0
A123: 150 | B123: =IF(A123="","",IFERROR(VLOOKUP(A123,CADASTRO!C:F,2,FALSE),"")) -> PÃO FOCACCIA GÊNOVA | C123: =IFERROR(VLOOKUP(A123,CADASTRO!C:F,3,FALSE),"") -> 0 | D123: =IFERROR(VLOOKUP(A123,CADASTRO!C:F,4,0),"") -> PADARIA RÚSTICA | E123: =IFERROR(VLOOKUP(A123,CADASTRO!C:R,16,0),"") ->  | J123: =SUMIF(ENTRADAS!A:E,A123,ENTRADAS!E:E) -> 0 | M123: =SUMIF(SAÍDAS!A:E,PRODUTOS!A123,SAÍDAS!E:E) -> 0 | P123: 0 | S123: 0 | V123: 0
A124: 151 | B124: =IF(A124="","",IFERROR(VLOOKUP(A124,CADASTRO!C:F,2,FALSE),"")) -> PÃO FOCACCIA POMODORI | C124: =IFERROR(VLOOKUP(A124,CADASTRO!C:F,3,FALSE),"") -> 0 | D124: =IFERROR(VLOOKUP(A124,CADASTRO!C:F,4,0),"") -> PADARIA RÚSTICA | E124: =IFERROR(VLOOKUP(A124,CADASTRO!C:R,16,0),"") ->  | J124: =SUMIF(ENTRADAS!A:E,A124,ENTRADAS!E:E) -> 0 | M124: =SUMIF(SAÍDAS!A:E,PRODUTOS!A124,SAÍDAS!E:E) -> 0 | P124: 0 | S124: 0 | V124: 0
A125: 152 | B125: =IF(A125="","",IFERROR(VLOOKUP(A125,CADASTRO!C:F,2,FALSE),"")) -> PÃO BAGUETE 18H | C125: =IFERROR(VLOOKUP(A125,CADASTRO!C:F,3,FALSE),"") -> 0 | D125: =IFERROR(VLOOKUP(A125,CADASTRO!C:F,4,0),"") -> PADARIA TRADICIONAL | E125: =IFERROR(VLOOKUP(A125,CADASTRO!C:R,16,0),"") ->  | J125: =SUMIF(ENTRADAS!A:E,A125,ENTRADAS!E:E) -> 0 | M125: =SUMIF(SAÍDAS!A:E,PRODUTOS!A125,SAÍDAS!E:E) -> 0 | P125: 0 | S125: 0 | V125: 0
A126: 153 | B126: =IF(A126="","",IFERROR(VLOOKUP(A126,CADASTRO!C:F,2,FALSE),"")) -> PÃO FORMA BATATA A25 | C126: =IFERROR(VLOOKUP(A126,CADASTRO!C:F,3,FALSE),"") -> 0 | D126: =IFERROR(VLOOKUP(A126,CADASTRO!C:F,4,0),"") -> PADARIA TRADICIONAL | E126: =IFERROR(VLOOKUP(A126,CADASTRO!C:R,16,0),"") ->  | G126: 52 | J126: =SUMIF(ENTRADAS!A:E,A126,ENTRADAS!E:E) -> 68 | M126: =SUMIF(SAÍDAS!A:E,PRODUTOS!A126,SAÍDAS!E:E) -> 94 | P126: 26 | S126: 26 | V126: 0
A127: 154 | B127: =IF(A127="","",IFERROR(VLOOKUP(A127,CADASTRO!C:F,2,FALSE),"")) -> PÃO FORMA BRIOCHE A25 | C127: =IFERROR(VLOOKUP(A127,CADASTRO!C:F,3,FALSE),"") -> 0 | D127: =IFERROR(VLOOKUP(A127,CADASTRO!C:F,4,0),"") -> PADARIA TRADICIONAL | E127: =IFERROR(VLOOKUP(A127,CADASTRO!C:R,16,0),"") ->  | G127: 33 | J127: =SUMIF(ENTRADAS!A:E,A127,ENTRADAS!E:E) -> 226 | M127: =SUMIF(SAÍDAS!A:E,PRODUTOS!A127,SAÍDAS!E:E) -> 182 | P127: 77 | S127: 77 | V127: 0
A128: 155 | B128: =IF(A128="","",IFERROR(VLOOKUP(A128,CADASTRO!C:F,2,FALSE),"")) -> PÃO FORMA INTEGRAL 1000 | C128: =IFERROR(VLOOKUP(A128,CADASTRO!C:F,3,FALSE),"") -> 0 | D128: =IFERROR(VLOOKUP(A128,CADASTRO!C:F,4,0),"") -> PADARIA TRADICIONAL | E128: =IFERROR(VLOOKUP(A128,CADASTRO!C:R,16,0),"") ->  | G128: 10 | J128: =SUMIF(ENTRADAS!A:E,A128,ENTRADAS!E:E) -> 62 | M128: =SUMIF(SAÍDAS!A:E,PRODUTOS!A128,SAÍDAS!E:E) -> 47 | P128: 25 | S128: 25 | V128: 0
A129: 156 | B129: =IF(A129="","",IFERROR(VLOOKUP(A129,CADASTRO!C:F,2,FALSE),"")) -> PÃO FORMA INTEGRAL 700 | C129: =IFERROR(VLOOKUP(A129,CADASTRO!C:F,3,FALSE),"") -> 0 | D129: =IFERROR(VLOOKUP(A129,CADASTRO!C:F,4,0),"") -> PADARIA TRADICIONAL | E129: =IFERROR(VLOOKUP(A129,CADASTRO!C:R,16,0),"") ->  | G129: 14 | J129: =SUMIF(ENTRADAS!A:E,A129,ENTRADAS!E:E) -> 30 | M129: =SUMIF(SAÍDAS!A:E,PRODUTOS!A129,SAÍDAS!E:E) -> 28 | P129: 16 | S129: 16 | V129: 0
A130: 157 | B130: =IF(A130="","",IFERROR(VLOOKUP(A130,CADASTRO!C:F,2,FALSE),"")) -> PÃO FORMA LEITE A25 | C130: =IFERROR(VLOOKUP(A130,CADASTRO!C:F,3,FALSE),"") -> 0 | D130: =IFERROR(VLOOKUP(A130,CADASTRO!C:F,4,0),"") -> PADARIA TRADICIONAL | E130: =IFERROR(VLOOKUP(A130,CADASTRO!C:R,16,0),"") ->  | G130: 28 | J130: =SUMIF(ENTRADAS!A:E,A130,ENTRADAS!E:E) -> 128 | M130: =SUMIF(SAÍDAS!A:E,PRODUTOS!A130,SAÍDAS!E:E) -> 107 | P130: 49 | S130: 49 | V130: 0
A131: 158 | B131: =IF(A131="","",IFERROR(VLOOKUP(A131,CADASTRO!C:F,2,FALSE),"")) -> PÃO FORMA MILHO A25 | C131: =IFERROR(VLOOKUP(A131,CADASTRO!C:F,3,FALSE),"") -> 0 | D131: =IFERROR(VLOOKUP(A131,CADASTRO!C:F,4,0),"") -> PADARIA TRADICIONAL | E131: =IFERROR(VLOOKUP(A131,CADASTRO!C:R,16,0),"") ->  | J131: =SUMIF(ENTRADAS!A:E,A131,ENTRADAS!E:E) -> 86 | M131: =SUMIF(SAÍDAS!A:E,PRODUTOS!A131,SAÍDAS!E:E) -> 86 | P131: =G131+J131-M131 -> 0 | S131: 0 | V131: 0
A132: 159 | B132: =IF(A132="","",IFERROR(VLOOKUP(A132,CADASTRO!C:F,2,FALSE),"")) -> PÃO FORMA TRADICIONAL 1000 | C132: =IFERROR(VLOOKUP(A132,CADASTRO!C:F,3,FALSE),"") -> 0 | D132: =IFERROR(VLOOKUP(A132,CADASTRO!C:F,4,0),"") -> PADARIA TRADICIONAL | E132: =IFERROR(VLOOKUP(A132,CADASTRO!C:R,16,0),"") ->  | G132: 3 | J132: =SUMIF(ENTRADAS!A:E,A132,ENTRADAS!E:E) -> 65 | K132: =IFERROR(J132*$E132,"") ->  | M132: =SUMIF(SAÍDAS!A:E,PRODUTOS!A132,SAÍDAS!E:E) -> 47 | N132: =IFERROR(M132*$E132,"") ->  | P132: 21 | Q132: =IFERROR(P132*$E132,"") ->  | S132: =P132 -> 21 | T132: =IFERROR(S132*$E132,"") ->  | V132: =S132-P132 -> 0 | W132: =IFERROR(V132*$E132,"") -> 
A133: 160 | B133: =IF(A133="","",IFERROR(VLOOKUP(A133,CADASTRO!C:F,2,FALSE),"")) -> PÃO FORMA TRADICIONAL 700 | C133: =IFERROR(VLOOKUP(A133,CADASTRO!C:F,3,FALSE),"") -> 0 | D133: =IFERROR(VLOOKUP(A133,CADASTRO!C:F,4,0),"") -> PADARIA TRADICIONAL | E133: =IFERROR(VLOOKUP(A133,CADASTRO!C:R,16,0),"") ->  | G133: 13 | J133: =SUMIF(ENTRADAS!A:E,A133,ENTRADAS!E:E) -> 20 | M133: =SUMIF(SAÍDAS!A:E,PRODUTOS!A133,SAÍDAS!E:E) -> 26 | P133: 7 | S133: 7 | V133: 0
A134: 161 | B134: =IF(A134="","",IFERROR(VLOOKUP(A134,CADASTRO!C:F,2,FALSE),"")) -> PÃO FRANCÊS 10H | C134: =IFERROR(VLOOKUP(A134,CADASTRO!C:F,3,FALSE),"") -> 0 | D134: =IFERROR(VLOOKUP(A134,CADASTRO!C:F,4,0),"") -> PADARIA TRADICIONAL | E134: =IFERROR(VLOOKUP(A134,CADASTRO!C:R,16,0),"") ->  | G134: 30 | J134: =SUMIF(ENTRADAS!A:E,A134,ENTRADAS!E:E) -> 165 | M134: =SUMIF(SAÍDAS!A:E,PRODUTOS!A134,SAÍDAS!E:E) -> 225 | P134: -30 | S134: -30 | V134: 0
A135: 162 | B135: =IF(A135="","",IFERROR(VLOOKUP(A135,CADASTRO!C:F,2,FALSE),"")) -> PÃO FRANCÊS 18H | C135: =IFERROR(VLOOKUP(A135,CADASTRO!C:F,3,FALSE),"") -> 0 | D135: =IFERROR(VLOOKUP(A135,CADASTRO!C:F,4,0),"") -> PADARIA TRADICIONAL | E135: =IFERROR(VLOOKUP(A135,CADASTRO!C:R,16,0),"") ->  | J135: =SUMIF(ENTRADAS!A:E,A135,ENTRADAS!E:E) -> 0 | M135: =SUMIF(SAÍDAS!A:E,PRODUTOS!A135,SAÍDAS!E:E) -> 35 | P135: -35 | S135: -35 | V135: 0
A136: 163 | B136: =IF(A136="","",IFERROR(VLOOKUP(A136,CADASTRO!C:F,2,FALSE),"")) -> PÃO FRANCÊS 5H | C136: =IFERROR(VLOOKUP(A136,CADASTRO!C:F,3,FALSE),"") -> 0 | D136: =IFERROR(VLOOKUP(A136,CADASTRO!C:F,4,0),"") -> PADARIA TRADICIONAL | E136: =IFERROR(VLOOKUP(A136,CADASTRO!C:R,16,0),"") ->  | G136: 115 | J136: =SUMIF(ENTRADAS!A:E,A136,ENTRADAS!E:E) -> 75 | M136: =SUMIF(SAÍDAS!A:E,PRODUTOS!A136,SAÍDAS!E:E) -> 200 | P136: -10 | S136: -10 | V136: 0
A137: 164 | B137: =IF(A137="","",IFERROR(VLOOKUP(A137,CADASTRO!C:F,2,FALSE),"")) -> PÃO ITALIANO FILÃO | C137: =IFERROR(VLOOKUP(A137,CADASTRO!C:F,3,FALSE),"") -> 0 | D137: =IFERROR(VLOOKUP(A137,CADASTRO!C:F,4,0),"") -> PADARIA RÚSTICA | E137: =IFERROR(VLOOKUP(A137,CADASTRO!C:R,16,0),"") ->  | J137: =SUMIF(ENTRADAS!A:E,A137,ENTRADAS!E:E) -> 0 | M137: =SUMIF(SAÍDAS!A:E,PRODUTOS!A137,SAÍDAS!E:E) -> 0 | P137: 0 | S137: 0 | V137: 0
A138: 165 | B138: =IF(A138="","",IFERROR(VLOOKUP(A138,CADASTRO!C:F,2,FALSE),"")) -> PÃO ITALIANO PAVÊ | C138: =IFERROR(VLOOKUP(A138,CADASTRO!C:F,3,FALSE),"") -> 0 | D138: =IFERROR(VLOOKUP(A138,CADASTRO!C:F,4,0),"") -> PADARIA RÚSTICA | E138: =IFERROR(VLOOKUP(A138,CADASTRO!C:R,16,0),"") ->  | J138: =SUMIF(ENTRADAS!A:E,A138,ENTRADAS!E:E) -> 0 | M138: =SUMIF(SAÍDAS!A:E,PRODUTOS!A138,SAÍDAS!E:E) -> 0 | P138: 0 | S138: 0 | V138: 0
A139: 166 | B139: =IF(A139="","",IFERROR(VLOOKUP(A139,CADASTRO!C:F,2,FALSE),"")) -> PÃO PORTUGUÊS | C139: =IFERROR(VLOOKUP(A139,CADASTRO!C:F,3,FALSE),"") -> 0 | D139: =IFERROR(VLOOKUP(A139,CADASTRO!C:F,4,0),"") -> PADARIA RÚSTICA | E139: =IFERROR(VLOOKUP(A139,CADASTRO!C:R,16,0),"") ->  | J139: =SUMIF(ENTRADAS!A:E,A139,ENTRADAS!E:E) -> 0 | M139: =SUMIF(SAÍDAS!A:E,PRODUTOS!A139,SAÍDAS!E:E) -> 0 | P139: 0 | S139: 0 | V139: 0
A140: 167 | B140: =IF(A140="","",IFERROR(VLOOKUP(A140,CADASTRO!C:F,2,FALSE),"")) -> PÃO QUEIJO CALABRESA | C140: =IFERROR(VLOOKUP(A140,CADASTRO!C:F,3,FALSE),"") -> 0 | D140: =IFERROR(VLOOKUP(A140,CADASTRO!C:F,4,0),"") -> PADARIA TRADICIONAL | E140: =IFERROR(VLOOKUP(A140,CADASTRO!C:R,16,0),"") ->  | J140: =SUMIF(ENTRADAS!A:E,A140,ENTRADAS!E:E) -> 21 | M140: 2.5 | P140: 18.5 | S140: 18.5 | V140: 0
A141: 168 | B141: =IF(A141="","",IFERROR(VLOOKUP(A141,CADASTRO!C:F,2,FALSE),"")) -> PÃO QUEIJO CUIA | C141: =IFERROR(VLOOKUP(A141,CADASTRO!C:F,3,FALSE),"") -> 0 | D141: =IFERROR(VLOOKUP(A141,CADASTRO!C:F,4,0),"") -> PADARIA TRADICIONAL | E141: =IFERROR(VLOOKUP(A141,CADASTRO!C:R,16,0),"") ->  | J141: =SUMIF(ENTRADAS!A:E,A141,ENTRADAS!E:E) -> 0 | M141: =SUMIF(SAÍDAS!A:E,PRODUTOS!A141,SAÍDAS!E:E) -> 0 | P141: 0 | S141: 0 | V141: 0
A142: 169 | B142: =IF(A142="","",IFERROR(VLOOKUP(A142,CADASTRO!C:F,2,FALSE),"")) -> PÃO SEMI ITALIANO | C142: =IFERROR(VLOOKUP(A142,CADASTRO!C:F,3,FALSE),"") -> 0 | D142: =IFERROR(VLOOKUP(A142,CADASTRO!C:F,4,0),"") -> PADARIA TRADICIONAL | E142: =IFERROR(VLOOKUP(A142,CADASTRO!C:R,16,0),"") ->  | G142: 74 | J142: =SUMIF(ENTRADAS!A:E,A142,ENTRADAS!E:E) -> 142 | M142: =SUMIF(SAÍDAS!A:E,PRODUTOS!A142,SAÍDAS!E:E) -> 161 | P142: 55 | S142: 55 | V142: 0
A143: 170 | B143: =IF(A143="","",IFERROR(VLOOKUP(A143,CADASTRO!C:F,2,FALSE),"")) -> PÃO VIENNOIS | C143: =IFERROR(VLOOKUP(A143,CADASTRO!C:F,3,FALSE),"") -> 0 | D143: =IFERROR(VLOOKUP(A143,CADASTRO!C:F,4,0),"") -> PADARIA TRADICIONAL | E143: =IFERROR(VLOOKUP(A143,CADASTRO!C:R,16,0),"") ->  | G143: 129 | J143: =SUMIF(ENTRADAS!A:E,A143,ENTRADAS!E:E) -> 191 | M143: =SUMIF(SAÍDAS!A:E,PRODUTOS!A143,SAÍDAS!E:E) -> 169 | P143: 151 | S143: 151 | V143: 0
A144: 171 | B144: =IF(A144="","",IFERROR(VLOOKUP(A144,CADASTRO!C:F,2,FALSE),"")) -> PÃO BAGUETE 5H | C144: =IFERROR(VLOOKUP(A144,CADASTRO!C:F,3,FALSE),"") -> 0 | D144: =IFERROR(VLOOKUP(A144,CADASTRO!C:F,4,0),"") -> PADARIA TRADICIONAL | E144: =IFERROR(VLOOKUP(A144,CADASTRO!C:R,16,0),"") ->  | J144: =SUMIF(ENTRADAS!A:E,A144,ENTRADAS!E:E) -> 0 | M144: =SUMIF(SAÍDAS!A:E,PRODUTOS!A144,SAÍDAS!E:E) -> 0 | P144: 0 | S144: 0 | V144: 0
A145: 172 | B145: =IF(A145="","",IFERROR(VLOOKUP(A145,CADASTRO!C:F,2,FALSE),"")) -> PASTEL DE BELÉM (MASSA) | C145: =IFERROR(VLOOKUP(A145,CADASTRO!C:F,3,FALSE),"") -> 0 | D145: =IFERROR(VLOOKUP(A145,CADASTRO!C:F,4,0),"") -> FOLHATERIA | E145: =IFERROR(VLOOKUP(A145,CADASTRO!C:R,16,0),"") ->  | J145: =SUMIF(ENTRADAS!A:E,A145,ENTRADAS!E:E) -> 24 | M145: =SUMIF(SAÍDAS!A:E,PRODUTOS!A145,SAÍDAS!E:E) -> 8 | P145: 16 | S145: 16 | V145: 0
A146: 173 | B146: =IF(A146="","",IFERROR(VLOOKUP(A146,CADASTRO!C:F,2,FALSE),"")) -> PASTEL FOLHADO BACALHAU | C146: =IFERROR(VLOOKUP(A146,CADASTRO!C:F,3,FALSE),"") -> 0 | D146: =IFERROR(VLOOKUP(A146,CADASTRO!C:F,4,0),"") -> FOLHATERIA | E146: =IFERROR(VLOOKUP(A146,CADASTRO!C:R,16,0),"") ->  | G146: 27 | J146: =SUMIF(ENTRADAS!A:E,A146,ENTRADAS!E:E) -> 72 | M146: =SUMIF(SAÍDAS!A:E,PRODUTOS!A146,SAÍDAS!E:E) -> 42 | P146: 57 | S146: 57 | V146: 0
A147: 174 | B147: =IF(A147="","",IFERROR(VLOOKUP(A147,CADASTRO!C:F,2,FALSE),"")) -> PASTEL FOLHADO FRANGO | C147: =IFERROR(VLOOKUP(A147,CADASTRO!C:F,3,FALSE),"") -> 0 | D147: =IFERROR(VLOOKUP(A147,CADASTRO!C:F,4,0),"") -> FOLHATERIA | E147: =IFERROR(VLOOKUP(A147,CADASTRO!C:R,16,0),"") ->  | G147: 42 | J147: =SUMIF(ENTRADAS!A:E,A147,ENTRADAS!E:E) -> 72 | M147: =SUMIF(SAÍDAS!A:E,PRODUTOS!A147,SAÍDAS!E:E) -> 45 | P147: 69 | S147: 69 | V147: 0
A148: 175 | B148: =IF(A148="","",IFERROR(VLOOKUP(A148,CADASTRO!C:F,2,FALSE),"")) -> PASTEL FOLHADO MISTO | C148: =IFERROR(VLOOKUP(A148,CADASTRO!C:F,3,FALSE),"") -> 0 | D148: =IFERROR(VLOOKUP(A148,CADASTRO!C:F,4,0),"") -> FOLHATERIA | E148: =IFERROR(VLOOKUP(A148,CADASTRO!C:R,16,0),"") ->  | J148: =SUMIF(ENTRADAS!A:E,A148,ENTRADAS!E:E) -> 108 | M148: =SUMIF(SAÍDAS!A:E,PRODUTOS!A148,SAÍDAS!E:E) -> 108 | P148: 0 | S148: 0 | V148: 0
A149: 176 | B149: =IF(A149="","",IFERROR(VLOOKUP(A149,CADASTRO!C:F,2,FALSE),"")) -> PASTEL FOLHADO QUEIJO | C149: =IFERROR(VLOOKUP(A149,CADASTRO!C:F,3,FALSE),"") -> 0 | D149: =IFERROR(VLOOKUP(A149,CADASTRO!C:F,4,0),"") -> FOLHATERIA | E149: =IFERROR(VLOOKUP(A149,CADASTRO!C:R,16,0),"") ->  | J149: =SUMIF(ENTRADAS!A:E,A149,ENTRADAS!E:E) -> 180 | M149: =SUMIF(SAÍDAS!A:E,PRODUTOS!A149,SAÍDAS!E:E) -> 108 | P149: 72 | S149: 72 | V149: 0
A150: 180 | B150: =IF(A150="","",IFERROR(VLOOKUP(A150,CADASTRO!C:F,2,FALSE),"")) -> PIZZA FOLHADA MIX FRIOS | C150: =IFERROR(VLOOKUP(A150,CADASTRO!C:F,3,FALSE),"") -> 0 | D150: =IFERROR(VLOOKUP(A150,CADASTRO!C:F,4,0),"") -> FOLHATERIA | E150: =IFERROR(VLOOKUP(A150,CADASTRO!C:R,16,0),"") ->  | J150: =SUMIF(ENTRADAS!A:E,A150,ENTRADAS!E:E) -> 85 | M150: =SUMIF(SAÍDAS!A:E,PRODUTOS!A150,SAÍDAS!E:E) -> 65 | P150: 20 | S150: 20 | V150: 0
A151: 181 | B151: =IF(A151="","",IFERROR(VLOOKUP(A151,CADASTRO!C:F,2,FALSE),"")) -> PIZZA INTEGRAL (MASSA) | C151: =IFERROR(VLOOKUP(A151,CADASTRO!C:F,3,FALSE),"") -> 0 | D151: =IFERROR(VLOOKUP(A151,CADASTRO!C:F,4,0),"") -> PADARIA TRADICIONAL | E151: =IFERROR(VLOOKUP(A151,CADASTRO!C:R,16,0),"") ->  | G151: 11 | J151: =SUMIF(ENTRADAS!A:E,A151,ENTRADAS!E:E) -> 32 | M151: =SUMIF(SAÍDAS!A:E,PRODUTOS!A151,SAÍDAS!E:E) -> 11 | P151: 32 | S151: 32 | V151: 0
A152: 182 | B152: =IF(A152="","",IFERROR(VLOOKUP(A152,CADASTRO!C:F,2,FALSE),"")) -> PIZZA ROMANA BACON | C152: =IFERROR(VLOOKUP(A152,CADASTRO!C:F,3,FALSE),"") -> 0 | D152: =IFERROR(VLOOKUP(A152,CADASTRO!C:F,4,0),"") -> PADARIA RÚSTICA | E152: =IFERROR(VLOOKUP(A152,CADASTRO!C:R,16,0),"") ->  | J152: =SUMIF(ENTRADAS!A:E,A152,ENTRADAS!E:E) -> 0 | M152: =SUMIF(SAÍDAS!A:E,PRODUTOS!A152,SAÍDAS!E:E) -> 0 | P152: 0 | S152: 0 | V152: 0
A153: 183 | B153: =IF(A153="","",IFERROR(VLOOKUP(A153,CADASTRO!C:F,2,FALSE),"")) -> PIZZA ROMANA CALABRESA | C153: =IFERROR(VLOOKUP(A153,CADASTRO!C:F,3,FALSE),"") -> 0 | D153: =IFERROR(VLOOKUP(A153,CADASTRO!C:F,4,0),"") -> PADARIA RÚSTICA | E153: =IFERROR(VLOOKUP(A153,CADASTRO!C:R,16,0),"") ->  | J153: =SUMIF(ENTRADAS!A:E,A153,ENTRADAS!E:E) -> 0 | M153: =SUMIF(SAÍDAS!A:E,PRODUTOS!A153,SAÍDAS!E:E) -> 0 | P153: 0 | S153: 0 | V153: 0
A154: 184 | B154: =IF(A154="","",IFERROR(VLOOKUP(A154,CADASTRO!C:F,2,FALSE),"")) -> PIZZA ROMANA MARGUERITA | C154: =IFERROR(VLOOKUP(A154,CADASTRO!C:F,3,FALSE),"") -> 0 | D154: =IFERROR(VLOOKUP(A154,CADASTRO!C:F,4,0),"") -> PADARIA RÚSTICA | E154: =IFERROR(VLOOKUP(A154,CADASTRO!C:R,16,0),"") ->  | J154: =SUMIF(ENTRADAS!A:E,A154,ENTRADAS!E:E) -> 0 | M154: =SUMIF(SAÍDAS!A:E,PRODUTOS!A154,SAÍDAS!E:E) -> 0 | P154: 0 | S154: 0 | V154: 0
A155: 185 | B155: =IF(A155="","",IFERROR(VLOOKUP(A155,CADASTRO!C:F,2,FALSE),"")) -> PIZZA ROMANA MEXICANA | C155: =IFERROR(VLOOKUP(A155,CADASTRO!C:F,3,FALSE),"") -> 0 | D155: =IFERROR(VLOOKUP(A155,CADASTRO!C:F,4,0),"") -> PADARIA RÚSTICA | E155: =IFERROR(VLOOKUP(A155,CADASTRO!C:R,16,0),"") ->  | J155: =SUMIF(ENTRADAS!A:E,A155,ENTRADAS!E:E) -> 0 | M155: =SUMIF(SAÍDAS!A:E,PRODUTOS!A155,SAÍDAS!E:E) -> 0 | P155: 0 | S155: 0 | V155: 0
A156: 186 | B156: =IF(A156="","",IFERROR(VLOOKUP(A156,CADASTRO!C:F,2,FALSE),"")) -> PLACA BRANCA | C156: =IFERROR(VLOOKUP(A156,CADASTRO!C:F,3,FALSE),"") -> 0 | D156: =IFERROR(VLOOKUP(A156,CADASTRO!C:F,4,0),"") -> CONFEITARIA DOCE | E156: =IFERROR(VLOOKUP(A156,CADASTRO!C:R,16,0),"") ->  | J156: =SUMIF(ENTRADAS!A:E,A156,ENTRADAS!E:E) -> 0 | M156: =SUMIF(SAÍDAS!A:E,PRODUTOS!A156,SAÍDAS!E:E) -> 0 | P156: 0 | S156: 0 | V156: 0
A157: 187 | B157: =IF(A157="","",IFERROR(VLOOKUP(A157,CADASTRO!C:F,2,FALSE),"")) -> PLACA CHOCOLATE | C157: =IFERROR(VLOOKUP(A157,CADASTRO!C:F,3,FALSE),"") -> 0 | D157: =IFERROR(VLOOKUP(A157,CADASTRO!C:F,4,0),"") -> CONFEITARIA DOCE | E157: =IFERROR(VLOOKUP(A157,CADASTRO!C:R,16,0),"") ->  | J157: =SUMIF(ENTRADAS!A:E,A157,ENTRADAS!E:E) -> 0 | M157: =SUMIF(SAÍDAS!A:E,PRODUTOS!A157,SAÍDAS!E:E) -> 0 | P157: 0 | S157: 0 | V157: 0
A158: 188 | B158: =IF(A158="","",IFERROR(VLOOKUP(A158,CADASTRO!C:F,2,FALSE),"")) -> PLACA QUADRADINHO | C158: =IFERROR(VLOOKUP(A158,CADASTRO!C:F,3,FALSE),"") -> 0 | D158: =IFERROR(VLOOKUP(A158,CADASTRO!C:F,4,0),"") -> CONFEITARIA DOCE | E158: =IFERROR(VLOOKUP(A158,CADASTRO!C:R,16,0),"") ->  | J158: =SUMIF(ENTRADAS!A:E,A158,ENTRADAS!E:E) -> 0 | M158: =SUMIF(SAÍDAS!A:E,PRODUTOS!A158,SAÍDAS!E:E) -> 0 | P158: 0 | S158: 0 | V158: 0
A159: 189 | B159: =IF(A159="","",IFERROR(VLOOKUP(A159,CADASTRO!C:F,2,FALSE),"")) -> PLACA UVINHA | C159: =IFERROR(VLOOKUP(A159,CADASTRO!C:F,3,FALSE),"") -> 0 | D159: =IFERROR(VLOOKUP(A159,CADASTRO!C:F,4,0),"") -> CONFEITARIA DOCE | E159: =IFERROR(VLOOKUP(A159,CADASTRO!C:R,16,0),"") ->  | J159: =SUMIF(ENTRADAS!A:E,A159,ENTRADAS!E:E) -> 0 | M159: =SUMIF(SAÍDAS!A:E,PRODUTOS!A159,SAÍDAS!E:E) -> 0 | P159: 0 | S159: 0 | V159: 0
A160: 222 | B160: =IF(A160="","",IFERROR(VLOOKUP(A160,CADASTRO!C:F,2,FALSE),"")) -> QUICHE 4 QUEIJOS | C160: =IFERROR(VLOOKUP(A160,CADASTRO!C:F,3,FALSE),"") -> 0 | D160: =IFERROR(VLOOKUP(A160,CADASTRO!C:F,4,0),"") -> QUITUTERIA | E160: =IFERROR(VLOOKUP(A160,CADASTRO!C:R,16,0),"") ->  | G160: 74 | J160: =SUMIF(ENTRADAS!A:E,A160,ENTRADAS!E:E) -> 0 | M160: =SUMIF(SAÍDAS!A:E,PRODUTOS!A160,SAÍDAS!E:E) -> 31 | P160: 43 | S160: 43 | V160: 0
A161: 223 | B161: =IF(A161="","",IFERROR(VLOOKUP(A161,CADASTRO!C:F,2,FALSE),"")) -> QUICHE ALHO PORO | C161: =IFERROR(VLOOKUP(A161,CADASTRO!C:F,3,FALSE),"") -> 0 | D161: =IFERROR(VLOOKUP(A161,CADASTRO!C:F,4,0),"") -> QUITUTERIA | E161: =IFERROR(VLOOKUP(A161,CADASTRO!C:R,16,0),"") ->  | G161: 26 | J161: =SUMIF(ENTRADAS!A:E,A161,ENTRADAS!E:E) -> 0 | M161: =SUMIF(SAÍDAS!A:E,PRODUTOS!A161,SAÍDAS!E:E) -> 25 | P161: 1 | S161: 1 | V161: 0
A162: 224 | B162: =IF(A162="","",IFERROR(VLOOKUP(A162,CADASTRO!C:F,2,FALSE),"")) -> QUICHE BACALHAU | C162: =IFERROR(VLOOKUP(A162,CADASTRO!C:F,3,FALSE),"") -> 0 | D162: =IFERROR(VLOOKUP(A162,CADASTRO!C:F,4,0),"") -> QUITUTERIA | E162: =IFERROR(VLOOKUP(A162,CADASTRO!C:R,16,0),"") ->  | J162: =SUMIF(ENTRADAS!A:E,A162,ENTRADAS!E:E) -> 58 | M162: =SUMIF(SAÍDAS!A:E,PRODUTOS!A162,SAÍDAS!E:E) -> 42 | P162: 16 | S162: 16 | V162: 0
A163: 225 | B163: =IF(A163="","",IFERROR(VLOOKUP(A163,CADASTRO!C:F,2,FALSE),"")) -> QUICHE FRANGO | C163: =IFERROR(VLOOKUP(A163,CADASTRO!C:F,3,FALSE),"") -> 0 | D163: =IFERROR(VLOOKUP(A163,CADASTRO!C:F,4,0),"") -> QUITUTERIA | E163: =IFERROR(VLOOKUP(A163,CADASTRO!C:R,16,0),"") ->  | G163: 9 | J163: =SUMIF(ENTRADAS!A:E,A163,ENTRADAS!E:E) -> 64 | M163: =SUMIF(SAÍDAS!A:E,PRODUTOS!A163,SAÍDAS!E:E) -> 31 | P163: 42 | S163: 42 | V163: 0
A164: 226 | B164: =IF(A164="","",IFERROR(VLOOKUP(A164,CADASTRO!C:F,2,FALSE),"")) -> QUICHE LORRAINE | C164: =IFERROR(VLOOKUP(A164,CADASTRO!C:F,3,FALSE),"") -> 0 | D164: =IFERROR(VLOOKUP(A164,CADASTRO!C:F,4,0),"") -> QUITUTERIA | E164: =IFERROR(VLOOKUP(A164,CADASTRO!C:R,16,0),"") ->  | J164: =SUMIF(ENTRADAS!A:E,A164,ENTRADAS!E:E) -> 0 | M164: =SUMIF(SAÍDAS!A:E,PRODUTOS!A164,SAÍDAS!E:E) -> 0 | P164: 0 | S164: 0 | V164: 0
A165: 227 | B165: =IF(A165="","",IFERROR(VLOOKUP(A165,CADASTRO!C:F,2,FALSE),"")) -> QUICHE MARAJOARA | C165: =IFERROR(VLOOKUP(A165,CADASTRO!C:F,3,FALSE),"") -> 0 | D165: =IFERROR(VLOOKUP(A165,CADASTRO!C:F,4,0),"") -> QUITUTERIA | E165: =IFERROR(VLOOKUP(A165,CADASTRO!C:R,16,0),"") ->  | J165: =SUMIF(ENTRADAS!A:E,A165,ENTRADAS!E:E) -> 68 | M165: =SUMIF(SAÍDAS!A:E,PRODUTOS!A165,SAÍDAS!E:E) -> 15 | P165: 53 | S165: 53 | V165: 0
A166: 228 | B166: =IF(A166="","",IFERROR(VLOOKUP(A166,CADASTRO!C:F,2,FALSE),"")) -> QUICHE MARGUERITA | C166: =IFERROR(VLOOKUP(A166,CADASTRO!C:F,3,FALSE),"") -> 0 | D166: =IFERROR(VLOOKUP(A166,CADASTRO!C:F,4,0),"") -> QUITUTERIA | E166: =IFERROR(VLOOKUP(A166,CADASTRO!C:R,16,0),"") ->  | G166: 36 | J166: =SUMIF(ENTRADAS!A:E,A166,ENTRADAS!E:E) -> 0 | M166: =SUMIF(SAÍDAS!A:E,PRODUTOS!A166,SAÍDAS!E:E) -> 36 | P166: 0 | S166: 0 | V166: 0
A167: 229 | B167: =IF(A167="","",IFERROR(VLOOKUP(A167,CADASTRO!C:F,2,FALSE),"")) -> QUICHE QUEIJO CUIA | C167: =IFERROR(VLOOKUP(A167,CADASTRO!C:F,3,FALSE),"") -> 0 | D167: =IFERROR(VLOOKUP(A167,CADASTRO!C:F,4,0),"") -> QUITUTERIA | E167: =IFERROR(VLOOKUP(A167,CADASTRO!C:R,16,0),"") ->  | G167: 55 | J167: =SUMIF(ENTRADAS!A:E,A167,ENTRADAS!E:E) -> 10 | M167: =SUMIF(SAÍDAS!A:E,PRODUTOS!A167,SAÍDAS!E:E) -> 30 | P167: 35 | S167: 35 | V167: 0
A168: 230 | B168: =IF(A168="","",IFERROR(VLOOKUP(A168,CADASTRO!C:F,2,FALSE),"")) -> QUICHE QUEIJO CUIA/JAMBU | C168: =IFERROR(VLOOKUP(A168,CADASTRO!C:F,3,FALSE),"") -> 0 | D168: =IFERROR(VLOOKUP(A168,CADASTRO!C:F,4,0),"") -> QUITUTERIA | E168: =IFERROR(VLOOKUP(A168,CADASTRO!C:R,16,0),"") ->  | G168: 24 | J168: =SUMIF(ENTRADAS!A:E,A168,ENTRADAS!E:E) -> 0 | M168: =SUMIF(SAÍDAS!A:E,PRODUTOS!A168,SAÍDAS!E:E) -> 24 | P168: 0 | S168: 0 | V168: 0
A169: 231 | B169: =IF(A169="","",IFERROR(VLOOKUP(A169,CADASTRO!C:F,2,FALSE),"")) -> QUICHE TOMATE SECO | C169: =IFERROR(VLOOKUP(A169,CADASTRO!C:F,3,FALSE),"") -> 0 | D169: =IFERROR(VLOOKUP(A169,CADASTRO!C:F,4,0),"") -> QUITUTERIA | E169: =IFERROR(VLOOKUP(A169,CADASTRO!C:R,16,0),"") ->  | G169: 29 | J169: =SUMIF(ENTRADAS!A:E,A169,ENTRADAS!E:E) -> 0 | M169: =SUMIF(SAÍDAS!A:E,PRODUTOS!A169,SAÍDAS!E:E) -> 29 | P169: 0 | S169: 0 | V169: 0
A170: 233 | B170: =IF(A170="","",IFERROR(VLOOKUP(A170,CADASTRO!C:F,2,FALSE),"")) -> RECHEIO BRANCO | C170: =IFERROR(VLOOKUP(A170,CADASTRO!C:F,3,FALSE),"") -> 0 | D170: =IFERROR(VLOOKUP(A170,CADASTRO!C:F,4,0),"") -> CONFEITARIA DOCE | E170: =IFERROR(VLOOKUP(A170,CADASTRO!C:R,16,0),"") ->  | J170: =SUMIF(ENTRADAS!A:E,A170,ENTRADAS!E:E) -> 0 | M170: =SUMIF(SAÍDAS!A:E,PRODUTOS!A170,SAÍDAS!E:E) -> 0 | P170: 0 | S170: 0 | V170: 0
A171: 234 | B171: =IF(A171="","",IFERROR(VLOOKUP(A171,CADASTRO!C:F,2,FALSE),"")) -> RECHEIO DE CHOCOLATE | C171: =IFERROR(VLOOKUP(A171,CADASTRO!C:F,3,FALSE),"") -> 0 | D171: =IFERROR(VLOOKUP(A171,CADASTRO!C:F,4,0),"") -> CONFEITARIA DOCE | E171: =IFERROR(VLOOKUP(A171,CADASTRO!C:R,16,0),"") ->  | J171: =SUMIF(ENTRADAS!A:E,A171,ENTRADAS!E:E) -> 0 | M171: =SUMIF(SAÍDAS!A:E,PRODUTOS!A171,SAÍDAS!E:E) -> 0 | P171: 0 | S171: 0 | V171: 0
A172: 242 | B172: =IF(A172="","",IFERROR(VLOOKUP(A172,CADASTRO!C:F,2,FALSE),"")) -> RECHEIO NEGÃO | C172: =IFERROR(VLOOKUP(A172,CADASTRO!C:F,3,FALSE),"") -> 0 | D172: =IFERROR(VLOOKUP(A172,CADASTRO!C:F,4,0),"") -> CONFEITARIA DOCE | E172: =IFERROR(VLOOKUP(A172,CADASTRO!C:R,16,0),"") ->  | J172: =SUMIF(ENTRADAS!A:E,A172,ENTRADAS!E:E) -> 0 | M172: =SUMIF(SAÍDAS!A:E,PRODUTOS!A172,SAÍDAS!E:E) -> 0 | P172: 0 | S172: 0 | V172: 0
A173: 243 | B173: =IF(A173="","",IFERROR(VLOOKUP(A173,CADASTRO!C:F,2,FALSE),"")) -> ROSCA DE CHUVA | C173: =IFERROR(VLOOKUP(A173,CADASTRO!C:F,3,FALSE),"") -> 0 | D173: =IFERROR(VLOOKUP(A173,CADASTRO!C:F,4,0),"") -> PADARIA TRADICIONAL | E173: =IFERROR(VLOOKUP(A173,CADASTRO!C:R,16,0),"") ->  | J173: =SUMIF(ENTRADAS!A:E,A173,ENTRADAS!E:E) -> 0 | M173: =SUMIF(SAÍDAS!A:E,PRODUTOS!A173,SAÍDAS!E:E) -> 0 | P173: 0 | S173: 0 | V173: 0
A174: 244 | B174: =IF(A174="","",IFERROR(VLOOKUP(A174,CADASTRO!C:F,2,FALSE),"")) -> ROSQUINHA DE LEITE (PCT C/ 32UND) | C174: =IFERROR(VLOOKUP(A174,CADASTRO!C:F,3,FALSE),"") -> 0 | D174: =IFERROR(VLOOKUP(A174,CADASTRO!C:F,4,0),"") -> PADARIA TRADICIONAL | E174: =IFERROR(VLOOKUP(A174,CADASTRO!C:R,16,0),"") ->  | G174: 4 | J174: =SUMIF(ENTRADAS!A:E,A174,ENTRADAS!E:E) -> 898 | M174: =SUMIF(SAÍDAS!A:E,PRODUTOS!A174,SAÍDAS!E:E) -> 15 | P174: 887 | S174: 887 | V174: 0
A175: 245 | B175: =IF(A175="","",IFERROR(VLOOKUP(A175,CADASTRO!C:F,2,FALSE),"")) -> SALGADO ITALIANO FRANGO | C175: =IFERROR(VLOOKUP(A175,CADASTRO!C:F,3,FALSE),"") -> 0 | D175: =IFERROR(VLOOKUP(A175,CADASTRO!C:F,4,0),"") -> PADARIA TRADICIONAL | E175: =IFERROR(VLOOKUP(A175,CADASTRO!C:R,16,0),"") ->  | G175: 35 | J175: =SUMIF(ENTRADAS!A:E,A175,ENTRADAS!E:E) -> 0 | M175: =SUMIF(SAÍDAS!A:E,PRODUTOS!A175,SAÍDAS!E:E) -> 29 | P175: 6 | S175: 6 | V175: 0
A176: 246 | B176: =IF(A176="","",IFERROR(VLOOKUP(A176,CADASTRO!C:F,2,FALSE),"")) -> SALGADO ITALIANO MIX FRIOS | C176: =IFERROR(VLOOKUP(A176,CADASTRO!C:F,3,FALSE),"") -> 0 | D176: =IFERROR(VLOOKUP(A176,CADASTRO!C:F,4,0),"") -> PADARIA TRADICIONAL | E176: =IFERROR(VLOOKUP(A176,CADASTRO!C:R,16,0),"") ->  | G176: 14 | J176: =SUMIF(ENTRADAS!A:E,A176,ENTRADAS!E:E) -> 80 | M176: =SUMIF(SAÍDAS!A:E,PRODUTOS!A176,SAÍDAS!E:E) -> 30 | P176: 64 | S176: 64 | V176: 0
A177: 247 | B177: =IF(A177="","",IFERROR(VLOOKUP(A177,CADASTRO!C:F,2,FALSE),"")) -> SONHO | C177: =IFERROR(VLOOKUP(A177,CADASTRO!C:F,3,FALSE),"") -> 0 | D177: =IFERROR(VLOOKUP(A177,CADASTRO!C:F,4,0),"") -> PADARIA TRADICIONAL | E177: =IFERROR(VLOOKUP(A177,CADASTRO!C:R,16,0),"") ->  | G177: 42 | J177: =SUMIF(ENTRADAS!A:E,A177,ENTRADAS!E:E) -> 0 | M177: =SUMIF(SAÍDAS!A:E,PRODUTOS!A177,SAÍDAS!E:E) -> 27 | P177: 15 | S177: 15 | V177: 0
A178: 248 | B178: =IF(A178="","",IFERROR(VLOOKUP(A178,CADASTRO!C:F,2,FALSE),"")) -> TARTELETES | C178: =IFERROR(VLOOKUP(A178,CADASTRO!C:F,3,FALSE),"") -> 0 | D178: =IFERROR(VLOOKUP(A178,CADASTRO!C:F,4,0),"") -> CONFEITARIA DOCE | E178: =IFERROR(VLOOKUP(A178,CADASTRO!C:R,16,0),"") ->  | J178: =SUMIF(ENTRADAS!A:E,A178,ENTRADAS!E:E) -> 0 | M178: =SUMIF(SAÍDAS!A:E,PRODUTOS!A178,SAÍDAS!E:E) -> 0 | P178: 0 | S178: 0 | V178: 0
A179: 249 | B179: =IF(A179="","",IFERROR(VLOOKUP(A179,CADASTRO!C:F,2,FALSE),"")) -> TORTA ALEMÃ | C179: =IFERROR(VLOOKUP(A179,CADASTRO!C:F,3,FALSE),"") -> 0 | D179: =IFERROR(VLOOKUP(A179,CADASTRO!C:F,4,0),"") -> CONFEITARIA DOCE | E179: =IFERROR(VLOOKUP(A179,CADASTRO!C:R,16,0),"") ->  | J179: =SUMIF(ENTRADAS!A:E,A179,ENTRADAS!E:E) -> 0 | M179: =SUMIF(SAÍDAS!A:E,PRODUTOS!A179,SAÍDAS!E:E) -> 0 | P179: 0 | S179: 0 | V179: 0
A180: 250 | B180: =IF(A180="","",IFERROR(VLOOKUP(A180,CADASTRO!C:F,2,FALSE),"")) -> TORTA BACURI | C180: =IFERROR(VLOOKUP(A180,CADASTRO!C:F,3,FALSE),"") -> 0 | D180: =IFERROR(VLOOKUP(A180,CADASTRO!C:F,4,0),"") -> CONFEITARIA DOCE | E180: =IFERROR(VLOOKUP(A180,CADASTRO!C:R,16,0),"") ->  | J180: =SUMIF(ENTRADAS!A:E,A180,ENTRADAS!E:E) -> 0 | M180: =SUMIF(SAÍDAS!A:E,PRODUTOS!A180,SAÍDAS!E:E) -> 0 | P180: 0 | S180: 0 | V180: 0
A181: 251 | B181: =IF(A181="","",IFERROR(VLOOKUP(A181,CADASTRO!C:F,2,FALSE),"")) -> TORTA BULGARA | C181: =IFERROR(VLOOKUP(A181,CADASTRO!C:F,3,FALSE),"") -> 0 | D181: =IFERROR(VLOOKUP(A181,CADASTRO!C:F,4,0),"") -> CONFEITARIA DOCE | E181: =IFERROR(VLOOKUP(A181,CADASTRO!C:R,16,0),"") ->  | J181: =SUMIF(ENTRADAS!A:E,A181,ENTRADAS!E:E) -> 0 | M181: =SUMIF(SAÍDAS!A:E,PRODUTOS!A181,SAÍDAS!E:E) -> 0 | P181: 0 | S181: 0 | V181: 0
A182: 252 | B182: =IF(A182="","",IFERROR(VLOOKUP(A182,CADASTRO!C:F,2,FALSE),"")) -> TORTA CHEESE CAKE ROMEU JULIETA | C182: =IFERROR(VLOOKUP(A182,CADASTRO!C:F,3,FALSE),"") -> 0 | D182: =IFERROR(VLOOKUP(A182,CADASTRO!C:F,4,0),"") -> CONFEITARIA DOCE | E182: =IFERROR(VLOOKUP(A182,CADASTRO!C:R,16,0),"") ->  | J182: =SUMIF(ENTRADAS!A:E,A182,ENTRADAS!E:E) -> 0 | M182: =SUMIF(SAÍDAS!A:E,PRODUTOS!A182,SAÍDAS!E:E) -> 0 | P182: 0 | S182: 0 | V182: 0
A183: 253 | B183: =IF(A183="","",IFERROR(VLOOKUP(A183,CADASTRO!C:F,2,FALSE),"")) -> TORTA CHEESECAKE FRUTAS VERMELHAS | C183: =IFERROR(VLOOKUP(A183,CADASTRO!C:F,3,FALSE),"") -> 0 | D183: =IFERROR(VLOOKUP(A183,CADASTRO!C:F,4,0),"") -> CONFEITARIA DOCE | E183: =IFERROR(VLOOKUP(A183,CADASTRO!C:R,16,0),"") ->  | J183: =SUMIF(ENTRADAS!A:E,A183,ENTRADAS!E:E) -> 0 | M183: =SUMIF(SAÍDAS!A:E,PRODUTOS!A183,SAÍDAS!E:E) -> 0 | P183: 0 | S183: 0 | V183: 0
A184: 254 | B184: =IF(A184="","",IFERROR(VLOOKUP(A184,CADASTRO!C:F,2,FALSE),"")) -> TORTA CUPUAÇU | C184: =IFERROR(VLOOKUP(A184,CADASTRO!C:F,3,FALSE),"") -> 0 | D184: =IFERROR(VLOOKUP(A184,CADASTRO!C:F,4,0),"") -> CONFEITARIA DOCE | E184: =IFERROR(VLOOKUP(A184,CADASTRO!C:R,16,0),"") ->  | J184: =SUMIF(ENTRADAS!A:E,A184,ENTRADAS!E:E) -> 0 | M184: =SUMIF(SAÍDAS!A:E,PRODUTOS!A184,SAÍDAS!E:E) -> 0 | P184: 0 | S184: 0 | V184: 0
A185: 255 | B185: =IF(A185="","",IFERROR(VLOOKUP(A185,CADASTRO!C:F,2,FALSE),"")) -> TORTA LIMÃO | C185: =IFERROR(VLOOKUP(A185,CADASTRO!C:F,3,FALSE),"") -> 0 | D185: =IFERROR(VLOOKUP(A185,CADASTRO!C:F,4,0),"") -> CONFEITARIA DOCE | E185: =IFERROR(VLOOKUP(A185,CADASTRO!C:R,16,0),"") ->  | J185: =SUMIF(ENTRADAS!A:E,A185,ENTRADAS!E:E) -> 0 | M185: =SUMIF(SAÍDAS!A:E,PRODUTOS!A185,SAÍDAS!E:E) -> 0 | P185: 0 | S185: 0 | V185: 0
A186: 256 | B186: =IF(A186="","",IFERROR(VLOOKUP(A186,CADASTRO!C:F,2,FALSE),"")) -> TORTA MORANGO | C186: =IFERROR(VLOOKUP(A186,CADASTRO!C:F,3,FALSE),"") -> 0 | D186: =IFERROR(VLOOKUP(A186,CADASTRO!C:F,4,0),"") -> CONFEITARIA DOCE | E186: =IFERROR(VLOOKUP(A186,CADASTRO!C:R,16,0),"") ->  | J186: =SUMIF(ENTRADAS!A:E,A186,ENTRADAS!E:E) -> 0 | M186: =SUMIF(SAÍDAS!A:E,PRODUTOS!A186,SAÍDAS!E:E) -> 0 | P186: 0 | S186: 0 | V186: 0
A187: 257 | B187: =IF(A187="","",IFERROR(VLOOKUP(A187,CADASTRO!C:F,2,FALSE),"")) -> TORTA NEGA MALUCA | C187: =IFERROR(VLOOKUP(A187,CADASTRO!C:F,3,FALSE),"") -> 0 | D187: =IFERROR(VLOOKUP(A187,CADASTRO!C:F,4,0),"") -> CONFEITARIA DOCE | E187: =IFERROR(VLOOKUP(A187,CADASTRO!C:R,16,0),"") ->  | J187: =SUMIF(ENTRADAS!A:E,A187,ENTRADAS!E:E) -> 0 | M187: =SUMIF(SAÍDAS!A:E,PRODUTOS!A187,SAÍDAS!E:E) -> 0 | P187: 0 | S187: 0 | V187: 0
A188: 258 | B188: =IF(A188="","",IFERROR(VLOOKUP(A188,CADASTRO!C:F,2,FALSE),"")) -> TORTA RED VELVET | C188: =IFERROR(VLOOKUP(A188,CADASTRO!C:F,3,FALSE),"") -> 0 | D188: =IFERROR(VLOOKUP(A188,CADASTRO!C:F,4,0),"") -> CONFEITARIA DOCE | E188: =IFERROR(VLOOKUP(A188,CADASTRO!C:R,16,0),"") ->  | J188: =SUMIF(ENTRADAS!A:E,A188,ENTRADAS!E:E) -> 0 | M188: =SUMIF(SAÍDAS!A:E,PRODUTOS!A188,SAÍDAS!E:E) -> 0 | P188: 0 | S188: 0 | V188: 0
A189: 259 | B189: =IF(A189="","",IFERROR(VLOOKUP(A189,CADASTRO!C:F,2,FALSE),"")) -> TORTA SUPREMO | C189: =IFERROR(VLOOKUP(A189,CADASTRO!C:F,3,FALSE),"") -> 0 | D189: =IFERROR(VLOOKUP(A189,CADASTRO!C:F,4,0),"") -> CONFEITARIA DOCE | E189: =IFERROR(VLOOKUP(A189,CADASTRO!C:R,16,0),"") ->  | J189: =SUMIF(ENTRADAS!A:E,A189,ENTRADAS!E:E) -> 0 | M189: =SUMIF(SAÍDAS!A:E,PRODUTOS!A189,SAÍDAS!E:E) -> 0 | P189: 0 | S189: 0 | V189: 0
A190: 260 | B190: =IF(A190="","",IFERROR(VLOOKUP(A190,CADASTRO!C:F,2,FALSE),"")) -> TRANÇA DELICIA CALABRESA | C190: =IFERROR(VLOOKUP(A190,CADASTRO!C:F,3,FALSE),"") -> 0 | D190: =IFERROR(VLOOKUP(A190,CADASTRO!C:F,4,0),"") -> FOLHATERIA | E190: =IFERROR(VLOOKUP(A190,CADASTRO!C:R,16,0),"") ->  | J190: =SUMIF(ENTRADAS!A:E,A190,ENTRADAS!E:E) -> 0 | M190: =SUMIF(SAÍDAS!A:E,PRODUTOS!A190,SAÍDAS!E:E) -> 0 | P190: 0 | S190: 0 | V190: 0
A191: 261 | B191: =IF(A191="","",IFERROR(VLOOKUP(A191,CADASTRO!C:F,2,FALSE),"")) -> TRANÇA DELICIA CARNE | C191: =IFERROR(VLOOKUP(A191,CADASTRO!C:F,3,FALSE),"") -> 0 | D191: =IFERROR(VLOOKUP(A191,CADASTRO!C:F,4,0),"") -> FOLHATERIA | E191: =IFERROR(VLOOKUP(A191,CADASTRO!C:R,16,0),"") ->  | J191: =SUMIF(ENTRADAS!A:E,A191,ENTRADAS!E:E) -> 0 | M191: =SUMIF(SAÍDAS!A:E,PRODUTOS!A191,SAÍDAS!E:E) -> 0 | P191: 0 | S191: 0 | V191: 0
A192: 262 | B192: =IF(A192="","",IFERROR(VLOOKUP(A192,CADASTRO!C:F,2,FALSE),"")) -> TRANÇA DELICIA PEITO DEFUMADO | C192: =IFERROR(VLOOKUP(A192,CADASTRO!C:F,3,FALSE),"") -> 0 | D192: =IFERROR(VLOOKUP(A192,CADASTRO!C:F,4,0),"") -> FOLHATERIA | E192: =IFERROR(VLOOKUP(A192,CADASTRO!C:R,16,0),"") ->  | J192: =SUMIF(ENTRADAS!A:E,A192,ENTRADAS!E:E) -> 0 | M192: =SUMIF(SAÍDAS!A:E,PRODUTOS!A192,SAÍDAS!E:E) -> 0 | P192: 0 | S192: 0 | V192: 0
A193: 263 | B193: =IF(A193="","",IFERROR(VLOOKUP(A193,CADASTRO!C:F,2,FALSE),"")) -> TRANÇA FOLHADA BACALHAU | C193: =IFERROR(VLOOKUP(A193,CADASTRO!C:F,3,FALSE),"") -> 0 | D193: =IFERROR(VLOOKUP(A193,CADASTRO!C:F,4,0),"") -> FOLHATERIA | E193: =IFERROR(VLOOKUP(A193,CADASTRO!C:R,16,0),"") ->  | G193: 15 | J193: =SUMIF(ENTRADAS!A:E,A193,ENTRADAS!E:E) -> 12 | M193: =SUMIF(SAÍDAS!A:E,PRODUTOS!A193,SAÍDAS!E:E) -> 17 | P193: 10 | S193: 10 | V193: 0
A194: 264 | B194: =IF(A194="","",IFERROR(VLOOKUP(A194,CADASTRO!C:F,2,FALSE),"")) -> TRANÇA FOLHADA CALABRESA | C194: =IFERROR(VLOOKUP(A194,CADASTRO!C:F,3,FALSE),"") -> 0 | D194: =IFERROR(VLOOKUP(A194,CADASTRO!C:F,4,0),"") -> FOLHATERIA | E194: =IFERROR(VLOOKUP(A194,CADASTRO!C:R,16,0),"") ->  | G194: 8 | J194: =SUMIF(ENTRADAS!A:E,A194,ENTRADAS!E:E) -> 30 | M194: =SUMIF(SAÍDAS!A:E,PRODUTOS!A194,SAÍDAS!E:E) -> 26 | P194: 12 | S194: 12 | V194: 0
A195: 265 | B195: =IF(A195="","",IFERROR(VLOOKUP(A195,CADASTRO!C:F,2,FALSE),"")) -> TRANÇA FOLHADA FILÉ | C195: =IFERROR(VLOOKUP(A195,CADASTRO!C:F,3,FALSE),"") -> 0 | D195: =IFERROR(VLOOKUP(A195,CADASTRO!C:F,4,0),"") -> FOLHATERIA | E195: =IFERROR(VLOOKUP(A195,CADASTRO!C:R,16,0),"") ->  | J195: =SUMIF(ENTRADAS!A:E,A195,ENTRADAS!E:E) -> 0 | M195: =SUMIF(SAÍDAS!A:E,PRODUTOS!A195,SAÍDAS!E:E) -> 0 | P195: =G195+J195-M195 -> 0 | S195: 0 | V195: 0
A196: 266 | B196: =IF(A196="","",IFERROR(VLOOKUP(A196,CADASTRO!C:F,2,FALSE),"")) -> TRANÇA FOLHADA FRANGO/JAMBU | C196: =IFERROR(VLOOKUP(A196,CADASTRO!C:F,3,FALSE),"") -> 0 | D196: =IFERROR(VLOOKUP(A196,CADASTRO!C:F,4,0),"") -> FOLHATERIA | E196: =IFERROR(VLOOKUP(A196,CADASTRO!C:R,16,0),"") ->  | G196: 12 | J196: =SUMIF(ENTRADAS!A:E,A196,ENTRADAS!E:E) -> 12 | K196: =IFERROR(J196*$E196,"") ->  | M196: =SUMIF(SAÍDAS!A:E,PRODUTOS!A196,SAÍDAS!E:E) -> 15 | N196: =IFERROR(M196*$E196,"") ->  | P196: 9 | Q196: =IFERROR(P196*$E196,"") ->  | S196: =P196 -> 9 | T196: =IFERROR(S196*$E196,"") ->  | V196: =S196-P196 -> 0 | W196: =IFERROR(V196*$E196,"") -> 
A197: 267 | B197: =IF(A197="","",IFERROR(VLOOKUP(A197,CADASTRO!C:F,2,FALSE),"")) -> TRANÇA FOLHADA MISTA | C197: =IFERROR(VLOOKUP(A197,CADASTRO!C:F,3,FALSE),"") -> 0 | D197: =IFERROR(VLOOKUP(A197,CADASTRO!C:F,4,0),"") -> FOLHATERIA | E197: =IFERROR(VLOOKUP(A197,CADASTRO!C:R,16,0),"") ->  | J197: =SUMIF(ENTRADAS!A:E,A197,ENTRADAS!E:E) -> 36 | M197: =SUMIF(SAÍDAS!A:E,PRODUTOS!A197,SAÍDAS!E:E) -> 30 | P197: 6 | S197: 6 | V197: 0
A198: 268 | B198: =IF(A198="","",IFERROR(VLOOKUP(A198,CADASTRO!C:F,2,FALSE),"")) -> TRANÇA FOLHADA MORTADELA DEFUMADA | C198: =IFERROR(VLOOKUP(A198,CADASTRO!C:F,3,FALSE),"") -> 0 | D198: =IFERROR(VLOOKUP(A198,CADASTRO!C:F,4,0),"") -> FOLHATERIA | E198: =IFERROR(VLOOKUP(A198,CADASTRO!C:R,16,0),"") ->  | G198: 6 | J198: =SUMIF(ENTRADAS!A:E,A198,ENTRADAS!E:E) -> 22 | M198: =SUMIF(SAÍDAS!A:E,PRODUTOS!A198,SAÍDAS!E:E) -> 14 | P198: 14 | S198: 14 | V198: 0
A199: 269 | B199: =IF(A199="","",IFERROR(VLOOKUP(A199,CADASTRO!C:F,2,FALSE),"")) -> TRANÇA FOLHADA PEITO DEFUMADO | C199: =IFERROR(VLOOKUP(A199,CADASTRO!C:F,3,FALSE),"") -> 0 | D199: =IFERROR(VLOOKUP(A199,CADASTRO!C:F,4,0),"") -> FOLHATERIA | E199: =IFERROR(VLOOKUP(A199,CADASTRO!C:R,16,0),"") ->  | J199: =SUMIF(ENTRADAS!A:E,A199,ENTRADAS!E:E) -> 24 | M199: =SUMIF(SAÍDAS!A:E,PRODUTOS!A199,SAÍDAS!E:E) -> 12 | P199: 12 | S199: 12 | V199: 0
A200: 270 | B200: =IF(A200="","",IFERROR(VLOOKUP(A200,CADASTRO!C:F,2,FALSE),"")) -> TRANÇA FOLHADA PERNIL | C200: =IFERROR(VLOOKUP(A200,CADASTRO!C:F,3,FALSE),"") -> 0 | D200: =IFERROR(VLOOKUP(A200,CADASTRO!C:F,4,0),"") -> FOLHATERIA | E200: =IFERROR(VLOOKUP(A200,CADASTRO!C:R,16,0),"") ->  | J200: =SUMIF(ENTRADAS!A:E,A200,ENTRADAS!E:E) -> 24 | M200: =SUMIF(SAÍDAS!A:E,PRODUTOS!A200,SAÍDAS!E:E) -> 11 | P200: 13 | S200: 13 | V200: 0
... 50 more rows

Sheet ENTRADAS
B1: Entrada de Produção - Congelados
A2: CÓD | B2: Descrição | C2: Medida | D2: SETOR | E2: Qtde | F2: Data
A3: 2 | B3: =IF(A3="","",IFERROR(VLOOKUP(A3,CADASTRO!C:D,2,FALSE),"Produto Não Cadastrado")) -> FORMA DE EMPADA | C3: =VLOOKUP(A3,CADASTRO!C:F,3,0) -> UND | D3: =VLOOKUP(A3,CADASTRO!C:F,4,0) -> PADARIA TRADICIONAL | E3: 205 | F3: 2023-02-13
A4: 29 | B4: =IF(A4="","",IFERROR(VLOOKUP(A4,CADASTRO!C:D,2,FALSE),"Produto Não Cadastrado")) -> CATARINA DE FRANGO | C4: =VLOOKUP(A4,CADASTRO!C:F,3,0) -> 0 | D4: =VLOOKUP(A4,CADASTRO!C:F,4,0) -> FOLHATERIA | E4: 12 | F4: 2023-02-13
A5: 84 | B5: =IF(A5="","",IFERROR(VLOOKUP(A5,CADASTRO!C:D,2,FALSE),"Produto Não Cadastrado")) -> MINI FOLHADO MISTO | C5: =VLOOKUP(A5,CADASTRO!C:F,3,0) -> 0 | D5: =VLOOKUP(A5,CADASTRO!C:F,4,0) -> FOLHATERIA | E5: 4 | F5: 2023-02-13
A6: 81 | B6: =IF(A6="","",IFERROR(VLOOKUP(A6,CADASTRO!C:D,2,FALSE),"Produto Não Cadastrado")) -> MINI FOLHADO DE QUEIJO | C6: =VLOOKUP(A6,CADASTRO!C:F,3,0) -> 0 | D6: =VLOOKUP(A6,CADASTRO!C:F,4,0) -> FOLHATERIA | E6: 3.8 | F6: 2023-02-13
A7: 144 | B7: =IF(A7="","",IFERROR(VLOOKUP(A7,CADASTRO!C:D,2,FALSE),"Produto Não Cadastrado")) -> PÃO DE ROSAS | C7: =VLOOKUP(A7,CADASTRO!C:F,3,0) -> 0 | D7: =VLOOKUP(A7,CADASTRO!C:F,4,0) -> FOLHATERIA | E7: 21 | F7: 2023-02-13
A8: 80 | B8: =IF(A8="","",IFERROR(VLOOKUP(A8,CADASTRO!C:D,2,FALSE),"Produto Não Cadastrado")) -> MINI FOLHADO CUPUAÇU | C8: =IFERROR(VLOOKUP(A8,CADASTRO!C:F,3,0),"") -> 0 | D8: =VLOOKUP(A8,CADASTRO!C:F,4,0) -> FOLHATERIA | E8: 7.5 | F8: 2023-02-13
A9: 81 | B9: =IF(A9="","",IFERROR(VLOOKUP(A9,CADASTRO!C:D,2,FALSE),"Produto Não Cadastrado")) -> MINI FOLHADO DE QUEIJO | C9: =IFERROR(VLOOKUP(A9,CADASTRO!C:F,3,0),"") -> 0 | D9: =VLOOKUP(A9,CADASTRO!C:F,4,0) -> FOLHATERIA | E9: 7.63 | F9: 2023-02-13
A10: 82 | B10: =IF(A10="","",IFERROR(VLOOKUP(A10,CADASTRO!C:D,2,FALSE),"Produto Não Cadastrado")) -> MINI FOLHADO FRANGO | C10: =IFERROR(VLOOKUP(A10,CADASTRO!C:F,3,0),"") -> 0 | D10: =VLOOKUP(A10,CADASTRO!C:F,4,0) -> FOLHATERIA | E10: 7.43 | F10: 2023-02-13
A11: 89 | B11: =IF(A11="","",IFERROR(VLOOKUP(A11,CADASTRO!C:D,2,FALSE),"Produto Não Cadastrado")) -> MINI PÃO BATATA HAMBÚRGUER | C11: =IFERROR(VLOOKUP(A11,CADASTRO!C:F,3,0),"") -> 0 | D11: =VLOOKUP(A11,CADASTRO!C:F,4,0) -> PADARIA TRADICIONAL | E11: 306 | F11: 2023-02-13
A12: 135 | B12: =IF(A12="","",IFERROR(VLOOKUP(A12,CADASTRO!C:D,2,FALSE),"Produto Não Cadastrado")) -> PÃO DE BATATA FILÃO | C12: =IFERROR(VLOOKUP(A12,CADASTRO!C:F,3,0),"") -> 0 | D12: =VLOOKUP(A12,CADASTRO!C:F,4,0) -> PADARIA TRADICIONAL | E12: 300 | F12: 2023-02-13
A13: 92 | B13: =IF(A13="","",IFERROR(VLOOKUP(A13,CADASTRO!C:D,2,FALSE),"Produto Não Cadastrado")) -> MINI PÃO DELÍCIA (PCT C/ 24UND) | C13: =IFERROR(VLOOKUP(A13,CADASTRO!C:F,3,0),"") -> 0 | D13: =VLOOKUP(A13,CADASTRO!C:F,4,0) -> PADARIA TRADICIONAL | E13: 18 | F13: 2023-02-13
A14: 49 | B14: =IF(A14="","",IFERROR(VLOOKUP(A14,CADASTRO!C:D,2,FALSE),"Produto Não Cadastrado")) -> DONNUTS | C14: =IFERROR(VLOOKUP(A14,CADASTRO!C:F,3,0),"") -> 0 | D14: =VLOOKUP(A14,CADASTRO!C:F,4,0) -> PADARIA TRADICIONAL | E14: 94 | F14: 2023-02-13
A15: 158 | B15: =IF(A15="","",IFERROR(VLOOKUP(A15,CADASTRO!C:D,2,FALSE),"Produto Não Cadastrado")) -> PÃO FORMA MILHO A25 | C15: =IFERROR(VLOOKUP(A15,CADASTRO!C:F,3,0),"") -> 0 | D15: =VLOOKUP(A15,CADASTRO!C:F,4,0) -> PADARIA TRADICIONAL | E15: 86 | F15: 2023-02-13
A16: 71 | B16: =IF(A16="","",IFERROR(VLOOKUP(A16,CADASTRO!C:D,2,FALSE),"Produto Não Cadastrado")) -> MASSA MINI PIZZA | C16: =IFERROR(VLOOKUP(A16,CADASTRO!C:F,3,0),"") -> 0 | D16: =VLOOKUP(A16,CADASTRO!C:F,4,0) -> PADARIA TRADICIONAL | E16: 5 | F16: 2023-02-13
A17: 88 | B17: =IF(A17="","",IFERROR(VLOOKUP(A17,CADASTRO!C:D,2,FALSE),"Produto Não Cadastrado")) -> MINI PÃO BATATA (ERVAS,PARMESÃO) | C17: =IFERROR(VLOOKUP(A17,CADASTRO!C:F,3,0),"") -> 0 | D17: =VLOOKUP(A17,CADASTRO!C:F,4,0) -> PADARIA TRADICIONAL | E17: 1400 | F17: 2023-02-14
A18: 89 | B18: =IF(A18="","",IFERROR(VLOOKUP(A18,CADASTRO!C:D,2,FALSE),"Produto Não Cadastrado")) -> MINI PÃO BATATA HAMBÚRGUER | C18: =IFERROR(VLOOKUP(A18,CADASTRO!C:F,3,0),"") -> 0 | D18: =VLOOKUP(A18,CADASTRO!C:F,4,0) -> PADARIA TRADICIONAL | E18: 558 | F18: 2023-02-14
A19: 91 | B19: =IF(A19="","",IFERROR(VLOOKUP(A19,CADASTRO!C:D,2,FALSE),"Produto Não Cadastrado")) -> MINI PÃO BRIOCHE (PCT C/ 24UND) | C19: =IFERROR(VLOOKUP(A19,CADASTRO!C:F,3,0),"") -> 0 | D19: =VLOOKUP(A19,CADASTRO!C:F,4,0) -> PADARIA TRADICIONAL | E19: 8 | F19: 2023-02-14
A20: 123 | B20: =IF(A20="","",IFERROR(VLOOKUP(A20,CADASTRO!C:D,2,FALSE),"Produto Não Cadastrado")) -> PÃO BRIOCHE DE FORMA 1000 | C20: =IFERROR(VLOOKUP(A20,CADASTRO!C:F,3,0),"") -> 0 | D20: =VLOOKUP(A20,CADASTRO!C:F,4,0) -> PADARIA TRADICIONAL | E20: 14 | F20: 2023-02-14
A21: 159 | B21: =IF(A21="","",IFERROR(VLOOKUP(A21,CADASTRO!C:D,2,FALSE),"Produto Não Cadastrado")) -> PÃO FORMA TRADICIONAL 1000 | C21: =IFERROR(VLOOKUP(A21,CADASTRO!C:F,3,0),"") -> 0 | D21: =VLOOKUP(A21,CADASTRO!C:F,4,0) -> PADARIA TRADICIONAL | E21: 28 | F21: 2023-02-14
A22: 167 | B22: =IF(A22="","",IFERROR(VLOOKUP(A22,CADASTRO!C:D,2,FALSE),"Produto Não Cadastrado")) -> PÃO QUEIJO CALABRESA | C22: =IFERROR(VLOOKUP(A22,CADASTRO!C:F,3,0),"") -> 0 | D22: =VLOOKUP(A22,CADASTRO!C:F,4,0) -> PADARIA TRADICIONAL | E22: 21 | F22: 2023-02-14
A23: 160 | B23: =IF(A23="","",IFERROR(VLOOKUP(A23,CADASTRO!C:D,2,FALSE),"Produto Não Cadastrado")) -> PÃO FORMA TRADICIONAL 700 | C23: =IFERROR(VLOOKUP(A23,CADASTRO!C:F,3,0),"") -> 0 | D23: =VLOOKUP(A23,CADASTRO!C:F,4,0) -> PADARIA TRADICIONAL | E23: 18 | F23: 2023-02-14
A24: 41 | B24: =IF(A24="","",IFERROR(VLOOKUP(A24,CADASTRO!C:D,2,FALSE),"Produto Não Cadastrado")) -> CROISSANT CONGELADO | C24: =IFERROR(VLOOKUP(A24,CADASTRO!C:F,3,0),"") -> 0 | D24: =VLOOKUP(A24,CADASTRO!C:F,4,0) -> PADARIA TRADICIONAL | E24: 653 | F24: 2023-02-14
A25: 61 | B25: =IF(A25="","",IFERROR(VLOOKUP(A25,CADASTRO!C:D,2,FALSE),"Produto Não Cadastrado")) -> FOCACCIA TABULEIRO | C25: =IFERROR(VLOOKUP(A25,CADASTRO!C:F,3,0),"") -> 0 | D25: =VLOOKUP(A25,CADASTRO!C:F,4,0) -> PADARIA RÚSTICA | E25: 1 | F25: 2023-02-14
A26: 111 | B26: =IF(A26="","",IFERROR(VLOOKUP(A26,CADASTRO!C:D,2,FALSE),"Produto Não Cadastrado")) -> PALITO QUEIJO | C26: =IFERROR(VLOOKUP(A26,CADASTRO!C:F,3,0),"") -> 0 | D26: =VLOOKUP(A26,CADASTRO!C:F,4,0) -> FOLHATERIA | E26: 7.4 | F26: 2023-02-14
A27: 110 | B27: =IF(A27="","",IFERROR(VLOOKUP(A27,CADASTRO!C:D,2,FALSE),"Produto Não Cadastrado")) -> PALITO CANELA | C27: =IFERROR(VLOOKUP(A27,CADASTRO!C:F,3,0),"") -> 0 | D27: =VLOOKUP(A27,CADASTRO!C:F,4,0) -> FOLHATERIA | E27: 7.7 | F27: 2023-02-14
A28: 28 | B28: =IF(A28="","",IFERROR(VLOOKUP(A28,CADASTRO!C:D,2,FALSE),"Produto Não Cadastrado")) -> CATARINA DE BACALHAU | C28: =IFERROR(VLOOKUP(A28,CADASTRO!C:F,3,0),"") -> 0 | D28: =VLOOKUP(A28,CADASTRO!C:F,4,0) -> FOLHATERIA | E28: 12 | F28: 2023-02-14
A29: 161 | B29: =IF(A29="","",IFERROR(VLOOKUP(A29,CADASTRO!C:D,2,FALSE),"Produto Não Cadastrado")) -> PÃO FRANCÊS 10H | C29: =IFERROR(VLOOKUP(A29,CADASTRO!C:F,3,0),"") -> 0 | D29: =VLOOKUP(A29,CADASTRO!C:F,4,0) -> PADARIA TRADICIONAL | E29: 50 | F29: 2023-02-14
A30: 84 | B30: =IF(A30="","",IFERROR(VLOOKUP(A30,CADASTRO!C:D,2,FALSE),"Produto Não Cadastrado")) -> MINI FOLHADO MISTO | C30: =IFERROR(VLOOKUP(A30,CADASTRO!C:F,3,0),"") -> 0 | D30: =VLOOKUP(A30,CADASTRO!C:F,4,0) -> FOLHATERIA | E30: 10.82 | F30: 2023-02-14
A31: 11 | B31: =IF(A31="","",IFERROR(VLOOKUP(A31,CADASTRO!C:D,2,FALSE),"Produto Não Cadastrado")) -> BISCOITO ACEBOLADO | C31: =IFERROR(VLOOKUP(A31,CADASTRO!C:F,3,0),"") -> 0 | D31: =VLOOKUP(A31,CADASTRO!C:F,4,0) -> PADARIA TRADICIONAL | E31: 9.55 | F31: 2023-02-14
A32: 19 | B32: =IF(A32="","",IFERROR(VLOOKUP(A32,CADASTRO!C:D,2,FALSE),"Produto Não Cadastrado")) -> BISCOITO PAI D'ÉGUA | C32: =IFERROR(VLOOKUP(A32,CADASTRO!C:F,3,0),"") -> 0 | D32: =VLOOKUP(A32,CADASTRO!C:F,4,0) -> PADARIA TRADICIONAL | E32: 11.35 | F32: 2023-02-14
A33: 8 | B33: =IF(A33="","",IFERROR(VLOOKUP(A33,CADASTRO!C:D,2,FALSE),"Produto Não Cadastrado")) -> BAGUETE INTEGRAL (PCT C/ 45 UND = 3 KG) | C33: =IFERROR(VLOOKUP(A33,CADASTRO!C:F,3,0),"") -> 0 | D33: =VLOOKUP(A33,CADASTRO!C:F,4,0) -> PADARIA TRADICIONAL | E33: 12 | F33: 2023-02-15
A34: 244 | B34: =IF(A34="","",IFERROR(VLOOKUP(A34,CADASTRO!C:D,2,FALSE),"Produto Não Cadastrado")) -> ROSQUINHA DE LEITE (PCT C/ 32UND) | C34: =IFERROR(VLOOKUP(A34,CADASTRO!C:F,3,0),"") -> 0 | D34: =VLOOKUP(A34,CADASTRO!C:F,4,0) -> PADARIA TRADICIONAL | E34: 9 | F34: 2023-02-15
A35: 155 | B35: =IF(A35="","",IFERROR(VLOOKUP(A35,CADASTRO!C:D,2,FALSE),"Produto Não Cadastrado")) -> PÃO FORMA INTEGRAL 1000 | C35: =IFERROR(VLOOKUP(A35,CADASTRO!C:F,3,0),"") -> 0 | D35: =VLOOKUP(A35,CADASTRO!C:F,4,0) -> PADARIA TRADICIONAL | E35: 29 | F35: 2023-02-15
A36: 156 | B36: =IF(A36="","",IFERROR(VLOOKUP(A36,CADASTRO!C:D,2,FALSE),"Produto Não Cadastrado")) -> PÃO FORMA INTEGRAL 700 | C36: =IFERROR(VLOOKUP(A36,CADASTRO!C:F,3,0),"") -> 0 | D36: =VLOOKUP(A36,CADASTRO!C:F,4,0) -> PADARIA TRADICIONAL | E36: 18 | F36: 2023-02-15
A37: 181 | B37: =IF(A37="","",IFERROR(VLOOKUP(A37,CADASTRO!C:D,2,FALSE),"Produto Não Cadastrado")) -> PIZZA INTEGRAL (MASSA) | C37: =IFERROR(VLOOKUP(A37,CADASTRO!C:F,3,0),"") -> 0 | D37: =VLOOKUP(A37,CADASTRO!C:F,4,0) -> PADARIA TRADICIONAL | E37: 16 | F37: 2023-02-15
A38: 66 | B38: =IF(A38="","",IFERROR(VLOOKUP(A38,CADASTRO!C:D,2,FALSE),"Produto Não Cadastrado")) -> LASANHA FOLHADA MISTA | C38: =IFERROR(VLOOKUP(A38,CADASTRO!C:F,3,0),"") -> 0 | D38: =VLOOKUP(A38,CADASTRO!C:F,4,0) -> FOLHATERIA | E38: 1 | F38: 2023-02-15
A39: 267 | B39: =IF(A39="","",IFERROR(VLOOKUP(A39,CADASTRO!C:D,2,FALSE),"Produto Não Cadastrado")) -> TRANÇA FOLHADA MISTA | C39: =IFERROR(VLOOKUP(A39,CADASTRO!C:F,3,0),"") -> 0 | D39: =VLOOKUP(A39,CADASTRO!C:F,4,0) -> FOLHATERIA | E39: 18 | F39: 2023-02-15
A40: 98 | B40: =IF(A40="","",IFERROR(VLOOKUP(A40,CADASTRO!C:D,2,FALSE),"Produto Não Cadastrado")) -> MINI TRANÇA MISTA | C40: =IFERROR(VLOOKUP(A40,CADASTRO!C:F,3,0),"") -> 0 | D40: =VLOOKUP(A40,CADASTRO!C:F,4,0) -> FOLHATERIA | E40: 16 | F40: 2023-02-15
A41: 268 | B41: =IF(A41="","",IFERROR(VLOOKUP(A41,CADASTRO!C:D,2,FALSE),"Produto Não Cadastrado")) -> TRANÇA FOLHADA MORTADELA DEFUMADA | C41: =IFERROR(VLOOKUP(A41,CADASTRO!C:F,3,0),"") -> 0 | D41: =VLOOKUP(A41,CADASTRO!C:F,4,0) -> FOLHATERIA | E41: 22 | F41: 2023-02-15
A42: 79 | B42: =IF(A42="","",IFERROR(VLOOKUP(A42,CADASTRO!C:D,2,FALSE),"Produto Não Cadastrado")) -> MINI FOLHADO CALABRESA | C42: =IFERROR(VLOOKUP(A42,CADASTRO!C:F,3,0),"") -> 0 | D42: =VLOOKUP(A42,CADASTRO!C:F,4,0) -> FOLHATERIA | E42: 4.1 | F42: 2023-02-15
A43: 61 | B43: =IF(A43="","",IFERROR(VLOOKUP(A43,CADASTRO!C:D,2,FALSE),"Produto Não Cadastrado")) -> FOCACCIA TABULEIRO | C43: =IFERROR(VLOOKUP(A43,CADASTRO!C:F,3,0),"") -> 0 | D43: =VLOOKUP(A43,CADASTRO!C:F,4,0) -> PADARIA RÚSTICA | E43: 5 | F43: 2023-02-15
A44: 124 | B44: =IF(A44="","",IFERROR(VLOOKUP(A44,CADASTRO!C:D,2,FALSE),"Produto Não Cadastrado")) -> PÃO BRIOCHE HAMBÚRGUER | C44: =IFERROR(VLOOKUP(A44,CADASTRO!C:F,3,0),"") -> 0 | D44: =VLOOKUP(A44,CADASTRO!C:F,4,0) -> PADARIA TRADICIONAL | E44: 60 | F44: 2023-02-15
A45: 44 | B45: =IF(A45="","",IFERROR(VLOOKUP(A45,CADASTRO!C:D,2,FALSE),"Produto Não Cadastrado")) -> DANISH CAPRESE | C45: =IFERROR(VLOOKUP(A45,CADASTRO!C:F,3,0),"") -> 0 | D45: =VLOOKUP(A45,CADASTRO!C:F,4,0) -> FOLHATERIA | E45: 52 | F45: 2023-02-16
A46: 121 | B46: =IF(A46="","",IFERROR(VLOOKUP(A46,CADASTRO!C:D,2,FALSE),"Produto Não Cadastrado")) -> PÃO BAIÃO | C46: =IFERROR(VLOOKUP(A46,CADASTRO!C:F,3,0),"") -> 0 | D46: =VLOOKUP(A46,CADASTRO!C:F,4,0) -> PADARIA TRADICIONAL | E46: 211 | F46: 2023-02-16
A47: 60 | B47: =IF(A47="","",IFERROR(VLOOKUP(A47,CADASTRO!C:D,2,FALSE),"Produto Não Cadastrado")) -> FOCACCIA RUSTICA CALABRESA (MASSA) | C47: =IFERROR(VLOOKUP(A47,CADASTRO!C:F,3,0),"") -> 0 | D47: =VLOOKUP(A47,CADASTRO!C:F,4,0) -> PADARIA RÚSTICA | E47: 18 | F47: 2023-02-16
A48: 41 | B48: =IF(A48="","",IFERROR(VLOOKUP(A48,CADASTRO!C:D,2,FALSE),"Produto Não Cadastrado")) -> CROISSANT CONGELADO | C48: =IFERROR(VLOOKUP(A48,CADASTRO!C:F,3,0),"") -> 0 | D48: =VLOOKUP(A48,CADASTRO!C:F,4,0) -> PADARIA TRADICIONAL | E48: 1256 | F48: 2023-02-16
A49: 154 | B49: =IF(A49="","",IFERROR(VLOOKUP(A49,CADASTRO!C:D,2,FALSE),"Produto Não Cadastrado")) -> PÃO FORMA BRIOCHE A25 | C49: =IFERROR(VLOOKUP(A49,CADASTRO!C:F,3,0),"") -> 0 | D49: =VLOOKUP(A49,CADASTRO!C:F,4,0) -> PADARIA TRADICIONAL | E49: 87 | F49: 2023-02-16
A50: 157 | B50: =IF(A50="","",IFERROR(VLOOKUP(A50,CADASTRO!C:D,2,FALSE),"Produto Não Cadastrado")) -> PÃO FORMA LEITE A25 | C50: =IFERROR(VLOOKUP(A50,CADASTRO!C:F,3,0),"") -> 0 | D50: =VLOOKUP(A50,CADASTRO!C:F,4,0) -> PADARIA TRADICIONAL | E50: 39 | F50: 2023-02-16
A51: 172 | B51: =IF(A51="","",IFERROR(VLOOKUP(A51,CADASTRO!C:D,2,FALSE),"Produto Não Cadastrado")) -> PASTEL DE BELÉM (MASSA) | C51: =IFERROR(VLOOKUP(A51,CADASTRO!C:F,3,0),"") -> 0 | D51: =VLOOKUP(A51,CADASTRO!C:F,4,0) -> FOLHATERIA | E51: 8 | F51: 2023-02-16
A52: 28 | B52: =IF(A52="","",IFERROR(VLOOKUP(A52,CADASTRO!C:D,2,FALSE),"Produto Não Cadastrado")) -> CATARINA DE BACALHAU | C52: =IFERROR(VLOOKUP(A52,CADASTRO!C:F,3,0),"") -> 0 | D52: =VLOOKUP(A52,CADASTRO!C:F,4,0) -> FOLHATERIA | E52: 12 | F52: 2023-02-16
A53: 180 | B53: =IF(A53="","",IFERROR(VLOOKUP(A53,CADASTRO!C:D,2,FALSE),"Produto Não Cadastrado")) -> PIZZA FOLHADA MIX FRIOS | C53: =IFERROR(VLOOKUP(A53,CADASTRO!C:F,3,0),"") -> 0 | D53: =VLOOKUP(A53,CADASTRO!C:F,4,0) -> FOLHATERIA | E53: 85 | F53: 2023-02-16
A54: 95 | B54: =IF(A54="","",IFERROR(VLOOKUP(A54,CADASTRO!C:D,2,FALSE),"Produto Não Cadastrado")) -> MINI TRANÇA CALABRESA | C54: =IFERROR(VLOOKUP(A54,CADASTRO!C:F,3,0),"") -> 0 | D54: =VLOOKUP(A54,CADASTRO!C:F,4,0) -> FOLHATERIA | E54: 16 | F54: 2023-02-16
A55: 83 | B55: =IF(A55="","",IFERROR(VLOOKUP(A55,CADASTRO!C:D,2,FALSE),"Produto Não Cadastrado")) -> MINI FOLHADO GOIABADA | C55: =IFERROR(VLOOKUP(A55,CADASTRO!C:F,3,0),"") -> 0 | D55: =VLOOKUP(A55,CADASTRO!C:F,4,0) -> FOLHATERIA | E55: 6.38 | F55: 2023-02-16
A56: 80 | B56: =IF(A56="","",IFERROR(VLOOKUP(A56,CADASTRO!C:D,2,FALSE),"Produto Não Cadastrado")) -> MINI FOLHADO CUPUAÇU | C56: =IFERROR(VLOOKUP(A56,CADASTRO!C:F,3,0),"") -> 0 | D56: =VLOOKUP(A56,CADASTRO!C:F,4,0) -> FOLHATERIA | E56: 7.81 | F56: 2023-02-16
A57: 161 | B57: =IF(A57="","",IFERROR(VLOOKUP(A57,CADASTRO!C:D,2,FALSE),"Produto Não Cadastrado")) -> PÃO FRANCÊS 10H | C57: =IFERROR(VLOOKUP(A57,CADASTRO!C:F,3,0),"") -> 0 | D57: =VLOOKUP(A57,CADASTRO!C:F,4,0) -> PADARIA TRADICIONAL | E57: 38 | F57: 2023-02-16
A58: 163 | B58: =IF(A58="","",IFERROR(VLOOKUP(A58,CADASTRO!C:D,2,FALSE),"Produto Não Cadastrado")) -> PÃO FRANCÊS 5H | C58: =IFERROR(VLOOKUP(A58,CADASTRO!C:F,3,0),"") -> 0 | D58: =VLOOKUP(A58,CADASTRO!C:F,4,0) -> PADARIA TRADICIONAL | E58: 38 | F58: 2023-02-16
A59: 116 | B59: =IF(A59="","",IFERROR(VLOOKUP(A59,CADASTRO!C:D,2,FALSE),"Produto Não Cadastrado")) -> PÃO BAGUETE 10 HORAS | C59: =IFERROR(VLOOKUP(A59,CADASTRO!C:F,3,0),"") -> 0 | D59: =VLOOKUP(A59,CADASTRO!C:F,4,0) -> PADARIA TRADICIONAL | E59: 10 | F59: 2023-02-16
A60: 93 | B60: =IF(A60="","",IFERROR(VLOOKUP(A60,CADASTRO!C:D,2,FALSE),"Produto Não Cadastrado")) -> MINI PASTEL FOLHADO | C60: =IFERROR(VLOOKUP(A60,CADASTRO!C:F,3,0),"") -> 0 | D60: =VLOOKUP(A60,CADASTRO!C:F,4,0) -> FOLHATERIA | E60: 6.77 | F60: 2023-02-16
A61: 81 | B61: =IF(A61="","",IFERROR(VLOOKUP(A61,CADASTRO!C:D,2,FALSE),"Produto Não Cadastrado")) -> MINI FOLHADO DE QUEIJO | C61: =IFERROR(VLOOKUP(A61,CADASTRO!C:F,3,0),"") -> 0 | D61: =VLOOKUP(A61,CADASTRO!C:F,4,0) -> FOLHATERIA | E61: 7 | F61: 2023-02-16
A62: 14 | B62: =IF(A62="","",IFERROR(VLOOKUP(A62,CADASTRO!C:D,2,FALSE),"Produto Não Cadastrado")) -> BISCOITO COCO | C62: =IFERROR(VLOOKUP(A62,CADASTRO!C:F,3,0),"") -> 0 | D62: =VLOOKUP(A62,CADASTRO!C:F,4,0) -> PADARIA TRADICIONAL | E62: 11.25 | F62: 2023-02-16
A63: 17 | B63: =IF(A63="","",IFERROR(VLOOKUP(A63,CADASTRO!C:D,2,FALSE),"Produto Não Cadastrado")) -> BISCOITO MONTEIRO LOPES | C63: =IFERROR(VLOOKUP(A63,CADASTRO!C:F,3,0),"") -> 0 | D63: =VLOOKUP(A63,CADASTRO!C:F,4,0) -> PADARIA TRADICIONAL | E63: 19.73 | F63: 2023-02-16
A64: 87 | B64: =IF(A64="","",IFERROR(VLOOKUP(A64,CADASTRO!C:D,2,FALSE),"Produto Não Cadastrado")) -> MINI PAIN AU CHOCOLAT | C64: =IFERROR(VLOOKUP(A64,CADASTRO!C:F,3,0),"") -> 0 | D64: =VLOOKUP(A64,CADASTRO!C:F,4,0) -> FOLHATERIA | E64: 7.13 | F64: 2023-02-16
A65: 175 | B65: =IF(A65="","",IFERROR(VLOOKUP(A65,CADASTRO!C:D,2,FALSE),"Produto Não Cadastrado")) -> PASTEL FOLHADO MISTO | C65: =IFERROR(VLOOKUP(A65,CADASTRO!C:F,3,0),"") -> 0 | D65: =VLOOKUP(A65,CADASTRO!C:F,4,0) -> FOLHATERIA | E65: 108 | F65: 2023-02-16
A66: 176 | B66: =IF(A66="","",IFERROR(VLOOKUP(A66,CADASTRO!C:D,2,FALSE),"Produto Não Cadastrado")) -> PASTEL FOLHADO QUEIJO | C66: =IFERROR(VLOOKUP(A66,CADASTRO!C:F,3,0),"") -> 0 | D66: =VLOOKUP(A66,CADASTRO!C:F,4,0) -> FOLHATERIA | E66: 108 | F66: 2023-02-16
A67: 26 | B67: =IF(A67="","",IFERROR(VLOOKUP(A67,CADASTRO!C:D,2,FALSE),"Produto Não Cadastrado")) -> CARRET | C67: =IFERROR(VLOOKUP(A67,CADASTRO!C:F,3,0),"") -> 0 | D67: =VLOOKUP(A67,CADASTRO!C:F,4,0) -> FOLHATERIA | E67: 61 | F67: 2023-02-16
A68: 169 | B68: =IF(A68="","",IFERROR(VLOOKUP(A68,CADASTRO!C:D,2,FALSE),"Produto Não Cadastrado")) -> PÃO SEMI ITALIANO | C68: =IFERROR(VLOOKUP(A68,CADASTRO!C:F,3,0),"") -> 0 | D68: =VLOOKUP(A68,CADASTRO!C:F,4,0) -> PADARIA TRADICIONAL | E68: 142 | F68: 2023-02-16
A69: 50 | B69: =IF(A69="","",IFERROR(VLOOKUP(A69,CADASTRO!C:D,2,FALSE),"Produto Não Cadastrado")) -> EMPADA BACALHAU | C69: =IFERROR(VLOOKUP(A69,CADASTRO!C:F,3,0),"") -> 0 | D69: =VLOOKUP(A69,CADASTRO!C:F,4,0) -> PADARIA TRADICIONAL | E69: 74 | F69: 2023-02-16
A70: 29 | B70: =IF(A70="","",IFERROR(VLOOKUP(A70,CADASTRO!C:D,2,FALSE),"Produto Não Cadastrado")) -> CATARINA DE FRANGO | C70: =IFERROR(VLOOKUP(A70,CADASTRO!C:F,3,0),"") -> 0 | D70: =VLOOKUP(A70,CADASTRO!C:F,4,0) -> FOLHATERIA | E70: 12 | F70: 2023-02-16
A71: 66 | B71: =IF(A71="","",IFERROR(VLOOKUP(A71,CADASTRO!C:D,2,FALSE),"Produto Não Cadastrado")) -> LASANHA FOLHADA MISTA | C71: =IFERROR(VLOOKUP(A71,CADASTRO!C:F,3,0),"") -> 0 | D71: =VLOOKUP(A71,CADASTRO!C:F,4,0) -> FOLHATERIA | E71: 2 | F71: 2023-02-16
A72: 264 | B72: =IF(A72="","",IFERROR(VLOOKUP(A72,CADASTRO!C:D,2,FALSE),"Produto Não Cadastrado")) -> TRANÇA FOLHADA CALABRESA | C72: =IFERROR(VLOOKUP(A72,CADASTRO!C:F,3,0),"") -> 0 | D72: =VLOOKUP(A72,CADASTRO!C:F,4,0) -> FOLHATERIA | E72: 18 | F72: 2023-02-16
A73: 174 | B73: =IF(A73="","",IFERROR(VLOOKUP(A73,CADASTRO!C:D,2,FALSE),"Produto Não Cadastrado")) -> PASTEL FOLHADO FRANGO | C73: =IFERROR(VLOOKUP(A73,CADASTRO!C:F,3,0),"") -> 0 | D73: =VLOOKUP(A73,CADASTRO!C:F,4,0) -> FOLHATERIA | E73: 72 | F73: 2023-02-16
A74: 173 | B74: =IF(A74="","",IFERROR(VLOOKUP(A74,CADASTRO!C:D,2,FALSE),"Produto Não Cadastrado")) -> PASTEL FOLHADO BACALHAU | C74: =IFERROR(VLOOKUP(A74,CADASTRO!C:F,3,0),"") -> 0 | D74: =VLOOKUP(A74,CADASTRO!C:F,4,0) -> FOLHATERIA | E74: 72 | F74: 2023-02-16
A75: 50 | B75: =IF(A75="","",IFERROR(VLOOKUP(A75,CADASTRO!C:D,2,FALSE),"Produto Não Cadastrado")) -> EMPADA BACALHAU | C75: =IFERROR(VLOOKUP(A75,CADASTRO!C:F,3,0),"") -> 0 | D75: =VLOOKUP(A75,CADASTRO!C:F,4,0) -> PADARIA TRADICIONAL | E75: 2 | F75: 2023-02-20
A76: 61 | B76: =IF(A76="","",IFERROR(VLOOKUP(A76,CADASTRO!C:D,2,FALSE),"Produto Não Cadastrado")) -> FOCACCIA TABULEIRO | C76: =IFERROR(VLOOKUP(A76,CADASTRO!C:F,3,0),"") -> 0 | D76: =VLOOKUP(A76,CADASTRO!C:F,4,0) -> PADARIA RÚSTICA | E76: 1 | F76: 2023-02-20
A77: 83 | B77: =IF(A77="","",IFERROR(VLOOKUP(A77,CADASTRO!C:D,2,FALSE),"Produto Não Cadastrado")) -> MINI FOLHADO GOIABADA | C77: =IFERROR(VLOOKUP(A77,CADASTRO!C:F,3,0),"") -> 0 | D77: =VLOOKUP(A77,CADASTRO!C:F,4,0) -> FOLHATERIA | E77: 0.01 | F77: 2023-02-20
A78: 93 | B78: =IF(A78="","",IFERROR(VLOOKUP(A78,CADASTRO!C:D,2,FALSE),"Produto Não Cadastrado")) -> MINI PASTEL FOLHADO | C78: =IFERROR(VLOOKUP(A78,CADASTRO!C:F,3,0),"") -> 0 | D78: =VLOOKUP(A78,CADASTRO!C:F,4,0) -> FOLHATERIA | E78: 0 | F78: 2023-02-20
A79: 116 | B79: =IF(A79="","",IFERROR(VLOOKUP(A79,CADASTRO!C:D,2,FALSE),"Produto Não Cadastrado")) -> PÃO BAGUETE 10 HORAS | C79: =IFERROR(VLOOKUP(A79,CADASTRO!C:F,3,0),"") -> 0 | D79: =VLOOKUP(A79,CADASTRO!C:F,4,0) -> PADARIA TRADICIONAL | E79: 5 | F79: 2023-02-20
A80: 119 | B80: =IF(A80="","",IFERROR(VLOOKUP(A80,CADASTRO!C:D,2,FALSE),"Produto Não Cadastrado")) -> PÃO BAGUETE LYON | C80: =IFERROR(VLOOKUP(A80,CADASTRO!C:F,3,0),"") -> 0 | D80: =VLOOKUP(A80,CADASTRO!C:F,4,0) -> PADARIA RÚSTICA | E80: 20 | F80: 2023-02-20
A81: 122 | B81: =IF(A81="","",IFERROR(VLOOKUP(A81,CADASTRO!C:D,2,FALSE),"Produto Não Cadastrado")) -> PÃO BENGALA 10 HORAS | C81: =IFERROR(VLOOKUP(A81,CADASTRO!C:F,3,0),"") -> 0 | D81: =VLOOKUP(A81,CADASTRO!C:F,4,0) -> PADARIA TRADICIONAL | E81: 16 | F81: 2023-02-20
A82: 124 | B82: =IF(A82="","",IFERROR(VLOOKUP(A82,CADASTRO!C:D,2,FALSE),"Produto Não Cadastrado")) -> PÃO BRIOCHE HAMBÚRGUER | C82: =IFERROR(VLOOKUP(A82,CADASTRO!C:F,3,0),"") -> 0 | D82: =VLOOKUP(A82,CADASTRO!C:F,4,0) -> PADARIA TRADICIONAL | E82: 9 | F82: 2023-02-20
A83: 126 | B83: =IF(A83="","",IFERROR(VLOOKUP(A83,CADASTRO!C:D,2,FALSE),"Produto Não Cadastrado")) -> PÃO CAMPONÊS | C83: =IFERROR(VLOOKUP(A83,CADASTRO!C:F,3,0),"") -> 0 | D83: =VLOOKUP(A83,CADASTRO!C:F,4,0) -> PADARIA RÚSTICA | E83: 31 | F83: 2023-02-20
A84: 153 | B84: =IF(A84="","",IFERROR(VLOOKUP(A84,CADASTRO!C:D,2,FALSE),"Produto Não Cadastrado")) -> PÃO FORMA BATATA A25 | C84: =IFERROR(VLOOKUP(A84,CADASTRO!C:F,3,0),"") -> 0 | D84: =VLOOKUP(A84,CADASTRO!C:F,4,0) -> PADARIA TRADICIONAL | E84: 2 | F84: 2023-02-20
A85: 155 | B85: =IF(A85="","",IFERROR(VLOOKUP(A85,CADASTRO!C:D,2,FALSE),"Produto Não Cadastrado")) -> PÃO FORMA INTEGRAL 1000 | C85: =IFERROR(VLOOKUP(A85,CADASTRO!C:F,3,0),"") -> 0 | D85: =VLOOKUP(A85,CADASTRO!C:F,4,0) -> PADARIA TRADICIONAL | E85: 3 | F85: 2023-02-20
A86: 156 | B86: =IF(A86="","",IFERROR(VLOOKUP(A86,CADASTRO!C:D,2,FALSE),"Produto Não Cadastrado")) -> PÃO FORMA INTEGRAL 700 | C86: =IFERROR(VLOOKUP(A86,CADASTRO!C:F,3,0),"") -> 0 | D86: =VLOOKUP(A86,CADASTRO!C:F,4,0) -> PADARIA TRADICIONAL | E86: 2 | F86: 2023-02-20
A87: 161 | B87: =IF(A87="","",IFERROR(VLOOKUP(A87,CADASTRO!C:D,2,FALSE),"Produto Não Cadastrado")) -> PÃO FRANCÊS 10H | C87: =IFERROR(VLOOKUP(A87,CADASTRO!C:F,3,0),"") -> 0 | D87: =VLOOKUP(A87,CADASTRO!C:F,4,0) -> PADARIA TRADICIONAL | E87: 77 | F87: 2023-02-20
A88: 163 | B88: =IF(A88="","",IFERROR(VLOOKUP(A88,CADASTRO!C:D,2,FALSE),"Produto Não Cadastrado")) -> PÃO FRANCÊS 5H | C88: =IFERROR(VLOOKUP(A88,CADASTRO!C:F,3,0),"") -> 0 | D88: =VLOOKUP(A88,CADASTRO!C:F,4,0) -> PADARIA TRADICIONAL | E88: 37 | F88: 2023-02-20
A89: 224 | B89: =IF(A89="","",IFERROR(VLOOKUP(A89,CADASTRO!C:D,2,FALSE),"Produto Não Cadastrado")) -> QUICHE BACALHAU | C89: =IFERROR(VLOOKUP(A89,CADASTRO!C:F,3,0),"") -> 0 | D89: =VLOOKUP(A89,CADASTRO!C:F,4,0) -> QUITUTERIA | E89: 58 | F89: 2023-02-20
A90: 225 | B90: =IF(A90="","",IFERROR(VLOOKUP(A90,CADASTRO!C:D,2,FALSE),"Produto Não Cadastrado")) -> QUICHE FRANGO | C90: =IFERROR(VLOOKUP(A90,CADASTRO!C:F,3,0),"") -> 0 | D90: =VLOOKUP(A90,CADASTRO!C:F,4,0) -> QUITUTERIA | E90: 64 | F90: 2023-02-20
A91: 227 | B91: =IF(A91="","",IFERROR(VLOOKUP(A91,CADASTRO!C:D,2,FALSE),"Produto Não Cadastrado")) -> QUICHE MARAJOARA | C91: =IFERROR(VLOOKUP(A91,CADASTRO!C:F,3,0),"") -> 0 | D91: =VLOOKUP(A91,CADASTRO!C:F,4,0) -> QUITUTERIA | E91: 68 | F91: 2023-02-20
A92: 229 | B92: =IF(A92="","",IFERROR(VLOOKUP(A92,CADASTRO!C:D,2,FALSE),"Produto Não Cadastrado")) -> QUICHE QUEIJO CUIA | C92: =IFERROR(VLOOKUP(A92,CADASTRO!C:F,3,0),"") -> 0 | D92: =VLOOKUP(A92,CADASTRO!C:F,4,0) -> QUITUTERIA | E92: 10 | F92: 2023-02-20
A93: 246 | B93: =IF(A93="","",IFERROR(VLOOKUP(A93,CADASTRO!C:D,2,FALSE),"Produto Não Cadastrado")) -> SALGADO ITALIANO MIX FRIOS | C93: =IFERROR(VLOOKUP(A93,CADASTRO!C:F,3,0),"") -> 0 | D93: =VLOOKUP(A93,CADASTRO!C:F,4,0) -> PADARIA TRADICIONAL | E93: 80 | F93: 2023-02-20
A94: 273 | B94: =IF(A94="","",IFERROR(VLOOKUP(A94,CADASTRO!C:D,2,FALSE),"Produto Não Cadastrado")) -> PÃO BENGALA 5 HORAS | C94: =IFERROR(VLOOKUP(A94,CADASTRO!C:F,3,0),"") -> 0 | D94: =VLOOKUP(A94,CADASTRO!C:F,4,0) -> PADARIA TRADICIONAL | E94: 20 | F94: 2023-02-20
A95: 71 | B95: =IF(A95="","",IFERROR(VLOOKUP(A95,CADASTRO!C:D,2,FALSE),"Produto Não Cadastrado")) -> MASSA MINI PIZZA | C95: =IFERROR(VLOOKUP(A95,CADASTRO!C:F,3,0),"") -> 0 | D95: =VLOOKUP(A95,CADASTRO!C:F,4,0) -> PADARIA TRADICIONAL | E95: 3 | F95: 2023-02-20
A96: 267 | B96: =IF(A96="","",IFERROR(VLOOKUP(A96,CADASTRO!C:D,2,FALSE),"Produto Não Cadastrado")) -> TRANÇA FOLHADA MISTA | C96: =IFERROR(VLOOKUP(A96,CADASTRO!C:F,3,0),"") -> 0 | D96: =VLOOKUP(A96,CADASTRO!C:F,4,0) -> FOLHATERIA | E96: 18 | F96: 2023-02-22
A97: 108 | B97: =IF(A97="","",IFERROR(VLOOKUP(A97,CADASTRO!C:D,2,FALSE),"Produto Não Cadastrado")) -> ORELINHA TRADICIONAL | C97: =IFERROR(VLOOKUP(A97,CADASTRO!C:F,3,0),"") -> 0 | D97: =VLOOKUP(A97,CADASTRO!C:F,4,0) -> FOLHATERIA | E97: 16 | F97: 2023-02-22
A98: 66 | B98: =IF(A98="","",IFERROR(VLOOKUP(A98,CADASTRO!C:D,2,FALSE),"Produto Não Cadastrado")) -> LASANHA FOLHADA MISTA | C98: =IFERROR(VLOOKUP(A98,CADASTRO!C:F,3,0),"") -> 0 | D98: =VLOOKUP(A98,CADASTRO!C:F,4,0) -> FOLHATERIA | E98: 2 | F98: 2023-02-22
A99: 94 | B99: =IF(A99="","",IFERROR(VLOOKUP(A99,CADASTRO!C:D,2,FALSE),"Produto Não Cadastrado")) -> MINI TRANÇA BACALHAU | C99: =IFERROR(VLOOKUP(A99,CADASTRO!C:F,3,0),"") -> 0 | D99: =VLOOKUP(A99,CADASTRO!C:F,4,0) -> FOLHATERIA | E99: 16 | F99: 2023-02-20
A100: 270 | B100: =IF(A100="","",IFERROR(VLOOKUP(A100,CADASTRO!C:D,2,FALSE),"Produto Não Cadastrado")) -> TRANÇA FOLHADA PERNIL | C100: =IFERROR(VLOOKUP(A100,CADASTRO!C:F,3,0),"") -> 0 | D100: =VLOOKUP(A100,CADASTRO!C:F,4,0) -> FOLHATERIA | E100: 12 | F100: 2023-02-20
A101: 269 | B101: =IF(A101="","",IFERROR(VLOOKUP(A101,CADASTRO!C:D,2,FALSE),"Produto Não Cadastrado")) -> TRANÇA FOLHADA PEITO DEFUMADO | C101: =IFERROR(VLOOKUP(A101,CADASTRO!C:F,3,0),"") -> 0 | D101: =VLOOKUP(A101,CADASTRO!C:F,4,0) -> FOLHATERIA | E101: 12 | F101: 2023-02-20
A102: 266 | B102: =IF(A102="","",IFERROR(VLOOKUP(A102,CADASTRO!C:D,2,FALSE),"Produto Não Cadastrado")) -> TRANÇA FOLHADA FRANGO/JAMBU | C102: =IFERROR(VLOOKUP(A102,CADASTRO!C:F,3,0),"") -> 0 | D102: =VLOOKUP(A102,CADASTRO!C:F,4,0) -> FOLHATERIA | E102: 12 | F102: 2023-02-20
A103: 71 | B103: =IF(A103="","",IFERROR(VLOOKUP(A103,CADASTRO!C:D,2,FALSE),"Produto Não Cadastrado")) -> MASSA MINI PIZZA | C103: =IFERROR(VLOOKUP(A103,CADASTRO!C:F,3,0),"") -> 0 | D103: =VLOOKUP(A103,CADASTRO!C:F,4,0) -> PADARIA TRADICIONAL | E103: 3 | F103: 2023-02-20
A104: 53 | B104: =IF(A104="","",IFERROR(VLOOKUP(A104,CADASTRO!C:D,2,FALSE),"Produto Não Cadastrado")) -> EMPADA PALMITO | C104: =IFERROR(VLOOKUP(A104,CADASTRO!C:F,3,0),"") -> 0 | D104: =VLOOKUP(A104,CADASTRO!C:F,4,0) -> PADARIA TRADICIONAL | E104: 72 | F104: 2023-02-20
A105: 154 | B105: =IF(A105="","",IFERROR(VLOOKUP(A105,CADASTRO!C:D,2,FALSE),"Produto Não Cadastrado")) -> PÃO FORMA BRIOCHE A25 | C105: =IFERROR(VLOOKUP(A105,CADASTRO!C:F,3,0),"") -> 0 | D105: =VLOOKUP(A105,CADASTRO!C:F,4,0) -> PADARIA TRADICIONAL | E105: 39 | F105: 2023-02-20
A106: 92 | B106: =IF(A106="","",IFERROR(VLOOKUP(A106,CADASTRO!C:D,2,FALSE),"Produto Não Cadastrado")) -> MINI PÃO DELÍCIA (PCT C/ 24UND) | C106: =IFERROR(VLOOKUP(A106,CADASTRO!C:F,3,0),"") -> 0 | D106: =VLOOKUP(A106,CADASTRO!C:F,4,0) -> PADARIA TRADICIONAL | E106: 18 | F106: 2023-02-20
A107: 78 | B107: =IF(A107="","",IFERROR(VLOOKUP(A107,CADASTRO!C:D,2,FALSE),"Produto Não Cadastrado")) -> MINI FOLHADO BACALHAU | C107: =IFERROR(VLOOKUP(A107,CADASTRO!C:F,3,0),"") -> 0 | D107: =VLOOKUP(A107,CADASTRO!C:F,4,0) -> FOLHATERIA | E107: 7.33 | F107: 2023-02-20
A108: 79 | B108: =IF(A108="","",IFERROR(VLOOKUP(A108,CADASTRO!C:D,2,FALSE),"Produto Não Cadastrado")) -> MINI FOLHADO CALABRESA | C108: =IFERROR(VLOOKUP(A108,CADASTRO!C:F,3,0),"") -> 0 | D108: =VLOOKUP(A108,CADASTRO!C:F,4,0) -> FOLHATERIA | E108: 6.29 | F108: 2023-02-20
A109: 81 | B109: =IF(A109="","",IFERROR(VLOOKUP(A109,CADASTRO!C:D,2,FALSE),"Produto Não Cadastrado")) -> MINI FOLHADO DE QUEIJO | C109: =IFERROR(VLOOKUP(A109,CADASTRO!C:F,3,0),"") -> 0 | D109: =VLOOKUP(A109,CADASTRO!C:F,4,0) -> FOLHATERIA | E109: 6.73 | F109: 2023-02-20
A110: 82 | B110: =IF(A110="","",IFERROR(VLOOKUP(A110,CADASTRO!C:D,2,FALSE),"Produto Não Cadastrado")) -> MINI FOLHADO FRANGO | C110: =IFERROR(VLOOKUP(A110,CADASTRO!C:F,3,0),"") -> 0 | D110: =VLOOKUP(A110,CADASTRO!C:F,4,0) -> FOLHATERIA | E110: 3.3 | F110: 2023-02-20
A111: 41 | B111: =IF(A111="","",IFERROR(VLOOKUP(A111,CADASTRO!C:D,2,FALSE),"Produto Não Cadastrado")) -> CROISSANT CONGELADO | C111: =IFERROR(VLOOKUP(A111,CADASTRO!C:F,3,0),"") -> 0 | D111: =VLOOKUP(A111,CADASTRO!C:F,4,0) -> PADARIA TRADICIONAL | E111: 648 | F111: 2023-02-22
A112: 131 | B112: =IF(A112="","",IFERROR(VLOOKUP(A112,CADASTRO!C:D,2,FALSE),"Produto Não Cadastrado")) -> PÃO CUCA DE BANANA | C112: =IFERROR(VLOOKUP(A112,CADASTRO!C:F,3,0),"") -> 0 | D112: =VLOOKUP(A112,CADASTRO!C:F,4,0) -> PADARIA TRADICIONAL | E112: 25 | F112: 2023-02-22
A113: 132 | B113: =IF(A113="","",IFERROR(VLOOKUP(A113,CADASTRO!C:D,2,FALSE),"Produto Não Cadastrado")) -> PÃO CUCA GOIABADA | C113: =IFERROR(VLOOKUP(A113,CADASTRO!C:F,3,0),"") -> 0 | D113: =VLOOKUP(A113,CADASTRO!C:F,4,0) -> PADARIA TRADICIONAL | E113: 32 | F113: 2023-02-22
A114: 17 | B114: =IF(A114="","",IFERROR(VLOOKUP(A114,CADASTRO!C:D,2,FALSE),"Produto Não Cadastrado")) -> BISCOITO MONTEIRO LOPES | C114: =IFERROR(VLOOKUP(A114,CADASTRO!C:F,3,0),"") -> 0 | D114: =VLOOKUP(A114,CADASTRO!C:F,4,0) -> PADARIA TRADICIONAL | E114: 18 | F114: 2023-02-22
A115: 91 | B115: =IF(A115="","",IFERROR(VLOOKUP(A115,CADASTRO!C:D,2,FALSE),"Produto Não Cadastrado")) -> MINI PÃO BRIOCHE (PCT C/ 24UND) | C115: =IFERROR(VLOOKUP(A115,CADASTRO!C:F,3,0),"") -> 0 | D115: =VLOOKUP(A115,CADASTRO!C:F,4,0) -> PADARIA TRADICIONAL | E115: 8 | F115: 2023-02-22
A116: 123 | B116: =IF(A116="","",IFERROR(VLOOKUP(A116,CADASTRO!C:D,2,FALSE),"Produto Não Cadastrado")) -> PÃO BRIOCHE DE FORMA 1000 | C116: =IFERROR(VLOOKUP(A116,CADASTRO!C:F,3,0),"") -> 0 | D116: =VLOOKUP(A116,CADASTRO!C:F,4,0) -> PADARIA TRADICIONAL | E116: 32 | F116: 2023-02-22
A117: 154 | B117: =IF(A117="","",IFERROR(VLOOKUP(A117,CADASTRO!C:D,2,FALSE),"Produto Não Cadastrado")) -> PÃO FORMA BRIOCHE A25 | C117: =IFERROR(VLOOKUP(A117,CADASTRO!C:F,3,0),"") -> 0 | D117: =VLOOKUP(A117,CADASTRO!C:F,4,0) -> PADARIA TRADICIONAL | E117: 12 | F117: 2023-02-22
A118: 159 | B118: =IF(A118="","",IFERROR(VLOOKUP(A118,CADASTRO!C:D,2,FALSE),"Produto Não Cadastrado")) -> PÃO FORMA TRADICIONAL 1000 | C118: =IFERROR(VLOOKUP(A118,CADASTRO!C:F,3,0),"") -> 0 | D118: =VLOOKUP(A118,CADASTRO!C:F,4,0) -> PADARIA TRADICIONAL | E118: 37 | F118: 2023-02-22
A119: 160 | B119: =IF(A119="","",IFERROR(VLOOKUP(A119,CADASTRO!C:D,2,FALSE),"Produto Não Cadastrado")) -> PÃO FORMA TRADICIONAL 700 | C119: =IFERROR(VLOOKUP(A119,CADASTRO!C:F,3,0),"") -> 0 | D119: =VLOOKUP(A119,CADASTRO!C:F,4,0) -> PADARIA TRADICIONAL | E119: 2 | F119: 2023-02-22
A120: 39 | B120: =IF(A120="","",IFERROR(VLOOKUP(A120,CADASTRO!C:D,2,FALSE),"Produto Não Cadastrado")) -> CROISSANT AMÊNDOAS | C120: =IFERROR(VLOOKUP(A120,CADASTRO!C:F,3,0),"") -> 0 | D120: =VLOOKUP(A120,CADASTRO!C:F,4,0) -> PADARIA TRADICIONAL | E120: 122 | F120: 2023-02-22
A121: 13 | B121: =IF(A121="","",IFERROR(VLOOKUP(A121,CADASTRO!C:D,2,FALSE),"Produto Não Cadastrado")) -> BISCOITO CATUPIRI | C121: =IFERROR(VLOOKUP(A121,CADASTRO!C:F,3,0),"") -> 0 | D121: =VLOOKUP(A121,CADASTRO!C:F,4,0) -> PADARIA TRADICIONAL | E121: 9.57 | F121: 2023-02-22
A122: 80 | B122: =IF(A122="","",IFERROR(VLOOKUP(A122,CADASTRO!C:D,2,FALSE),"Produto Não Cadastrado")) -> MINI FOLHADO CUPUAÇU | C122: =IFERROR(VLOOKUP(A122,CADASTRO!C:F,3,0),"") -> 0 | D122: =VLOOKUP(A122,CADASTRO!C:F,4,0) -> FOLHATERIA | E122: 7.31 | F122: 2023-02-22
A123: 107 | B123: =IF(A123="","",IFERROR(VLOOKUP(A123,CADASTRO!C:D,2,FALSE),"Produto Não Cadastrado")) -> ORELHINHA CANELA | C123: =IFERROR(VLOOKUP(A123,CADASTRO!C:F,3,0),"") -> 0 | D123: =VLOOKUP(A123,CADASTRO!C:F,4,0) -> FOLHATERIA | E123: 7.48 | F123: 2023-02-22
A124: 108 | B124: =IF(A124="","",IFERROR(VLOOKUP(A124,CADASTRO!C:D,2,FALSE),"Produto Não Cadastrado")) -> ORELINHA TRADICIONAL | C124: =IFERROR(VLOOKUP(A124,CADASTRO!C:F,3,0),"") -> 0 | D124: =VLOOKUP(A124,CADASTRO!C:F,4,0) -> FOLHATERIA | E124: 7.38 | F124: 2023-02-22
A125: 263 | B125: =IF(A125="","",IFERROR(VLOOKUP(A125,CADASTRO!C:D,2,FALSE),"Produto Não Cadastrado")) -> TRANÇA FOLHADA BACALHAU | C125: =IFERROR(VLOOKUP(A125,CADASTRO!C:F,3,0),"") -> 0 | D125: =VLOOKUP(A125,CADASTRO!C:F,4,0) -> FOLHATERIA | E125: 12 | F125: 2023-02-23
A126: 270 | B126: =IF(A126="","",IFERROR(VLOOKUP(A126,CADASTRO!C:D,2,FALSE),"Produto Não Cadastrado")) -> TRANÇA FOLHADA PERNIL | C126: =IFERROR(VLOOKUP(A126,CADASTRO!C:F,3,0),"") -> 0 | D126: =VLOOKUP(A126,CADASTRO!C:F,4,0) -> FOLHATERIA | E126: 12 | F126: 2023-02-23
A127: 155 | B127: =IF(A127="","",IFERROR(VLOOKUP(A127,CADASTRO!C:D,2,FALSE),"Produto Não Cadastrado")) -> PÃO FORMA INTEGRAL 1000 | C127: =IFERROR(VLOOKUP(A127,CADASTRO!C:F,3,0),"") -> 0 | D127: =VLOOKUP(A127,CADASTRO!C:F,4,0) -> PADARIA TRADICIONAL | E127: 30 | F127: 2023-02-23
A128: 110 | B128: =IF(A128="","",IFERROR(VLOOKUP(A128,CADASTRO!C:D,2,FALSE),"Produto Não Cadastrado")) -> PALITO CANELA | C128: =IFERROR(VLOOKUP(A128,CADASTRO!C:F,3,0),"") -> 0 | D128: =VLOOKUP(A128,CADASTRO!C:F,4,0) -> FOLHATERIA | E128: 7.78 | F128: 2023-02-23
A129: 153 | B129: =IF(A129="","",IFERROR(VLOOKUP(A129,CADASTRO!C:D,2,FALSE),"Produto Não Cadastrado")) -> PÃO FORMA BATATA A25 | C129: =IFERROR(VLOOKUP(A129,CADASTRO!C:F,3,0),"") -> 0 | D129: =VLOOKUP(A129,CADASTRO!C:F,4,0) -> PADARIA TRADICIONAL | E129: 66 | F129: 2023-02-23
A130: 156 | B130: =IF(A130="","",IFERROR(VLOOKUP(A130,CADASTRO!C:D,2,FALSE),"Produto Não Cadastrado")) -> PÃO FORMA INTEGRAL 700 | C130: =IFERROR(VLOOKUP(A130,CADASTRO!C:F,3,0),"") -> 0 | D130: =VLOOKUP(A130,CADASTRO!C:F,4,0) -> PADARIA TRADICIONAL | E130: 10 | F130: 2023-02-23
A131: 157 | B131: =IF(A131="","",IFERROR(VLOOKUP(A131,CADASTRO!C:D,2,FALSE),"Produto Não Cadastrado")) -> PÃO FORMA LEITE A25 | C131: =IFERROR(VLOOKUP(A131,CADASTRO!C:F,3,0),"") -> 0 | D131: =VLOOKUP(A131,CADASTRO!C:F,4,0) -> PADARIA TRADICIONAL | E131: 89 | F131: 2023-02-23
A132: 170 | B132: =IF(A132="","",IFERROR(VLOOKUP(A132,CADASTRO!C:D,2,FALSE),"Produto Não Cadastrado")) -> PÃO VIENNOIS | C132: =IFERROR(VLOOKUP(A132,CADASTRO!C:F,3,0),"") -> 0 | D132: =VLOOKUP(A132,CADASTRO!C:F,4,0) -> PADARIA TRADICIONAL | E132: 191 | F132: 2023-02-23
A133: 135 | B133: =IF(A133="","",IFERROR(VLOOKUP(A133,CADASTRO!C:D,2,FALSE),"Produto Não Cadastrado")) -> PÃO DE BATATA FILÃO | C133: =IFERROR(VLOOKUP(A133,CADASTRO!C:F,3,0),"") -> 0 | D133: =VLOOKUP(A133,CADASTRO!C:F,4,0) -> PADARIA TRADICIONAL | E133: 100 | F133: 2023-02-23
A134: 88 | B134: =IF(A134="","",IFERROR(VLOOKUP(A134,CADASTRO!C:D,2,FALSE),"Produto Não Cadastrado")) -> MINI PÃO BATATA (ERVAS,PARMESÃO) | C134: =IFERROR(VLOOKUP(A134,CADASTRO!C:F,3,0),"") -> 0 | D134: =VLOOKUP(A134,CADASTRO!C:F,4,0) -> PADARIA TRADICIONAL | E134: 300 | F134: 2023-02-23
A135: 89 | B135: =IF(A135="","",IFERROR(VLOOKUP(A135,CADASTRO!C:D,2,FALSE),"Produto Não Cadastrado")) -> MINI PÃO BATATA HAMBÚRGUER | C135: =IFERROR(VLOOKUP(A135,CADASTRO!C:F,3,0),"") -> 0 | D135: =VLOOKUP(A135,CADASTRO!C:F,4,0) -> PADARIA TRADICIONAL | E135: 216 | F135: 2023-02-23
A136: 41 | B136: =IF(A136="","",IFERROR(VLOOKUP(A136,CADASTRO!C:D,2,FALSE),"Produto Não Cadastrado")) -> CROISSANT CONGELADO | C136: =IFERROR(VLOOKUP(A136,CADASTRO!C:F,3,0),"") -> 0 | D136: =VLOOKUP(A136,CADASTRO!C:F,4,0) -> PADARIA TRADICIONAL | E136: 445 | F136: 2023-02-23
A137: 181 | B137: =IF(A137="","",IFERROR(VLOOKUP(A137,CADASTRO!C:D,2,FALSE),"Produto Não Cadastrado")) -> PIZZA INTEGRAL (MASSA) | C137: =IFERROR(VLOOKUP(A137,CADASTRO!C:F,3,0),"") -> 0 | D137: =VLOOKUP(A137,CADASTRO!C:F,4,0) -> PADARIA TRADICIONAL | E137: 16 | F137: 2023-02-23
A138: 154 | B138: =IF(A138="","",IFERROR(VLOOKUP(A138,CADASTRO!C:D,2,FALSE),"Produto Não Cadastrado")) -> PÃO FORMA BRIOCHE A25 | C138: =IFERROR(VLOOKUP(A138,CADASTRO!C:F,3,0),"") -> 0 | D138: =VLOOKUP(A138,CADASTRO!C:F,4,0) -> PADARIA TRADICIONAL | E138: 88 | F138: 2023-02-23
A139: 49 | B139: =IF(A139="","",IFERROR(VLOOKUP(A139,CADASTRO!C:D,2,FALSE),"Produto Não Cadastrado")) -> DONNUTS | C139: =IFERROR(VLOOKUP(A139,CADASTRO!C:F,3,0),"") -> 0 | D139: =VLOOKUP(A139,CADASTRO!C:F,4,0) -> PADARIA TRADICIONAL | E139: 88 | F139: 2023-02-24
A140: 244 | B140: =IF(A140="","",IFERROR(VLOOKUP(A140,CADASTRO!C:D,2,FALSE),"Produto Não Cadastrado")) -> ROSQUINHA DE LEITE (PCT C/ 32UND) | C140: =IFERROR(VLOOKUP(A140,CADASTRO!C:F,3,0),"") -> 0 | D140: =VLOOKUP(A140,CADASTRO!C:F,4,0) -> PADARIA TRADICIONAL | E140: 889 | F140: 2023-02-24
A141: 41 | B141: =IF(A141="","",IFERROR(VLOOKUP(A141,CADASTRO!C:D,2,FALSE),"Produto Não Cadastrado")) -> CROISSANT CONGELADO | C141: =IFERROR(VLOOKUP(A141,CADASTRO!C:F,3,0),"") -> 0 | D141: =VLOOKUP(A141,CADASTRO!C:F,4,0) -> PADARIA TRADICIONAL | E141: 16 | F141: 2023-02-24
A142: 172 | B142: =IF(A142="","",IFERROR(VLOOKUP(A142,CADASTRO!C:D,2,FALSE),"Produto Não Cadastrado")) -> PASTEL DE BELÉM (MASSA) | C142: =IFERROR(VLOOKUP(A142,CADASTRO!C:F,3,0),"") -> 0 | D142: =VLOOKUP(A142,CADASTRO!C:F,4,0) -> FOLHATERIA | E142: 16 | F142: 2023-02-24
A143: 26 | B143: =IF(A143="","",IFERROR(VLOOKUP(A143,CADASTRO!C:D,2,FALSE),"Produto Não Cadastrado")) -> CARRET | C143: =IFERROR(VLOOKUP(A143,CADASTRO!C:F,3,0),"") -> 0 | D143: =VLOOKUP(A143,CADASTRO!C:F,4,0) -> FOLHATERIA | E143: 159 | F143: 2023-02-24
A144: 112 | B144: =IF(A144="","",IFERROR(VLOOKUP(A144,CADASTRO!C:D,2,FALSE),"Produto Não Cadastrado")) -> PALMIER | C144: =IFERROR(VLOOKUP(A144,CADASTRO!C:F,3,0),"") -> 0 | D144: =VLOOKUP(A144,CADASTRO!C:F,4,0) -> FOLHATERIA | E144: 140 | F144: 2023-02-24
A145: 269 | B145: =IF(A145="","",IFERROR(VLOOKUP(A145,CADASTRO!C:D,2,FALSE),"Produto Não Cadastrado")) -> TRANÇA FOLHADA PEITO DEFUMADO | C145: =IFERROR(VLOOKUP(A145,CADASTRO!C:F,3,0),"") -> 0 | D145: =VLOOKUP(A145,CADASTRO!C:F,4,0) -> FOLHATERIA | E145: 12 | F145: 2023-02-24
A146: 264 | B146: =IF(A146="","",IFERROR(VLOOKUP(A146,CADASTRO!C:D,2,FALSE),"Produto Não Cadastrado")) -> TRANÇA FOLHADA CALABRESA | C146: =IFERROR(VLOOKUP(A146,CADASTRO!C:F,3,0),"") -> 0 | D146: =VLOOKUP(A146,CADASTRO!C:F,4,0) -> FOLHATERIA | E146: 12 | F146: 2023-02-24
A147: 176 | B147: =IF(A147="","",IFERROR(VLOOKUP(A147,CADASTRO!C:D,2,FALSE),"Produto Não Cadastrado")) -> PASTEL FOLHADO QUEIJO | C147: =IFERROR(VLOOKUP(A147,CADASTRO!C:F,3,0),"") -> 0 | D147: =VLOOKUP(A147,CADASTRO!C:F,4,0) -> FOLHATERIA | E147: 72 | F147: 2023-02-24
A148: 119 | B148: =IF(A148="","",IFERROR(VLOOKUP(A148,CADASTRO!C:D,2,FALSE),"Produto Não Cadastrado")) -> PÃO BAGUETE LYON | C148: =IFERROR(VLOOKUP(A148,CADASTRO!C:F,3,0),"") -> 0 | D148: =VLOOKUP(A148,CADASTRO!C:F,4,0) -> PADARIA RÚSTICA | E148: 39 | F148: 2023-02-24
A149: 126 | B149: =IF(A149="","",IFERROR(VLOOKUP(A149,CADASTRO!C:D,2,FALSE),"Produto Não Cadastrado")) -> PÃO CAMPONÊS | C149: =IFERROR(VLOOKUP(A149,CADASTRO!C:F,3,0),"") -> 0 | D149: =VLOOKUP(A149,CADASTRO!C:F,4,0) -> PADARIA RÚSTICA | E149: 14 | F149: 2023-02-24
A150: 61 | B150: =IF(A150="","",IFERROR(VLOOKUP(A150,CADASTRO!C:D,2,FALSE),"Produto Não Cadastrado")) -> FOCACCIA TABULEIRO | C150: =IFERROR(VLOOKUP(A150,CADASTRO!C:F,3,0),"") -> 0 | D150: =VLOOKUP(A150,CADASTRO!C:F,4,0) -> PADARIA RÚSTICA | E150: 3 | F150: 2023-02-24
A151: 78 | B151: =IF(A151="","",IFERROR(VLOOKUP(A151,CADASTRO!C:D,2,FALSE),"Produto Não Cadastrado")) -> MINI FOLHADO BACALHAU | C151: =IFERROR(VLOOKUP(A151,CADASTRO!C:F,3,0),"") -> 0 | D151: =VLOOKUP(A151,CADASTRO!C:F,4,0) -> FOLHATERIA | E151: 3.4 | F151: 2023-02-24
A152: 93 | B152: =IF(A152="","",IFERROR(VLOOKUP(A152,CADASTRO!C:D,2,FALSE),"Produto Não Cadastrado")) -> MINI PASTEL FOLHADO | C152: =IFERROR(VLOOKUP(A152,CADASTRO!C:F,3,0),"") -> 0 | D152: =VLOOKUP(A152,CADASTRO!C:F,4,0) -> FOLHATERIA | E152: 3.65 | F152: 2023-02-24
A153: 111 | B153: =IF(A153="","",IFERROR(VLOOKUP(A153,CADASTRO!C:D,2,FALSE),"Produto Não Cadastrado")) -> PALITO QUEIJO | C153: =IFERROR(VLOOKUP(A153,CADASTRO!C:F,3,0),"") -> 0 | D153: =VLOOKUP(A153,CADASTRO!C:F,4,0) -> FOLHATERIA | E153: 3.3 | F153: 2023-02-24
B154: =IF(A154="","",IFERROR(VLOOKUP(A154,CADASTRO!C:D,2,FALSE),"Produto Não Cadastrado")) ->  | C154: =IFERROR(VLOOKUP(A154,CADASTRO!C:F,3,0),"") ->  | D154: =VLOOKUP(A154,CADASTRO!C:F,4,0) -> 
B155: =IF(A155="","",IFERROR(VLOOKUP(A155,CADASTRO!C:D,2,FALSE),"Produto Não Cadastrado")) ->  | C155: =IFERROR(VLOOKUP(A155,CADASTRO!C:F,3,0),"") ->  | D155: =VLOOKUP(A155,CADASTRO!C:F,4,0) -> 
B156: =IF(A156="","",IFERROR(VLOOKUP(A156,CADASTRO!C:D,2,FALSE),"Produto Não Cadastrado")) ->  | C156: =IFERROR(VLOOKUP(A156,CADASTRO!C:F,3,0),"") ->  | D156: =VLOOKUP(A156,CADASTRO!C:F,4,0) -> 
B157: =IF(A157="","",IFERROR(VLOOKUP(A157,CADASTRO!C:D,2,FALSE),"Produto Não Cadastrado")) ->  | C157: =IFERROR(VLOOKUP(A157,CADASTRO!C:F,3,0),"") ->  | D157: =VLOOKUP(A157,CADASTRO!C:F,4,0) -> 
B158: =IF(A158="","",IFERROR(VLOOKUP(A158,CADASTRO!C:D,2,FALSE),"Produto Não Cadastrado")) ->  | C158: =IFERROR(VLOOKUP(A158,CADASTRO!C:F,3,0),"") ->  | D158: =VLOOKUP(A158,CADASTRO!C:F,4,0) -> 
B159: =IF(A159="","",IFERROR(VLOOKUP(A159,CADASTRO!C:D,2,FALSE),"Produto Não Cadastrado")) ->  | C159: =IFERROR(VLOOKUP(A159,CADASTRO!C:F,3,0),"") ->  | D159: =VLOOKUP(A159,CADASTRO!C:F,4,0) -> 
B160: =IF(A160="","",IFERROR(VLOOKUP(A160,CADASTRO!C:D,2,FALSE),"Produto Não Cadastrado")) ->  | C160: =IFERROR(VLOOKUP(A160,CADASTRO!C:F,3,0),"") ->  | D160: =VLOOKUP(A160,CADASTRO!C:F,4,0) -> 
B161: =IF(A161="","",IFERROR(VLOOKUP(A161,CADASTRO!C:D,2,FALSE),"Produto Não Cadastrado")) ->  | C161: =IFERROR(VLOOKUP(A161,CADASTRO!C:F,3,0),"") ->  | D161: =VLOOKUP(A161,CADASTRO!C:F,4,0) -> 
B162: =IF(A162="","",IFERROR(VLOOKUP(A162,CADASTRO!C:D,2,FALSE),"Produto Não Cadastrado")) ->  | C162: =IFERROR(VLOOKUP(A162,CADASTRO!C:F,3,0),"") ->  | D162: =VLOOKUP(A162,CADASTRO!C:F,4,0) -> 
B163: =IF(A163="","",IFERROR(VLOOKUP(A163,CADASTRO!C:D,2,FALSE),"Produto Não Cadastrado")) ->  | C163: =IFERROR(VLOOKUP(A163,CADASTRO!C:F,3,0),"") ->  | D163: =VLOOKUP(A163,CADASTRO!C:F,4,0) -> 
B164: =IF(A164="","",IFERROR(VLOOKUP(A164,CADASTRO!C:D,2,FALSE),"Produto Não Cadastrado")) ->  | C164: =IFERROR(VLOOKUP(A164,CADASTRO!C:F,3,0),"") ->  | D164: =VLOOKUP(A164,CADASTRO!C:F,4,0) -> 
B165: =IF(A165="","",IFERROR(VLOOKUP(A165,CADASTRO!C:D,2,FALSE),"Produto Não Cadastrado")) ->  | C165: =IFERROR(VLOOKUP(A165,CADASTRO!C:F,3,0),"") ->  | D165: =VLOOKUP(A165,CADASTRO!C:F,4,0) -> 
B166: =IF(A166="","",IFERROR(VLOOKUP(A166,CADASTRO!C:D,2,FALSE),"Produto Não Cadastrado")) ->  | C166: =IFERROR(VLOOKUP(A166,CADASTRO!C:F,3,0),"") ->  | D166: =VLOOKUP(A166,CADASTRO!C:F,4,0) -> 
B167: =IF(A167="","",IFERROR(VLOOKUP(A167,CADASTRO!C:D,2,FALSE),"Produto Não Cadastrado")) ->  | C167: =IFERROR(VLOOKUP(A167,CADASTRO!C:F,3,0),"") ->  | D167: =VLOOKUP(A167,CADASTRO!C:F,4,0) -> 
B168: =IF(A168="","",IFERROR(VLOOKUP(A168,CADASTRO!C:D,2,FALSE),"Produto Não Cadastrado")) ->  | C168: =IFERROR(VLOOKUP(A168,CADASTRO!C:F,3,0),"") ->  | D168: =VLOOKUP(A168,CADASTRO!C:F,4,0) -> 
B169: =IF(A169="","",IFERROR(VLOOKUP(A169,CADASTRO!C:D,2,FALSE),"Produto Não Cadastrado")) ->  | C169: =IFERROR(VLOOKUP(A169,CADASTRO!C:F,3,0),"") ->  | D169: =VLOOKUP(A169,CADASTRO!C:F,4,0) -> 
B170: =IF(A170="","",IFERROR(VLOOKUP(A170,CADASTRO!C:D,2,FALSE),"Produto Não Cadastrado")) ->  | C170: =IFERROR(VLOOKUP(A170,CADASTRO!C:F,3,0),"") ->  | D170: =VLOOKUP(A170,CADASTRO!C:F,4,0) -> 
B171: =IF(A171="","",IFERROR(VLOOKUP(A171,CADASTRO!C:D,2,FALSE),"Produto Não Cadastrado")) ->  | C171: =IFERROR(VLOOKUP(A171,CADASTRO!C:F,3,0),"") ->  | D171: =VLOOKUP(A171,CADASTRO!C:F,4,0) -> 
B172: =IF(A172="","",IFERROR(VLOOKUP(A172,CADASTRO!C:D,2,FALSE),"Produto Não Cadastrado")) ->  | C172: =IFERROR(VLOOKUP(A172,CADASTRO!C:F,3,0),"") ->  | D172: =VLOOKUP(A172,CADASTRO!C:F,4,0) -> 
B173: =IF(A173="","",IFERROR(VLOOKUP(A173,CADASTRO!C:D,2,FALSE),"Produto Não Cadastrado")) ->  | C173: =IFERROR(VLOOKUP(A173,CADASTRO!C:F,3,0),"") ->  | D173: =VLOOKUP(A173,CADASTRO!C:F,4,0) -> 
B174: =IF(A174="","",IFERROR(VLOOKUP(A174,CADASTRO!C:D,2,FALSE),"Produto Não Cadastrado")) ->  | C174: =IFERROR(VLOOKUP(A174,CADASTRO!C:F,3,0),"") ->  | D174: =VLOOKUP(A174,CADASTRO!C:F,4,0) -> 
B175: =IF(A175="","",IFERROR(VLOOKUP(A175,CADASTRO!C:D,2,FALSE),"Produto Não Cadastrado")) ->  | C175: =IFERROR(VLOOKUP(A175,CADASTRO!C:F,3,0),"") ->  | D175: =VLOOKUP(A175,CADASTRO!C:F,4,0) -> 
B176: =IF(A176="","",IFERROR(VLOOKUP(A176,CADASTRO!C:D,2,FALSE),"Produto Não Cadastrado")) ->  | C176: =IFERROR(VLOOKUP(A176,CADASTRO!C:F,3,0),"") ->  | D176: =VLOOKUP(A176,CADASTRO!C:F,4,0) -> 
B177: =IF(A177="","",IFERROR(VLOOKUP(A177,CADASTRO!C:D,2,FALSE),"Produto Não Cadastrado")) ->  | C177: =IFERROR(VLOOKUP(A177,CADASTRO!C:F,3,0),"") ->  | D177: =VLOOKUP(A177,CADASTRO!C:F,4,0) -> 
B178: =IF(A178="","",IFERROR(VLOOKUP(A178,CADASTRO!C:D,2,FALSE),"Produto Não Cadastrado")) ->  | C178: =IFERROR(VLOOKUP(A178,CADASTRO!C:F,3,0),"") ->  | D178: =VLOOKUP(A178,CADASTRO!C:F,4,0) -> 
B179: =IF(A179="","",IFERROR(VLOOKUP(A179,CADASTRO!C:D,2,FALSE),"Produto Não Cadastrado")) ->  | C179: =IFERROR(VLOOKUP(A179,CADASTRO!C:F,3,0),"") ->  | D179: =VLOOKUP(A179,CADASTRO!C:F,4,0) -> 
B180: =IF(A180="","",IFERROR(VLOOKUP(A180,CADASTRO!C:D,2,FALSE),"Produto Não Cadastrado")) ->  | C180: =IFERROR(VLOOKUP(A180,CADASTRO!C:F,3,0),"") ->  | D180: =VLOOKUP(A180,CADASTRO!C:F,4,0) -> 
B181: =IF(A181="","",IFERROR(VLOOKUP(A181,CADASTRO!C:D,2,FALSE),"Produto Não Cadastrado")) ->  | C181: =IFERROR(VLOOKUP(A181,CADASTRO!C:F,3,0),"") ->  | D181: =VLOOKUP(A181,CADASTRO!C:F,4,0) -> 
B182: =IF(A182="","",IFERROR(VLOOKUP(A182,CADASTRO!C:D,2,FALSE),"Produto Não Cadastrado")) ->  | C182: =IFERROR(VLOOKUP(A182,CADASTRO!C:F,3,0),"") ->  | D182: =VLOOKUP(A182,CADASTRO!C:F,4,0) -> 
B183: =IF(A183="","",IFERROR(VLOOKUP(A183,CADASTRO!C:D,2,FALSE),"Produto Não Cadastrado")) ->  | C183: =IFERROR(VLOOKUP(A183,CADASTRO!C:F,3,0),"") ->  | D183: =VLOOKUP(A183,CADASTRO!C:F,4,0) -> 
B184: =IF(A184="","",IFERROR(VLOOKUP(A184,CADASTRO!C:D,2,FALSE),"Produto Não Cadastrado")) ->  | C184: =IFERROR(VLOOKUP(A184,CADASTRO!C:F,3,0),"") ->  | D184: =VLOOKUP(A184,CADASTRO!C:F,4,0) -> 
B185: =IF(A185="","",IFERROR(VLOOKUP(A185,CADASTRO!C:D,2,FALSE),"Produto Não Cadastrado")) ->  | C185: =IFERROR(VLOOKUP(A185,CADASTRO!C:F,3,0),"") ->  | D185: =VLOOKUP(A185,CADASTRO!C:F,4,0) -> 
B186: =IF(A186="","",IFERROR(VLOOKUP(A186,CADASTRO!C:D,2,FALSE),"Produto Não Cadastrado")) ->  | C186: =IFERROR(VLOOKUP(A186,CADASTRO!C:F,3,0),"") ->  | D186: =VLOOKUP(A186,CADASTRO!C:F,4,0) -> 
B187: =IF(A187="","",IFERROR(VLOOKUP(A187,CADASTRO!C:D,2,FALSE),"Produto Não Cadastrado")) ->  | C187: =IFERROR(VLOOKUP(A187,CADASTRO!C:F,3,0),"") ->  | D187: =VLOOKUP(A187,CADASTRO!C:F,4,0) -> 
B188: =IF(A188="","",IFERROR(VLOOKUP(A188,CADASTRO!C:D,2,FALSE),"Produto Não Cadastrado")) ->  | C188: =IFERROR(VLOOKUP(A188,CADASTRO!C:F,3,0),"") ->  | D188: =VLOOKUP(A188,CADASTRO!C:F,4,0) -> 
B189: =IF(A189="","",IFERROR(VLOOKUP(A189,CADASTRO!C:D,2,FALSE),"Produto Não Cadastrado")) ->  | C189: =IFERROR(VLOOKUP(A189,CADASTRO!C:F,3,0),"") ->  | D189: =VLOOKUP(A189,CADASTRO!C:F,4,0) -> 
B190: =IF(A190="","",IFERROR(VLOOKUP(A190,CADASTRO!C:D,2,FALSE),"Produto Não Cadastrado")) ->  | C190: =IFERROR(VLOOKUP(A190,CADASTRO!C:F,3,0),"") ->  | D190: =VLOOKUP(A190,CADASTRO!C:F,4,0) -> 
B191: =IF(A191="","",IFERROR(VLOOKUP(A191,CADASTRO!C:D,2,FALSE),"Produto Não Cadastrado")) ->  | C191: =IFERROR(VLOOKUP(A191,CADASTRO!C:F,3,0),"") ->  | D191: =VLOOKUP(A191,CADASTRO!C:F,4,0) -> 
B192: =IF(A192="","",IFERROR(VLOOKUP(A192,CADASTRO!C:D,2,FALSE),"Produto Não Cadastrado")) ->  | C192: =IFERROR(VLOOKUP(A192,CADASTRO!C:F,3,0),"") ->  | D192: =VLOOKUP(A192,CADASTRO!C:F,4,0) -> 
B193: =IF(A193="","",IFERROR(VLOOKUP(A193,CADASTRO!C:D,2,FALSE),"Produto Não Cadastrado")) ->  | C193: =IFERROR(VLOOKUP(A193,CADASTRO!C:F,3,0),"") ->  | D193: =VLOOKUP(A193,CADASTRO!C:F,4,0) -> 
B194: =IF(A194="","",IFERROR(VLOOKUP(A194,CADASTRO!C:D,2,FALSE),"Produto Não Cadastrado")) ->  | C194: =IFERROR(VLOOKUP(A194,CADASTRO!C:F,3,0),"") ->  | D194: =VLOOKUP(A194,CADASTRO!C:F,4,0) -> 
B195: =IF(A195="","",IFERROR(VLOOKUP(A195,CADASTRO!C:D,2,FALSE),"Produto Não Cadastrado")) ->  | C195: =IFERROR(VLOOKUP(A195,CADASTRO!C:F,3,0),"") ->  | D195: =VLOOKUP(A195,CADASTRO!C:F,4,0) -> 
B196: =IF(A196="","",IFERROR(VLOOKUP(A196,CADASTRO!C:D,2,FALSE),"Produto Não Cadastrado")) ->  | C196: =IFERROR(VLOOKUP(A196,CADASTRO!C:F,3,0),"") ->  | D196: =VLOOKUP(A196,CADASTRO!C:F,4,0) -> 
B197: =IF(A197="","",IFERROR(VLOOKUP(A197,CADASTRO!C:D,2,FALSE),"Produto Não Cadastrado")) ->  | C197: =IFERROR(VLOOKUP(A197,CADASTRO!C:F,3,0),"") ->  | D197: =VLOOKUP(A197,CADASTRO!C:F,4,0) -> 
B198: =IF(A198="","",IFERROR(VLOOKUP(A198,CADASTRO!C:D,2,FALSE),"Produto Não Cadastrado")) ->  | C198: =IFERROR(VLOOKUP(A198,CADASTRO!C:F,3,0),"") ->  | D198: =VLOOKUP(A198,CADASTRO!C:F,4,0) -> 
B199: =IF(A199="","",IFERROR(VLOOKUP(A199,CADASTRO!C:D,2,FALSE),"Produto Não Cadastrado")) ->  | C199: =IFERROR(VLOOKUP(A199,CADASTRO!C:F,3,0),"") ->  | D199: =VLOOKUP(A199,CADASTRO!C:F,4,0) -> 
B200: =IF(A200="","",IFERROR(VLOOKUP(A200,CADASTRO!C:D,2,FALSE),"Produto Não Cadastrado")) ->  | C200: =IFERROR(VLOOKUP(A200,CADASTRO!C:F,3,0),"") ->  | D200: =VLOOKUP(A200,CADASTRO!C:F,4,0) -> 
... 14800 more rows

Sheet SAÍDAS
B1: Saída de Estoque - Congelados
A2: CÓD | B2: Descriçao | C2: Medida | D2: SETOR | E2: Qtde | F2: Data
A3: 28 | B3: =IF(A3="","",IFERROR(VLOOKUP(A3,CADASTRO!C:D,2,FALSE),"Produto Não Cadastrado")) -> CATARINA DE BACALHAU | C3: =VLOOKUP(A3,CADASTRO!C:F,3,0) -> 0 | D3: =VLOOKUP(A3,CADASTRO!C:F,4,0) -> FOLHATERIA | E3: 3 | F3: 2023-02-14
A4: 29 | B4: =IF(A4="","",IFERROR(VLOOKUP(A4,CADASTRO!C:D,2,FALSE),"Produto Não Cadastrado")) -> CATARINA DE FRANGO | C4: =VLOOKUP(A4,CADASTRO!C:F,3,0) -> 0 | D4: =VLOOKUP(A4,CADASTRO!C:F,4,0) -> FOLHATERIA | E4: 3 | F4: 2023-02-14
A5: 79 | B5: =IF(A5="","",IFERROR(VLOOKUP(A5,CADASTRO!C:D,2,FALSE),"Produto Não Cadastrado")) -> MINI FOLHADO CALABRESA | C5: =VLOOKUP(A5,CADASTRO!C:F,3,0) -> 0 | D5: =VLOOKUP(A5,CADASTRO!C:F,4,0) -> FOLHATERIA | E5: 7.39 | F5: 2023-02-14
A6: 108 | B6: =IF(A6="","",IFERROR(VLOOKUP(A6,CADASTRO!C:D,2,FALSE),"Produto Não Cadastrado")) -> ORELINHA TRADICIONAL | C6: =VLOOKUP(A6,CADASTRO!C:F,3,0) -> 0 | D6: =VLOOKUP(A6,CADASTRO!C:F,4,0) -> FOLHATERIA | E6: 3.38 | F6: 2023-02-14
A7: 111 | B7: =IF(A7="","",IFERROR(VLOOKUP(A7,CADASTRO!C:D,2,FALSE),"Produto Não Cadastrado")) -> PALITO QUEIJO | C7: =VLOOKUP(A7,CADASTRO!C:F,3,0) -> 0 | D7: =VLOOKUP(A7,CADASTRO!C:F,4,0) -> FOLHATERIA | E7: 3.55 | F7: 2023-02-14
A8: 263 | B8: =IF(A8="","",IFERROR(VLOOKUP(A8,CADASTRO!C:D,2,FALSE),"Produto Não Cadastrado")) -> TRANÇA FOLHADA BACALHAU | C8: =IFERROR(VLOOKUP(A8,CADASTRO!C:F,3,0),"") -> 0 | D8: =VLOOKUP(A8,CADASTRO!C:F,4,0) -> FOLHATERIA | E8: 2 | F8: 2023-02-14
A9: 264 | B9: =IF(A9="","",IFERROR(VLOOKUP(A9,CADASTRO!C:D,2,FALSE),"Produto Não Cadastrado")) -> TRANÇA FOLHADA CALABRESA | C9: =IFERROR(VLOOKUP(A9,CADASTRO!C:F,3,0),"") -> 0 | D9: =VLOOKUP(A9,CADASTRO!C:F,4,0) -> FOLHATERIA | E9: 2 | F9: 2023-02-14
A10: 268 | B10: =IF(A10="","",IFERROR(VLOOKUP(A10,CADASTRO!C:D,2,FALSE),"Produto Não Cadastrado")) -> TRANÇA FOLHADA MORTADELA DEFUMADA | C10: =IFERROR(VLOOKUP(A10,CADASTRO!C:F,3,0),"") -> 0 | D10: =VLOOKUP(A10,CADASTRO!C:F,4,0) -> FOLHATERIA | E10: 1 | F10: 2023-02-14
A11: 271 | B11: =IF(A11="","",IFERROR(VLOOKUP(A11,CADASTRO!C:D,2,FALSE),"Produto Não Cadastrado")) -> TRANÇA FOLHADA PERU/JAMBU | C11: =IFERROR(VLOOKUP(A11,CADASTRO!C:F,3,0),"") -> 0 | D11: =VLOOKUP(A11,CADASTRO!C:F,4,0) -> FOLHATERIA | E11: 1 | F11: 2023-02-14
A12: 272 | B12: =IF(A12="","",IFERROR(VLOOKUP(A12,CADASTRO!C:D,2,FALSE),"Produto Não Cadastrado")) -> TRANÇA FOLHADA SALAME | C12: =IFERROR(VLOOKUP(A12,CADASTRO!C:F,3,0),"") -> 0 | D12: =VLOOKUP(A12,CADASTRO!C:F,4,0) -> FOLHATERIA | E12: 1 | F12: 2023-02-14
A13: 8 | B13: =IF(A13="","",IFERROR(VLOOKUP(A13,CADASTRO!C:D,2,FALSE),"Produto Não Cadastrado")) -> BAGUETE INTEGRAL (PCT C/ 45 UND = 3 KG) | C13: =IFERROR(VLOOKUP(A13,CADASTRO!C:F,3,0),"") -> 0 | D13: =VLOOKUP(A13,CADASTRO!C:F,4,0) -> PADARIA TRADICIONAL | E13: 1 | F13: 2023-02-14
A14: 13 | B14: =IF(A14="","",IFERROR(VLOOKUP(A14,CADASTRO!C:D,2,FALSE),"Produto Não Cadastrado")) -> BISCOITO CATUPIRI | C14: =IFERROR(VLOOKUP(A14,CADASTRO!C:F,3,0),"") -> 0 | D14: =VLOOKUP(A14,CADASTRO!C:F,4,0) -> PADARIA TRADICIONAL | E14: 1 | F14: 2023-02-14
A15: 14 | B15: =IF(A15="","",IFERROR(VLOOKUP(A15,CADASTRO!C:D,2,FALSE),"Produto Não Cadastrado")) -> BISCOITO COCO | C15: =IFERROR(VLOOKUP(A15,CADASTRO!C:F,3,0),"") -> 0 | D15: =VLOOKUP(A15,CADASTRO!C:F,4,0) -> PADARIA TRADICIONAL | E15: 1 | F15: 2023-02-14
A16: 16 | B16: =IF(A16="","",IFERROR(VLOOKUP(A16,CADASTRO!C:D,2,FALSE),"Produto Não Cadastrado")) -> BISCOITO MAISENA | C16: =IFERROR(VLOOKUP(A16,CADASTRO!C:F,3,0),"") -> 0 | D16: =VLOOKUP(A16,CADASTRO!C:F,4,0) -> PADARIA TRADICIONAL | E16: 1 | F16: 2023-02-14
A17: 17 | B17: =IF(A17="","",IFERROR(VLOOKUP(A17,CADASTRO!C:D,2,FALSE),"Produto Não Cadastrado")) -> BISCOITO MONTEIRO LOPES | C17: =IFERROR(VLOOKUP(A17,CADASTRO!C:F,3,0),"") -> 0 | D17: =VLOOKUP(A17,CADASTRO!C:F,4,0) -> PADARIA TRADICIONAL | E17: 5 | F17: 2023-02-14
A18: 18 | B18: =IF(A18="","",IFERROR(VLOOKUP(A18,CADASTRO!C:D,2,FALSE),"Produto Não Cadastrado")) -> BISCOITO OLHO DE BOI | C18: =IFERROR(VLOOKUP(A18,CADASTRO!C:F,3,0),"") -> 0 | D18: =VLOOKUP(A18,CADASTRO!C:F,4,0) -> PADARIA TRADICIONAL | E18: 1 | F18: 2023-02-14
A19: 39 | B19: =IF(A19="","",IFERROR(VLOOKUP(A19,CADASTRO!C:D,2,FALSE),"Produto Não Cadastrado")) -> CROISSANT AMÊNDOAS | C19: =IFERROR(VLOOKUP(A19,CADASTRO!C:F,3,0),"") -> 0 | D19: =VLOOKUP(A19,CADASTRO!C:F,4,0) -> PADARIA TRADICIONAL | E19: 20 | F19: 2023-02-14
A20: 41 | B20: =IF(A20="","",IFERROR(VLOOKUP(A20,CADASTRO!C:D,2,FALSE),"Produto Não Cadastrado")) -> CROISSANT CONGELADO | C20: =IFERROR(VLOOKUP(A20,CADASTRO!C:F,3,0),"") -> 0 | D20: =VLOOKUP(A20,CADASTRO!C:F,4,0) -> PADARIA TRADICIONAL | E20: 350 | F20: 2023-02-14
A21: 49 | B21: =IF(A21="","",IFERROR(VLOOKUP(A21,CADASTRO!C:D,2,FALSE),"Produto Não Cadastrado")) -> DONNUTS | C21: =IFERROR(VLOOKUP(A21,CADASTRO!C:F,3,0),"") -> 0 | D21: =VLOOKUP(A21,CADASTRO!C:F,4,0) -> PADARIA TRADICIONAL | E21: 20 | F21: 2023-02-14
A22: 50 | B22: =IF(A22="","",IFERROR(VLOOKUP(A22,CADASTRO!C:D,2,FALSE),"Produto Não Cadastrado")) -> EMPADA BACALHAU | C22: =IFERROR(VLOOKUP(A22,CADASTRO!C:F,3,0),"") -> 0 | D22: =VLOOKUP(A22,CADASTRO!C:F,4,0) -> PADARIA TRADICIONAL | E22: 5 | F22: 2023-02-14
A23: 89 | B23: =IF(A23="","",IFERROR(VLOOKUP(A23,CADASTRO!C:D,2,FALSE),"Produto Não Cadastrado")) -> MINI PÃO BATATA HAMBÚRGUER | C23: =IFERROR(VLOOKUP(A23,CADASTRO!C:F,3,0),"") -> 0 | D23: =VLOOKUP(A23,CADASTRO!C:F,4,0) -> PADARIA TRADICIONAL | E23: 108 | F23: 2023-02-14
A24: 92 | B24: =IF(A24="","",IFERROR(VLOOKUP(A24,CADASTRO!C:D,2,FALSE),"Produto Não Cadastrado")) -> MINI PÃO DELÍCIA (PCT C/ 24UND) | C24: =IFERROR(VLOOKUP(A24,CADASTRO!C:F,3,0),"") -> 0 | D24: =VLOOKUP(A24,CADASTRO!C:F,4,0) -> PADARIA TRADICIONAL | E24: 2 | F24: 2023-02-14
A25: 121 | B25: =IF(A25="","",IFERROR(VLOOKUP(A25,CADASTRO!C:D,2,FALSE),"Produto Não Cadastrado")) -> PÃO BAIÃO | C25: =IFERROR(VLOOKUP(A25,CADASTRO!C:F,3,0),"") -> 0 | D25: =VLOOKUP(A25,CADASTRO!C:F,4,0) -> PADARIA TRADICIONAL | E25: 20 | F25: 2023-02-14
A26: 122 | B26: =IF(A26="","",IFERROR(VLOOKUP(A26,CADASTRO!C:D,2,FALSE),"Produto Não Cadastrado")) -> PÃO BENGALA 10 HORAS | C26: =IFERROR(VLOOKUP(A26,CADASTRO!C:F,3,0),"") -> 0 | D26: =VLOOKUP(A26,CADASTRO!C:F,4,0) -> PADARIA TRADICIONAL | E26: 5 | F26: 2023-02-14
A27: 124 | B27: =IF(A27="","",IFERROR(VLOOKUP(A27,CADASTRO!C:D,2,FALSE),"Produto Não Cadastrado")) -> PÃO BRIOCHE HAMBÚRGUER | C27: =IFERROR(VLOOKUP(A27,CADASTRO!C:F,3,0),"") -> 0 | D27: =VLOOKUP(A27,CADASTRO!C:F,4,0) -> PADARIA TRADICIONAL | E27: 15 | F27: 2023-02-14
A28: 132 | B28: =IF(A28="","",IFERROR(VLOOKUP(A28,CADASTRO!C:D,2,FALSE),"Produto Não Cadastrado")) -> PÃO CUCA GOIABADA | C28: =IFERROR(VLOOKUP(A28,CADASTRO!C:F,3,0),"") -> 0 | D28: =VLOOKUP(A28,CADASTRO!C:F,4,0) -> PADARIA TRADICIONAL | E28: 6 | F28: 2023-02-14
A29: 135 | B29: =IF(A29="","",IFERROR(VLOOKUP(A29,CADASTRO!C:D,2,FALSE),"Produto Não Cadastrado")) -> PÃO DE BATATA FILÃO | C29: =IFERROR(VLOOKUP(A29,CADASTRO!C:F,3,0),"") -> 0 | D29: =VLOOKUP(A29,CADASTRO!C:F,4,0) -> PADARIA TRADICIONAL | E29: 48 | F29: 2023-02-14
A30: 146 | B30: =IF(A30="","",IFERROR(VLOOKUP(A30,CADASTRO!C:D,2,FALSE),"Produto Não Cadastrado")) -> PÃO DOCE LIEVITO | C30: =IFERROR(VLOOKUP(A30,CADASTRO!C:F,3,0),"") -> 0 | D30: =VLOOKUP(A30,CADASTRO!C:F,4,0) -> PADARIA TRADICIONAL | E30: 6 | F30: 2023-02-14
A31: 153 | B31: =IF(A31="","",IFERROR(VLOOKUP(A31,CADASTRO!C:D,2,FALSE),"Produto Não Cadastrado")) -> PÃO FORMA BATATA A25 | C31: =IFERROR(VLOOKUP(A31,CADASTRO!C:F,3,0),"") -> 0 | D31: =VLOOKUP(A31,CADASTRO!C:F,4,0) -> PADARIA TRADICIONAL | E31: 6 | F31: 2023-02-14
A32: 154 | B32: =IF(A32="","",IFERROR(VLOOKUP(A32,CADASTRO!C:D,2,FALSE),"Produto Não Cadastrado")) -> PÃO FORMA BRIOCHE A25 | C32: =IFERROR(VLOOKUP(A32,CADASTRO!C:F,3,0),"") -> 0 | D32: =VLOOKUP(A32,CADASTRO!C:F,4,0) -> PADARIA TRADICIONAL | E32: 6 | F32: 2023-02-14
A33: 155 | B33: =IF(A33="","",IFERROR(VLOOKUP(A33,CADASTRO!C:D,2,FALSE),"Produto Não Cadastrado")) -> PÃO FORMA INTEGRAL 1000 | C33: =IFERROR(VLOOKUP(A33,CADASTRO!C:F,3,0),"") -> 0 | D33: =VLOOKUP(A33,CADASTRO!C:F,4,0) -> PADARIA TRADICIONAL | E33: 8 | F33: 2023-02-14
A34: 156 | B34: =IF(A34="","",IFERROR(VLOOKUP(A34,CADASTRO!C:D,2,FALSE),"Produto Não Cadastrado")) -> PÃO FORMA INTEGRAL 700 | C34: =IFERROR(VLOOKUP(A34,CADASTRO!C:F,3,0),"") -> 0 | D34: =VLOOKUP(A34,CADASTRO!C:F,4,0) -> PADARIA TRADICIONAL | E34: 5 | F34: 2023-02-14
A35: 157 | B35: =IF(A35="","",IFERROR(VLOOKUP(A35,CADASTRO!C:D,2,FALSE),"Produto Não Cadastrado")) -> PÃO FORMA LEITE A25 | C35: =IFERROR(VLOOKUP(A35,CADASTRO!C:F,3,0),"") -> 0 | D35: =VLOOKUP(A35,CADASTRO!C:F,4,0) -> PADARIA TRADICIONAL | E35: 6 | F35: 2023-02-14
A36: 159 | B36: =IF(A36="","",IFERROR(VLOOKUP(A36,CADASTRO!C:D,2,FALSE),"Produto Não Cadastrado")) -> PÃO FORMA TRADICIONAL 1000 | C36: =IFERROR(VLOOKUP(A36,CADASTRO!C:F,3,0),"") -> 0 | D36: =VLOOKUP(A36,CADASTRO!C:F,4,0) -> PADARIA TRADICIONAL | E36: 3 | F36: 2023-02-14
A37: 160 | B37: =IF(A37="","",IFERROR(VLOOKUP(A37,CADASTRO!C:D,2,FALSE),"Produto Não Cadastrado")) -> PÃO FORMA TRADICIONAL 700 | C37: =IFERROR(VLOOKUP(A37,CADASTRO!C:F,3,0),"") -> 0 | D37: =VLOOKUP(A37,CADASTRO!C:F,4,0) -> PADARIA TRADICIONAL | E37: 5 | F37: 2023-02-14
A38: 161 | B38: =IF(A38="","",IFERROR(VLOOKUP(A38,CADASTRO!C:D,2,FALSE),"Produto Não Cadastrado")) -> PÃO FRANCÊS 10H | C38: =IFERROR(VLOOKUP(A38,CADASTRO!C:F,3,0),"") -> 0 | D38: =VLOOKUP(A38,CADASTRO!C:F,4,0) -> PADARIA TRADICIONAL | E38: 20 | F38: 2023-02-14
A39: 163 | B39: =IF(A39="","",IFERROR(VLOOKUP(A39,CADASTRO!C:D,2,FALSE),"Produto Não Cadastrado")) -> PÃO FRANCÊS 5H | C39: =IFERROR(VLOOKUP(A39,CADASTRO!C:F,3,0),"") -> 0 | D39: =VLOOKUP(A39,CADASTRO!C:F,4,0) -> PADARIA TRADICIONAL | E39: 30 | F39: 2023-02-14
A40: 169 | B40: =IF(A40="","",IFERROR(VLOOKUP(A40,CADASTRO!C:D,2,FALSE),"Produto Não Cadastrado")) -> PÃO SEMI ITALIANO | C40: =IFERROR(VLOOKUP(A40,CADASTRO!C:F,3,0),"") -> 0 | D40: =VLOOKUP(A40,CADASTRO!C:F,4,0) -> PADARIA TRADICIONAL | E40: 15 | F40: 2023-02-14
A41: 170 | B41: =IF(A41="","",IFERROR(VLOOKUP(A41,CADASTRO!C:D,2,FALSE),"Produto Não Cadastrado")) -> PÃO VIENNOIS | C41: =IFERROR(VLOOKUP(A41,CADASTRO!C:F,3,0),"") -> 0 | D41: =VLOOKUP(A41,CADASTRO!C:F,4,0) -> PADARIA TRADICIONAL | E41: 15 | F41: 2023-02-14
A42: 244 | B42: =IF(A42="","",IFERROR(VLOOKUP(A42,CADASTRO!C:D,2,FALSE),"Produto Não Cadastrado")) -> ROSQUINHA DE LEITE (PCT C/ 32UND) | C42: =IFERROR(VLOOKUP(A42,CADASTRO!C:F,3,0),"") -> 0 | D42: =VLOOKUP(A42,CADASTRO!C:F,4,0) -> PADARIA TRADICIONAL | E42: 2 | F42: 2023-02-14
A43: 247 | B43: =IF(A43="","",IFERROR(VLOOKUP(A43,CADASTRO!C:D,2,FALSE),"Produto Não Cadastrado")) -> SONHO | C43: =IFERROR(VLOOKUP(A43,CADASTRO!C:F,3,0),"") -> 0 | D43: =VLOOKUP(A43,CADASTRO!C:F,4,0) -> PADARIA TRADICIONAL | E43: 2 | F43: 2023-02-14
A44: 273 | B44: =IF(A44="","",IFERROR(VLOOKUP(A44,CADASTRO!C:D,2,FALSE),"Produto Não Cadastrado")) -> PÃO BENGALA 5 HORAS | C44: =IFERROR(VLOOKUP(A44,CADASTRO!C:F,3,0),"") -> 0 | D44: =VLOOKUP(A44,CADASTRO!C:F,4,0) -> PADARIA TRADICIONAL | E44: 5 | F44: 2023-02-14
A45: 223 | B45: =IF(A45="","",IFERROR(VLOOKUP(A45,CADASTRO!C:D,2,FALSE),"Produto Não Cadastrado")) -> QUICHE ALHO PORO | C45: =IFERROR(VLOOKUP(A45,CADASTRO!C:F,3,0),"") -> 0 | D45: =VLOOKUP(A45,CADASTRO!C:F,4,0) -> QUITUTERIA | E45: 5 | F45: 2023-02-14
A46: 228 | B46: =IF(A46="","",IFERROR(VLOOKUP(A46,CADASTRO!C:D,2,FALSE),"Produto Não Cadastrado")) -> QUICHE MARGUERITA | C46: =IFERROR(VLOOKUP(A46,CADASTRO!C:F,3,0),"") -> 0 | D46: =VLOOKUP(A46,CADASTRO!C:F,4,0) -> QUITUTERIA | E46: 5 | F46: 2023-02-14
A47: 26 | B47: =IF(A47="","",IFERROR(VLOOKUP(A47,CADASTRO!C:D,2,FALSE),"Produto Não Cadastrado")) -> CARRET | C47: =IFERROR(VLOOKUP(A47,CADASTRO!C:F,3,0),"") -> 0 | D47: =VLOOKUP(A47,CADASTRO!C:F,4,0) -> FOLHATERIA | E47: 15 | F47: 2023-02-15
A48: 28 | B48: =IF(A48="","",IFERROR(VLOOKUP(A48,CADASTRO!C:D,2,FALSE),"Produto Não Cadastrado")) -> CATARINA DE BACALHAU | C48: =IFERROR(VLOOKUP(A48,CADASTRO!C:F,3,0),"") -> 0 | D48: =VLOOKUP(A48,CADASTRO!C:F,4,0) -> FOLHATERIA | E48: 3 | F48: 2023-02-15
A49: 29 | B49: =IF(A49="","",IFERROR(VLOOKUP(A49,CADASTRO!C:D,2,FALSE),"Produto Não Cadastrado")) -> CATARINA DE FRANGO | C49: =IFERROR(VLOOKUP(A49,CADASTRO!C:F,3,0),"") -> 0 | D49: =VLOOKUP(A49,CADASTRO!C:F,4,0) -> FOLHATERIA | E49: 3 | F49: 2023-02-15
A50: 44 | B50: =IF(A50="","",IFERROR(VLOOKUP(A50,CADASTRO!C:D,2,FALSE),"Produto Não Cadastrado")) -> DANISH CAPRESE | C50: =IFERROR(VLOOKUP(A50,CADASTRO!C:F,3,0),"") -> 0 | D50: =VLOOKUP(A50,CADASTRO!C:F,4,0) -> FOLHATERIA | E50: 11 | F50: 2023-02-15
A51: 66 | B51: =IF(A51="","",IFERROR(VLOOKUP(A51,CADASTRO!C:D,2,FALSE),"Produto Não Cadastrado")) -> LASANHA FOLHADA MISTA | C51: =IFERROR(VLOOKUP(A51,CADASTRO!C:F,3,0),"") -> 0 | D51: =VLOOKUP(A51,CADASTRO!C:F,4,0) -> FOLHATERIA | E51: 1 | F51: 2023-02-15
A52: 81 | B52: =IF(A52="","",IFERROR(VLOOKUP(A52,CADASTRO!C:D,2,FALSE),"Produto Não Cadastrado")) -> MINI FOLHADO DE QUEIJO | C52: =IFERROR(VLOOKUP(A52,CADASTRO!C:F,3,0),"") -> 0 | D52: =VLOOKUP(A52,CADASTRO!C:F,4,0) -> FOLHATERIA | E52: 3.85 | F52: 2023-02-15
A53: 84 | B53: =IF(A53="","",IFERROR(VLOOKUP(A53,CADASTRO!C:D,2,FALSE),"Produto Não Cadastrado")) -> MINI FOLHADO MISTO | C53: =IFERROR(VLOOKUP(A53,CADASTRO!C:F,3,0),"") -> 0 | D53: =VLOOKUP(A53,CADASTRO!C:F,4,0) -> FOLHATERIA | E53: 7.58 | F53: 2023-02-15
A54: 93 | B54: =IF(A54="","",IFERROR(VLOOKUP(A54,CADASTRO!C:D,2,FALSE),"Produto Não Cadastrado")) -> MINI PASTEL FOLHADO | C54: =IFERROR(VLOOKUP(A54,CADASTRO!C:F,3,0),"") -> 0 | D54: =VLOOKUP(A54,CADASTRO!C:F,4,0) -> FOLHATERIA | E54: 3.22 | F54: 2023-02-15
A55: 94 | B55: =IF(A55="","",IFERROR(VLOOKUP(A55,CADASTRO!C:D,2,FALSE),"Produto Não Cadastrado")) -> MINI TRANÇA BACALHAU | C55: =IFERROR(VLOOKUP(A55,CADASTRO!C:F,3,0),"") -> 0 | D55: =VLOOKUP(A55,CADASTRO!C:F,4,0) -> FOLHATERIA | E55: 2 | F55: 2023-02-15
A56: 97 | B56: =IF(A56="","",IFERROR(VLOOKUP(A56,CADASTRO!C:D,2,FALSE),"Produto Não Cadastrado")) -> MINI TRANÇA FRANGO | C56: =IFERROR(VLOOKUP(A56,CADASTRO!C:F,3,0),"") -> 0 | D56: =VLOOKUP(A56,CADASTRO!C:F,4,0) -> FOLHATERIA | E56: 2 | F56: 2023-02-15
A57: 104 | B57: =IF(A57="","",IFERROR(VLOOKUP(A57,CADASTRO!C:D,2,FALSE),"Produto Não Cadastrado")) -> MINI TRANÇA SALAME | C57: =IFERROR(VLOOKUP(A57,CADASTRO!C:F,3,0),"") -> 0 | D57: =VLOOKUP(A57,CADASTRO!C:F,4,0) -> FOLHATERIA | E57: 2 | F57: 2023-02-15
A58: 173 | B58: =IF(A58="","",IFERROR(VLOOKUP(A58,CADASTRO!C:D,2,FALSE),"Produto Não Cadastrado")) -> PASTEL FOLHADO BACALHAU | C58: =IFERROR(VLOOKUP(A58,CADASTRO!C:F,3,0),"") -> 0 | D58: =VLOOKUP(A58,CADASTRO!C:F,4,0) -> FOLHATERIA | E58: 15 | F58: 2023-02-15
A59: 174 | B59: =IF(A59="","",IFERROR(VLOOKUP(A59,CADASTRO!C:D,2,FALSE),"Produto Não Cadastrado")) -> PASTEL FOLHADO FRANGO | C59: =IFERROR(VLOOKUP(A59,CADASTRO!C:F,3,0),"") -> 0 | D59: =VLOOKUP(A59,CADASTRO!C:F,4,0) -> FOLHATERIA | E59: 15 | F59: 2023-02-15
A60: 263 | B60: =IF(A60="","",IFERROR(VLOOKUP(A60,CADASTRO!C:D,2,FALSE),"Produto Não Cadastrado")) -> TRANÇA FOLHADA BACALHAU | C60: =IFERROR(VLOOKUP(A60,CADASTRO!C:F,3,0),"") -> 0 | D60: =VLOOKUP(A60,CADASTRO!C:F,4,0) -> FOLHATERIA | E60: 3 | F60: 2023-02-15
A61: 264 | B61: =IF(A61="","",IFERROR(VLOOKUP(A61,CADASTRO!C:D,2,FALSE),"Produto Não Cadastrado")) -> TRANÇA FOLHADA CALABRESA | C61: =IFERROR(VLOOKUP(A61,CADASTRO!C:F,3,0),"") -> 0 | D61: =VLOOKUP(A61,CADASTRO!C:F,4,0) -> FOLHATERIA | E61: 2 | F61: 2023-02-15
A62: 266 | B62: =IF(A62="","",IFERROR(VLOOKUP(A62,CADASTRO!C:D,2,FALSE),"Produto Não Cadastrado")) -> TRANÇA FOLHADA FRANGO/JAMBU | C62: =IFERROR(VLOOKUP(A62,CADASTRO!C:F,3,0),"") -> 0 | D62: =VLOOKUP(A62,CADASTRO!C:F,4,0) -> FOLHATERIA | E62: 2 | F62: 2023-02-15
A63: 268 | B63: =IF(A63="","",IFERROR(VLOOKUP(A63,CADASTRO!C:D,2,FALSE),"Produto Não Cadastrado")) -> TRANÇA FOLHADA MORTADELA DEFUMADA | C63: =IFERROR(VLOOKUP(A63,CADASTRO!C:F,3,0),"") -> 0 | D63: =VLOOKUP(A63,CADASTRO!C:F,4,0) -> FOLHATERIA | E63: 2 | F63: 2023-02-15
A64: 271 | B64: =IF(A64="","",IFERROR(VLOOKUP(A64,CADASTRO!C:D,2,FALSE),"Produto Não Cadastrado")) -> TRANÇA FOLHADA PERU/JAMBU | C64: =IFERROR(VLOOKUP(A64,CADASTRO!C:F,3,0),"") -> 0 | D64: =VLOOKUP(A64,CADASTRO!C:F,4,0) -> FOLHATERIA | E64: 2 | F64: 2023-02-15
A65: 272 | B65: =IF(A65="","",IFERROR(VLOOKUP(A65,CADASTRO!C:D,2,FALSE),"Produto Não Cadastrado")) -> TRANÇA FOLHADA SALAME | C65: =IFERROR(VLOOKUP(A65,CADASTRO!C:F,3,0),"") -> 0 | D65: =VLOOKUP(A65,CADASTRO!C:F,4,0) -> FOLHATERIA | E65: 2 | F65: 2023-02-15
A66: 14 | B66: =IF(A66="","",IFERROR(VLOOKUP(A66,CADASTRO!C:D,2,FALSE),"Produto Não Cadastrado")) -> BISCOITO COCO | C66: =IFERROR(VLOOKUP(A66,CADASTRO!C:F,3,0),"") -> 0 | D66: =VLOOKUP(A66,CADASTRO!C:F,4,0) -> PADARIA TRADICIONAL | E66: 2 | F66: 2023-02-15
A67: 17 | B67: =IF(A67="","",IFERROR(VLOOKUP(A67,CADASTRO!C:D,2,FALSE),"Produto Não Cadastrado")) -> BISCOITO MONTEIRO LOPES | C67: =IFERROR(VLOOKUP(A67,CADASTRO!C:F,3,0),"") -> 0 | D67: =VLOOKUP(A67,CADASTRO!C:F,4,0) -> PADARIA TRADICIONAL | E67: 3 | F67: 2023-02-15
A68: 41 | B68: =IF(A68="","",IFERROR(VLOOKUP(A68,CADASTRO!C:D,2,FALSE),"Produto Não Cadastrado")) -> CROISSANT CONGELADO | C68: =IFERROR(VLOOKUP(A68,CADASTRO!C:F,3,0),"") -> 0 | D68: =VLOOKUP(A68,CADASTRO!C:F,4,0) -> PADARIA TRADICIONAL | E68: 360 | F68: 2023-02-15
A69: 49 | B69: =IF(A69="","",IFERROR(VLOOKUP(A69,CADASTRO!C:D,2,FALSE),"Produto Não Cadastrado")) -> DONNUTS | C69: =IFERROR(VLOOKUP(A69,CADASTRO!C:F,3,0),"") -> 0 | D69: =VLOOKUP(A69,CADASTRO!C:F,4,0) -> PADARIA TRADICIONAL | E69: 18 | F69: 2023-02-15
A70: 50 | B70: =IF(A70="","",IFERROR(VLOOKUP(A70,CADASTRO!C:D,2,FALSE),"Produto Não Cadastrado")) -> EMPADA BACALHAU | C70: =IFERROR(VLOOKUP(A70,CADASTRO!C:F,3,0),"") -> 0 | D70: =VLOOKUP(A70,CADASTRO!C:F,4,0) -> PADARIA TRADICIONAL | E70: 5 | F70: 2023-02-15
A71: 51 | B71: =IF(A71="","",IFERROR(VLOOKUP(A71,CADASTRO!C:D,2,FALSE),"Produto Não Cadastrado")) -> EMPADA FRANGO | C71: =IFERROR(VLOOKUP(A71,CADASTRO!C:F,3,0),"") -> 0 | D71: =VLOOKUP(A71,CADASTRO!C:F,4,0) -> PADARIA TRADICIONAL | E71: 6 | F71: 2023-02-15
A72: 71 | B72: =IF(A72="","",IFERROR(VLOOKUP(A72,CADASTRO!C:D,2,FALSE),"Produto Não Cadastrado")) -> MASSA MINI PIZZA | C72: =IFERROR(VLOOKUP(A72,CADASTRO!C:F,3,0),"") -> 0 | D72: =VLOOKUP(A72,CADASTRO!C:F,4,0) -> PADARIA TRADICIONAL | E72: 1 | F72: 2023-02-15
A73: 89 | B73: =IF(A73="","",IFERROR(VLOOKUP(A73,CADASTRO!C:D,2,FALSE),"Produto Não Cadastrado")) -> MINI PÃO BATATA HAMBÚRGUER | C73: =IFERROR(VLOOKUP(A73,CADASTRO!C:F,3,0),"") -> 0 | D73: =VLOOKUP(A73,CADASTRO!C:F,4,0) -> PADARIA TRADICIONAL | E73: 108 | F73: 2023-02-15
A74: 91 | B74: =IF(A74="","",IFERROR(VLOOKUP(A74,CADASTRO!C:D,2,FALSE),"Produto Não Cadastrado")) -> MINI PÃO BRIOCHE (PCT C/ 24UND) | C74: =IFERROR(VLOOKUP(A74,CADASTRO!C:F,3,0),"") -> 0 | D74: =VLOOKUP(A74,CADASTRO!C:F,4,0) -> PADARIA TRADICIONAL | E74: 2 | F74: 2023-02-15
A75: 92 | B75: =IF(A75="","",IFERROR(VLOOKUP(A75,CADASTRO!C:D,2,FALSE),"Produto Não Cadastrado")) -> MINI PÃO DELÍCIA (PCT C/ 24UND) | C75: =IFERROR(VLOOKUP(A75,CADASTRO!C:F,3,0),"") -> 0 | D75: =VLOOKUP(A75,CADASTRO!C:F,4,0) -> PADARIA TRADICIONAL | E75: 3 | F75: 2023-02-15
A76: 116 | B76: =IF(A76="","",IFERROR(VLOOKUP(A76,CADASTRO!C:D,2,FALSE),"Produto Não Cadastrado")) -> PÃO BAGUETE 10 HORAS | C76: =IFERROR(VLOOKUP(A76,CADASTRO!C:F,3,0),"") -> 0 | D76: =VLOOKUP(A76,CADASTRO!C:F,4,0) -> PADARIA TRADICIONAL | E76: 5 | F76: 2023-02-15
A77: 121 | B77: =IF(A77="","",IFERROR(VLOOKUP(A77,CADASTRO!C:D,2,FALSE),"Produto Não Cadastrado")) -> PÃO BAIÃO | C77: =IFERROR(VLOOKUP(A77,CADASTRO!C:F,3,0),"") -> 0 | D77: =VLOOKUP(A77,CADASTRO!C:F,4,0) -> PADARIA TRADICIONAL | E77: 18 | F77: 2023-02-15
A78: 122 | B78: =IF(A78="","",IFERROR(VLOOKUP(A78,CADASTRO!C:D,2,FALSE),"Produto Não Cadastrado")) -> PÃO BENGALA 10 HORAS | C78: =IFERROR(VLOOKUP(A78,CADASTRO!C:F,3,0),"") -> 0 | D78: =VLOOKUP(A78,CADASTRO!C:F,4,0) -> PADARIA TRADICIONAL | E78: 5 | F78: 2023-02-15
A79: 123 | B79: =IF(A79="","",IFERROR(VLOOKUP(A79,CADASTRO!C:D,2,FALSE),"Produto Não Cadastrado")) -> PÃO BRIOCHE DE FORMA 1000 | C79: =IFERROR(VLOOKUP(A79,CADASTRO!C:F,3,0),"") -> 0 | D79: =VLOOKUP(A79,CADASTRO!C:F,4,0) -> PADARIA TRADICIONAL | E79: 5 | F79: 2023-02-15
A80: 135 | B80: =IF(A80="","",IFERROR(VLOOKUP(A80,CADASTRO!C:D,2,FALSE),"Produto Não Cadastrado")) -> PÃO DE BATATA FILÃO | C80: =IFERROR(VLOOKUP(A80,CADASTRO!C:F,3,0),"") -> 0 | D80: =VLOOKUP(A80,CADASTRO!C:F,4,0) -> PADARIA TRADICIONAL | E80: 48 | F80: 2023-02-15
A81: 154 | B81: =IF(A81="","",IFERROR(VLOOKUP(A81,CADASTRO!C:D,2,FALSE),"Produto Não Cadastrado")) -> PÃO FORMA BRIOCHE A25 | C81: =IFERROR(VLOOKUP(A81,CADASTRO!C:F,3,0),"") -> 0 | D81: =VLOOKUP(A81,CADASTRO!C:F,4,0) -> PADARIA TRADICIONAL | E81: 15 | F81: 2023-02-15
A82: 155 | B82: =IF(A82="","",IFERROR(VLOOKUP(A82,CADASTRO!C:D,2,FALSE),"Produto Não Cadastrado")) -> PÃO FORMA INTEGRAL 1000 | C82: =IFERROR(VLOOKUP(A82,CADASTRO!C:F,3,0),"") -> 0 | D82: =VLOOKUP(A82,CADASTRO!C:F,4,0) -> PADARIA TRADICIONAL | E82: 8 | F82: 2023-02-15
A83: 156 | B83: =IF(A83="","",IFERROR(VLOOKUP(A83,CADASTRO!C:D,2,FALSE),"Produto Não Cadastrado")) -> PÃO FORMA INTEGRAL 700 | C83: =IFERROR(VLOOKUP(A83,CADASTRO!C:F,3,0),"") -> 0 | D83: =VLOOKUP(A83,CADASTRO!C:F,4,0) -> PADARIA TRADICIONAL | E83: 5 | F83: 2023-02-15
A84: 159 | B84: =IF(A84="","",IFERROR(VLOOKUP(A84,CADASTRO!C:D,2,FALSE),"Produto Não Cadastrado")) -> PÃO FORMA TRADICIONAL 1000 | C84: =IFERROR(VLOOKUP(A84,CADASTRO!C:F,3,0),"") -> 0 | D84: =VLOOKUP(A84,CADASTRO!C:F,4,0) -> PADARIA TRADICIONAL | E84: 8 | F84: 2023-02-15
A85: 160 | B85: =IF(A85="","",IFERROR(VLOOKUP(A85,CADASTRO!C:D,2,FALSE),"Produto Não Cadastrado")) -> PÃO FORMA TRADICIONAL 700 | C85: =IFERROR(VLOOKUP(A85,CADASTRO!C:F,3,0),"") -> 0 | D85: =VLOOKUP(A85,CADASTRO!C:F,4,0) -> PADARIA TRADICIONAL | E85: 5 | F85: 2023-02-15
A86: 161 | B86: =IF(A86="","",IFERROR(VLOOKUP(A86,CADASTRO!C:D,2,FALSE),"Produto Não Cadastrado")) -> PÃO FRANCÊS 10H | C86: =IFERROR(VLOOKUP(A86,CADASTRO!C:F,3,0),"") -> 0 | D86: =VLOOKUP(A86,CADASTRO!C:F,4,0) -> PADARIA TRADICIONAL | E86: 35 | F86: 2023-02-15
A87: 163 | B87: =IF(A87="","",IFERROR(VLOOKUP(A87,CADASTRO!C:D,2,FALSE),"Produto Não Cadastrado")) -> PÃO FRANCÊS 5H | C87: =IFERROR(VLOOKUP(A87,CADASTRO!C:F,3,0),"") -> 0 | D87: =VLOOKUP(A87,CADASTRO!C:F,4,0) -> PADARIA TRADICIONAL | E87: 30 | F87: 2023-02-15
A88: 169 | B88: =IF(A88="","",IFERROR(VLOOKUP(A88,CADASTRO!C:D,2,FALSE),"Produto Não Cadastrado")) -> PÃO SEMI ITALIANO | C88: =IFERROR(VLOOKUP(A88,CADASTRO!C:F,3,0),"") -> 0 | D88: =VLOOKUP(A88,CADASTRO!C:F,4,0) -> PADARIA TRADICIONAL | E88: 15 | F88: 2023-02-15
A89: 170 | B89: =IF(A89="","",IFERROR(VLOOKUP(A89,CADASTRO!C:D,2,FALSE),"Produto Não Cadastrado")) -> PÃO VIENNOIS | C89: =IFERROR(VLOOKUP(A89,CADASTRO!C:F,3,0),"") -> 0 | D89: =VLOOKUP(A89,CADASTRO!C:F,4,0) -> PADARIA TRADICIONAL | E89: 15 | F89: 2023-02-15
A90: 181 | B90: =IF(A90="","",IFERROR(VLOOKUP(A90,CADASTRO!C:D,2,FALSE),"Produto Não Cadastrado")) -> PIZZA INTEGRAL (MASSA) | C90: =IFERROR(VLOOKUP(A90,CADASTRO!C:F,3,0),"") -> 0 | D90: =VLOOKUP(A90,CADASTRO!C:F,4,0) -> PADARIA TRADICIONAL | E90: 2 | F90: 2023-02-15
A91: 244 | B91: =IF(A91="","",IFERROR(VLOOKUP(A91,CADASTRO!C:D,2,FALSE),"Produto Não Cadastrado")) -> ROSQUINHA DE LEITE (PCT C/ 32UND) | C91: =IFERROR(VLOOKUP(A91,CADASTRO!C:F,3,0),"") -> 0 | D91: =VLOOKUP(A91,CADASTRO!C:F,4,0) -> PADARIA TRADICIONAL | E91: 1 | F91: 2023-02-15
A92: 247 | B92: =IF(A92="","",IFERROR(VLOOKUP(A92,CADASTRO!C:D,2,FALSE),"Produto Não Cadastrado")) -> SONHO | C92: =IFERROR(VLOOKUP(A92,CADASTRO!C:F,3,0),"") -> 0 | D92: =VLOOKUP(A92,CADASTRO!C:F,4,0) -> PADARIA TRADICIONAL | E92: 4 | F92: 2023-02-15
A93: 273 | B93: =IF(A93="","",IFERROR(VLOOKUP(A93,CADASTRO!C:D,2,FALSE),"Produto Não Cadastrado")) -> PÃO BENGALA 5 HORAS | C93: =IFERROR(VLOOKUP(A93,CADASTRO!C:F,3,0),"") -> 0 | D93: =VLOOKUP(A93,CADASTRO!C:F,4,0) -> PADARIA TRADICIONAL | E93: 5 | F93: 2023-02-15
A94: 60 | B94: =IF(A94="","",IFERROR(VLOOKUP(A94,CADASTRO!C:D,2,FALSE),"Produto Não Cadastrado")) -> FOCACCIA RUSTICA CALABRESA (MASSA) | C94: =IFERROR(VLOOKUP(A94,CADASTRO!C:F,3,0),"") -> 0 | D94: =VLOOKUP(A94,CADASTRO!C:F,4,0) -> PADARIA RÚSTICA | E94: 2 | F94: 2023-02-15
A95: 126 | B95: =IF(A95="","",IFERROR(VLOOKUP(A95,CADASTRO!C:D,2,FALSE),"Produto Não Cadastrado")) -> PÃO CAMPONÊS | C95: =IFERROR(VLOOKUP(A95,CADASTRO!C:F,3,0),"") -> 0 | D95: =VLOOKUP(A95,CADASTRO!C:F,4,0) -> PADARIA RÚSTICA | E95: 20 | F95: 2023-02-15
A96: 223 | B96: =IF(A96="","",IFERROR(VLOOKUP(A96,CADASTRO!C:D,2,FALSE),"Produto Não Cadastrado")) -> QUICHE ALHO PORO | C96: =IFERROR(VLOOKUP(A96,CADASTRO!C:F,3,0),"") -> 0 | D96: =VLOOKUP(A96,CADASTRO!C:F,4,0) -> QUITUTERIA | E96: 5 | F96: 2023-02-15
A97: 224 | B97: =IF(A97="","",IFERROR(VLOOKUP(A97,CADASTRO!C:D,2,FALSE),"Produto Não Cadastrado")) -> QUICHE BACALHAU | C97: =IFERROR(VLOOKUP(A97,CADASTRO!C:F,3,0),"") -> 0 | D97: =VLOOKUP(A97,CADASTRO!C:F,4,0) -> QUITUTERIA | E97: 11 | F97: 2023-02-15
A98: 225 | B98: =IF(A98="","",IFERROR(VLOOKUP(A98,CADASTRO!C:D,2,FALSE),"Produto Não Cadastrado")) -> QUICHE FRANGO | C98: =IFERROR(VLOOKUP(A98,CADASTRO!C:F,3,0),"") -> 0 | D98: =VLOOKUP(A98,CADASTRO!C:F,4,0) -> QUITUTERIA | E98: 6 | F98: 2023-02-15
A99: 228 | B99: =IF(A99="","",IFERROR(VLOOKUP(A99,CADASTRO!C:D,2,FALSE),"Produto Não Cadastrado")) -> QUICHE MARGUERITA | C99: =IFERROR(VLOOKUP(A99,CADASTRO!C:F,3,0),"") -> 0 | D99: =VLOOKUP(A99,CADASTRO!C:F,4,0) -> QUITUTERIA | E99: 5 | F99: 2023-02-15
A100: 229 | B100: =IF(A100="","",IFERROR(VLOOKUP(A100,CADASTRO!C:D,2,FALSE),"Produto Não Cadastrado")) -> QUICHE QUEIJO CUIA | C100: =IFERROR(VLOOKUP(A100,CADASTRO!C:F,3,0),"") -> 0 | D100: =VLOOKUP(A100,CADASTRO!C:F,4,0) -> QUITUTERIA | E100: 5 | F100: 2023-02-15
A101: 230 | B101: =IF(A101="","",IFERROR(VLOOKUP(A101,CADASTRO!C:D,2,FALSE),"Produto Não Cadastrado")) -> QUICHE QUEIJO CUIA/JAMBU | C101: =IFERROR(VLOOKUP(A101,CADASTRO!C:F,3,0),"") -> 0 | D101: =VLOOKUP(A101,CADASTRO!C:F,4,0) -> QUITUTERIA | E101: 5 | F101: 2023-02-15
A102: 231 | B102: =IF(A102="","",IFERROR(VLOOKUP(A102,CADASTRO!C:D,2,FALSE),"Produto Não Cadastrado")) -> QUICHE TOMATE SECO | C102: =IFERROR(VLOOKUP(A102,CADASTRO!C:F,3,0),"") -> 0 | D102: =VLOOKUP(A102,CADASTRO!C:F,4,0) -> QUITUTERIA | E102: 5 | F102: 2023-02-15
A103: 61 | B103: =IF(A103="","",IFERROR(VLOOKUP(A103,CADASTRO!C:D,2,FALSE),"Produto Não Cadastrado")) -> FOCACCIA TABULEIRO | C103: =IFERROR(VLOOKUP(A103,CADASTRO!C:F,3,0),"") -> 0 | D103: =VLOOKUP(A103,CADASTRO!C:F,4,0) -> PADARIA RÚSTICA | E103: 2 | F103: 2023-02-15
A104: 88 | B104: =IF(A104="","",IFERROR(VLOOKUP(A104,CADASTRO!C:D,2,FALSE),"Produto Não Cadastrado")) -> MINI PÃO BATATA (ERVAS,PARMESÃO) | C104: =IFERROR(VLOOKUP(A104,CADASTRO!C:F,3,0),"") -> 0 | D104: =VLOOKUP(A104,CADASTRO!C:F,4,0) -> PADARIA TRADICIONAL | E104: 288 | F104: 2023-02-15
A105: 26 | B105: =IF(A105="","",IFERROR(VLOOKUP(A105,CADASTRO!C:D,2,FALSE),"Produto Não Cadastrado")) -> CARRET | C105: =IFERROR(VLOOKUP(A105,CADASTRO!C:F,3,0),"") -> 0 | D105: =VLOOKUP(A105,CADASTRO!C:F,4,0) -> FOLHATERIA | E105: 23 | F105: 2023-02-16
A106: 28 | B106: =IF(A106="","",IFERROR(VLOOKUP(A106,CADASTRO!C:D,2,FALSE),"Produto Não Cadastrado")) -> CATARINA DE BACALHAU | C106: =IFERROR(VLOOKUP(A106,CADASTRO!C:F,3,0),"") -> 0 | D106: =VLOOKUP(A106,CADASTRO!C:F,4,0) -> FOLHATERIA | E106: 2 | F106: 2023-02-16
A107: 29 | B107: =IF(A107="","",IFERROR(VLOOKUP(A107,CADASTRO!C:D,2,FALSE),"Produto Não Cadastrado")) -> CATARINA DE FRANGO | C107: =IFERROR(VLOOKUP(A107,CADASTRO!C:F,3,0),"") -> 0 | D107: =VLOOKUP(A107,CADASTRO!C:F,4,0) -> FOLHATERIA | E107: 2 | F107: 2023-02-16
A108: 66 | B108: =IF(A108="","",IFERROR(VLOOKUP(A108,CADASTRO!C:D,2,FALSE),"Produto Não Cadastrado")) -> LASANHA FOLHADA MISTA | C108: =IFERROR(VLOOKUP(A108,CADASTRO!C:F,3,0),"") -> 0 | D108: =VLOOKUP(A108,CADASTRO!C:F,4,0) -> FOLHATERIA | E108: 1 | F108: 2023-02-16
A109: 78 | B109: =IF(A109="","",IFERROR(VLOOKUP(A109,CADASTRO!C:D,2,FALSE),"Produto Não Cadastrado")) -> MINI FOLHADO BACALHAU | C109: =IFERROR(VLOOKUP(A109,CADASTRO!C:F,3,0),"") -> 0 | D109: =VLOOKUP(A109,CADASTRO!C:F,4,0) -> FOLHATERIA | E109: 3.83 | F109: 2023-02-16
A110: 80 | B110: =IF(A110="","",IFERROR(VLOOKUP(A110,CADASTRO!C:D,2,FALSE),"Produto Não Cadastrado")) -> MINI FOLHADO CUPUAÇU | C110: =IFERROR(VLOOKUP(A110,CADASTRO!C:F,3,0),"") -> 0 | D110: =VLOOKUP(A110,CADASTRO!C:F,4,0) -> FOLHATERIA | E110: 3.84 | F110: 2023-02-16
A111: 81 | B111: =IF(A111="","",IFERROR(VLOOKUP(A111,CADASTRO!C:D,2,FALSE),"Produto Não Cadastrado")) -> MINI FOLHADO DE QUEIJO | C111: =IFERROR(VLOOKUP(A111,CADASTRO!C:F,3,0),"") -> 0 | D111: =VLOOKUP(A111,CADASTRO!C:F,4,0) -> FOLHATERIA | E111: 3.8 | F111: 2023-02-16
A112: 82 | B112: =IF(A112="","",IFERROR(VLOOKUP(A112,CADASTRO!C:D,2,FALSE),"Produto Não Cadastrado")) -> MINI FOLHADO FRANGO | C112: =IFERROR(VLOOKUP(A112,CADASTRO!C:F,3,0),"") -> 0 | D112: =VLOOKUP(A112,CADASTRO!C:F,4,0) -> FOLHATERIA | E112: 7.43 | F112: 2023-02-16
A113: 94 | B113: =IF(A113="","",IFERROR(VLOOKUP(A113,CADASTRO!C:D,2,FALSE),"Produto Não Cadastrado")) -> MINI TRANÇA BACALHAU | C113: =IFERROR(VLOOKUP(A113,CADASTRO!C:F,3,0),"") -> 0 | D113: =VLOOKUP(A113,CADASTRO!C:F,4,0) -> FOLHATERIA | E113: 2 | F113: 2023-02-16
A114: 95 | B114: =IF(A114="","",IFERROR(VLOOKUP(A114,CADASTRO!C:D,2,FALSE),"Produto Não Cadastrado")) -> MINI TRANÇA CALABRESA | C114: =IFERROR(VLOOKUP(A114,CADASTRO!C:F,3,0),"") -> 0 | D114: =VLOOKUP(A114,CADASTRO!C:F,4,0) -> FOLHATERIA | E114: 2 | F114: 2023-02-16
A115: 97 | B115: =IF(A115="","",IFERROR(VLOOKUP(A115,CADASTRO!C:D,2,FALSE),"Produto Não Cadastrado")) -> MINI TRANÇA FRANGO | C115: =IFERROR(VLOOKUP(A115,CADASTRO!C:F,3,0),"") -> 0 | D115: =VLOOKUP(A115,CADASTRO!C:F,4,0) -> FOLHATERIA | E115: 2 | F115: 2023-02-16
A116: 98 | B116: =IF(A116="","",IFERROR(VLOOKUP(A116,CADASTRO!C:D,2,FALSE),"Produto Não Cadastrado")) -> MINI TRANÇA MISTA | C116: =IFERROR(VLOOKUP(A116,CADASTRO!C:F,3,0),"") -> 0 | D116: =VLOOKUP(A116,CADASTRO!C:F,4,0) -> FOLHATERIA | E116: 2 | F116: 2023-02-16
A117: 104 | B117: =IF(A117="","",IFERROR(VLOOKUP(A117,CADASTRO!C:D,2,FALSE),"Produto Não Cadastrado")) -> MINI TRANÇA SALAME | C117: =IFERROR(VLOOKUP(A117,CADASTRO!C:F,3,0),"") -> 0 | D117: =VLOOKUP(A117,CADASTRO!C:F,4,0) -> FOLHATERIA | E117: 2 | F117: 2023-02-16
A118: 172 | B118: =IF(A118="","",IFERROR(VLOOKUP(A118,CADASTRO!C:D,2,FALSE),"Produto Não Cadastrado")) -> PASTEL DE BELÉM (MASSA) | C118: =IFERROR(VLOOKUP(A118,CADASTRO!C:F,3,0),"") -> 0 | D118: =VLOOKUP(A118,CADASTRO!C:F,4,0) -> FOLHATERIA | E118: 2 | F118: 2023-02-16
A119: 173 | B119: =IF(A119="","",IFERROR(VLOOKUP(A119,CADASTRO!C:D,2,FALSE),"Produto Não Cadastrado")) -> PASTEL FOLHADO BACALHAU | C119: =IFERROR(VLOOKUP(A119,CADASTRO!C:F,3,0),"") -> 0 | D119: =VLOOKUP(A119,CADASTRO!C:F,4,0) -> FOLHATERIA | E119: 12 | F119: 2023-02-16
A120: 175 | B120: =IF(A120="","",IFERROR(VLOOKUP(A120,CADASTRO!C:D,2,FALSE),"Produto Não Cadastrado")) -> PASTEL FOLHADO MISTO | C120: =IFERROR(VLOOKUP(A120,CADASTRO!C:F,3,0),"") -> 0 | D120: =VLOOKUP(A120,CADASTRO!C:F,4,0) -> FOLHATERIA | E120: 30 | F120: 2023-02-16
A121: 176 | B121: =IF(A121="","",IFERROR(VLOOKUP(A121,CADASTRO!C:D,2,FALSE),"Produto Não Cadastrado")) -> PASTEL FOLHADO QUEIJO | C121: =IFERROR(VLOOKUP(A121,CADASTRO!C:F,3,0),"") -> 0 | D121: =VLOOKUP(A121,CADASTRO!C:F,4,0) -> FOLHATERIA | E121: 30 | F121: 2023-02-16
A122: 180 | B122: =IF(A122="","",IFERROR(VLOOKUP(A122,CADASTRO!C:D,2,FALSE),"Produto Não Cadastrado")) -> PIZZA FOLHADA MIX FRIOS | C122: =IFERROR(VLOOKUP(A122,CADASTRO!C:F,3,0),"") -> 0 | D122: =VLOOKUP(A122,CADASTRO!C:F,4,0) -> FOLHATERIA | E122: 5 | F122: 2023-02-16
A123: 263 | B123: =IF(A123="","",IFERROR(VLOOKUP(A123,CADASTRO!C:D,2,FALSE),"Produto Não Cadastrado")) -> TRANÇA FOLHADA BACALHAU | C123: =IFERROR(VLOOKUP(A123,CADASTRO!C:F,3,0),"") -> 0 | D123: =VLOOKUP(A123,CADASTRO!C:F,4,0) -> FOLHATERIA | E123: 3 | F123: 2023-02-16
A124: 264 | B124: =IF(A124="","",IFERROR(VLOOKUP(A124,CADASTRO!C:D,2,FALSE),"Produto Não Cadastrado")) -> TRANÇA FOLHADA CALABRESA | C124: =IFERROR(VLOOKUP(A124,CADASTRO!C:F,3,0),"") -> 0 | D124: =VLOOKUP(A124,CADASTRO!C:F,4,0) -> FOLHATERIA | E124: 3 | F124: 2023-02-16
A125: 266 | B125: =IF(A125="","",IFERROR(VLOOKUP(A125,CADASTRO!C:D,2,FALSE),"Produto Não Cadastrado")) -> TRANÇA FOLHADA FRANGO/JAMBU | C125: =IFERROR(VLOOKUP(A125,CADASTRO!C:F,3,0),"") -> 0 | D125: =VLOOKUP(A125,CADASTRO!C:F,4,0) -> FOLHATERIA | E125: 1 | F125: 2023-02-16
A126: 267 | B126: =IF(A126="","",IFERROR(VLOOKUP(A126,CADASTRO!C:D,2,FALSE),"Produto Não Cadastrado")) -> TRANÇA FOLHADA MISTA | C126: =IFERROR(VLOOKUP(A126,CADASTRO!C:F,3,0),"") -> 0 | D126: =VLOOKUP(A126,CADASTRO!C:F,4,0) -> FOLHATERIA | E126: 4 | F126: 2023-02-16
A127: 268 | B127: =IF(A127="","",IFERROR(VLOOKUP(A127,CADASTRO!C:D,2,FALSE),"Produto Não Cadastrado")) -> TRANÇA FOLHADA MORTADELA DEFUMADA | C127: =IFERROR(VLOOKUP(A127,CADASTRO!C:F,3,0),"") -> 0 | D127: =VLOOKUP(A127,CADASTRO!C:F,4,0) -> FOLHATERIA | E127: 2 | F127: 2023-02-16
A128: 271 | B128: =IF(A128="","",IFERROR(VLOOKUP(A128,CADASTRO!C:D,2,FALSE),"Produto Não Cadastrado")) -> TRANÇA FOLHADA PERU/JAMBU | C128: =IFERROR(VLOOKUP(A128,CADASTRO!C:F,3,0),"") -> 0 | D128: =VLOOKUP(A128,CADASTRO!C:F,4,0) -> FOLHATERIA | E128: 2 | F128: 2023-02-16
A129: 272 | B129: =IF(A129="","",IFERROR(VLOOKUP(A129,CADASTRO!C:D,2,FALSE),"Produto Não Cadastrado")) -> TRANÇA FOLHADA SALAME | C129: =IFERROR(VLOOKUP(A129,CADASTRO!C:F,3,0),"") -> 0 | D129: =VLOOKUP(A129,CADASTRO!C:F,4,0) -> FOLHATERIA | E129: 3 | F129: 2023-02-16
A130: 8 | B130: =IF(A130="","",IFERROR(VLOOKUP(A130,CADASTRO!C:D,2,FALSE),"Produto Não Cadastrado")) -> BAGUETE INTEGRAL (PCT C/ 45 UND = 3 KG) | C130: =IFERROR(VLOOKUP(A130,CADASTRO!C:F,3,0),"") -> 0 | D130: =VLOOKUP(A130,CADASTRO!C:F,4,0) -> PADARIA TRADICIONAL | E130: 2 | F130: 2023-02-16
A131: 17 | B131: =IF(A131="","",IFERROR(VLOOKUP(A131,CADASTRO!C:D,2,FALSE),"Produto Não Cadastrado")) -> BISCOITO MONTEIRO LOPES | C131: =IFERROR(VLOOKUP(A131,CADASTRO!C:F,3,0),"") -> 0 | D131: =VLOOKUP(A131,CADASTRO!C:F,4,0) -> PADARIA TRADICIONAL | E131: 5 | F131: 2023-02-16
A132: 39 | B132: =IF(A132="","",IFERROR(VLOOKUP(A132,CADASTRO!C:D,2,FALSE),"Produto Não Cadastrado")) -> CROISSANT AMÊNDOAS | C132: =IFERROR(VLOOKUP(A132,CADASTRO!C:F,3,0),"") -> 0 | D132: =VLOOKUP(A132,CADASTRO!C:F,4,0) -> PADARIA TRADICIONAL | E132: 24 | F132: 2023-02-16
A133: 41 | B133: =IF(A133="","",IFERROR(VLOOKUP(A133,CADASTRO!C:D,2,FALSE),"Produto Não Cadastrado")) -> CROISSANT CONGELADO | C133: =IFERROR(VLOOKUP(A133,CADASTRO!C:F,3,0),"") -> 0 | D133: =VLOOKUP(A133,CADASTRO!C:F,4,0) -> PADARIA TRADICIONAL | E133: 400 | F133: 2023-02-16
A134: 49 | B134: =IF(A134="","",IFERROR(VLOOKUP(A134,CADASTRO!C:D,2,FALSE),"Produto Não Cadastrado")) -> DONNUTS | C134: =IFERROR(VLOOKUP(A134,CADASTRO!C:F,3,0),"") -> 0 | D134: =VLOOKUP(A134,CADASTRO!C:F,4,0) -> PADARIA TRADICIONAL | E134: 6 | F134: 2023-02-16
A135: 50 | B135: =IF(A135="","",IFERROR(VLOOKUP(A135,CADASTRO!C:D,2,FALSE),"Produto Não Cadastrado")) -> EMPADA BACALHAU | C135: =IFERROR(VLOOKUP(A135,CADASTRO!C:F,3,0),"") -> 0 | D135: =VLOOKUP(A135,CADASTRO!C:F,4,0) -> PADARIA TRADICIONAL | E135: 6 | F135: 2023-02-16
A136: 51 | B136: =IF(A136="","",IFERROR(VLOOKUP(A136,CADASTRO!C:D,2,FALSE),"Produto Não Cadastrado")) -> EMPADA FRANGO | C136: =IFERROR(VLOOKUP(A136,CADASTRO!C:F,3,0),"") -> 0 | D136: =VLOOKUP(A136,CADASTRO!C:F,4,0) -> PADARIA TRADICIONAL | E136: 6 | F136: 2023-02-16
A137: 52 | B137: =IF(A137="","",IFERROR(VLOOKUP(A137,CADASTRO!C:D,2,FALSE),"Produto Não Cadastrado")) -> EMPADA FRANGO/PALMITO | C137: =IFERROR(VLOOKUP(A137,CADASTRO!C:F,3,0),"") -> 0 | D137: =VLOOKUP(A137,CADASTRO!C:F,4,0) -> PADARIA TRADICIONAL | E137: 6 | F137: 2023-02-16
A138: 71 | B138: =IF(A138="","",IFERROR(VLOOKUP(A138,CADASTRO!C:D,2,FALSE),"Produto Não Cadastrado")) -> MASSA MINI PIZZA | C138: =IFERROR(VLOOKUP(A138,CADASTRO!C:F,3,0),"") -> 0 | D138: =VLOOKUP(A138,CADASTRO!C:F,4,0) -> PADARIA TRADICIONAL | E138: 1 | F138: 2023-02-16
A139: 88 | B139: =IF(A139="","",IFERROR(VLOOKUP(A139,CADASTRO!C:D,2,FALSE),"Produto Não Cadastrado")) -> MINI PÃO BATATA (ERVAS,PARMESÃO) | C139: =IFERROR(VLOOKUP(A139,CADASTRO!C:F,3,0),"") -> 0 | D139: =VLOOKUP(A139,CADASTRO!C:F,4,0) -> PADARIA TRADICIONAL | E139: 288 | F139: 2023-02-16
A140: 89 | B140: =IF(A140="","",IFERROR(VLOOKUP(A140,CADASTRO!C:D,2,FALSE),"Produto Não Cadastrado")) -> MINI PÃO BATATA HAMBÚRGUER | C140: =IFERROR(VLOOKUP(A140,CADASTRO!C:F,3,0),"") -> 0 | D140: =VLOOKUP(A140,CADASTRO!C:F,4,0) -> PADARIA TRADICIONAL | E140: 54 | F140: 2023-02-16
A141: 91 | B141: =IF(A141="","",IFERROR(VLOOKUP(A141,CADASTRO!C:D,2,FALSE),"Produto Não Cadastrado")) -> MINI PÃO BRIOCHE (PCT C/ 24UND) | C141: =IFERROR(VLOOKUP(A141,CADASTRO!C:F,3,0),"") -> 0 | D141: =VLOOKUP(A141,CADASTRO!C:F,4,0) -> PADARIA TRADICIONAL | E141: 1 | F141: 2023-02-16
A142: 92 | B142: =IF(A142="","",IFERROR(VLOOKUP(A142,CADASTRO!C:D,2,FALSE),"Produto Não Cadastrado")) -> MINI PÃO DELÍCIA (PCT C/ 24UND) | C142: =IFERROR(VLOOKUP(A142,CADASTRO!C:F,3,0),"") -> 0 | D142: =VLOOKUP(A142,CADASTRO!C:F,4,0) -> PADARIA TRADICIONAL | E142: 3 | F142: 2023-02-16
A143: 121 | B143: =IF(A143="","",IFERROR(VLOOKUP(A143,CADASTRO!C:D,2,FALSE),"Produto Não Cadastrado")) -> PÃO BAIÃO | C143: =IFERROR(VLOOKUP(A143,CADASTRO!C:F,3,0),"") -> 0 | D143: =VLOOKUP(A143,CADASTRO!C:F,4,0) -> PADARIA TRADICIONAL | E143: 21 | F143: 2023-02-16
A144: 122 | B144: =IF(A144="","",IFERROR(VLOOKUP(A144,CADASTRO!C:D,2,FALSE),"Produto Não Cadastrado")) -> PÃO BENGALA 10 HORAS | C144: =IFERROR(VLOOKUP(A144,CADASTRO!C:F,3,0),"") -> 0 | D144: =VLOOKUP(A144,CADASTRO!C:F,4,0) -> PADARIA TRADICIONAL | E144: 5 | F144: 2023-02-16
A145: 123 | B145: =IF(A145="","",IFERROR(VLOOKUP(A145,CADASTRO!C:D,2,FALSE),"Produto Não Cadastrado")) -> PÃO BRIOCHE DE FORMA 1000 | C145: =IFERROR(VLOOKUP(A145,CADASTRO!C:F,3,0),"") -> 0 | D145: =VLOOKUP(A145,CADASTRO!C:F,4,0) -> PADARIA TRADICIONAL | E145: 5 | F145: 2023-02-16
A146: 135 | B146: =IF(A146="","",IFERROR(VLOOKUP(A146,CADASTRO!C:D,2,FALSE),"Produto Não Cadastrado")) -> PÃO DE BATATA FILÃO | C146: =IFERROR(VLOOKUP(A146,CADASTRO!C:F,3,0),"") -> 0 | D146: =VLOOKUP(A146,CADASTRO!C:F,4,0) -> PADARIA TRADICIONAL | E146: 48 | F146: 2023-02-16
A147: 153 | B147: =IF(A147="","",IFERROR(VLOOKUP(A147,CADASTRO!C:D,2,FALSE),"Produto Não Cadastrado")) -> PÃO FORMA BATATA A25 | C147: =IFERROR(VLOOKUP(A147,CADASTRO!C:F,3,0),"") -> 0 | D147: =VLOOKUP(A147,CADASTRO!C:F,4,0) -> PADARIA TRADICIONAL | E147: 48 | F147: 2023-02-16
A148: 154 | B148: =IF(A148="","",IFERROR(VLOOKUP(A148,CADASTRO!C:D,2,FALSE),"Produto Não Cadastrado")) -> PÃO FORMA BRIOCHE A25 | C148: =IFERROR(VLOOKUP(A148,CADASTRO!C:F,3,0),"") -> 0 | D148: =VLOOKUP(A148,CADASTRO!C:F,4,0) -> PADARIA TRADICIONAL | E148: 15 | F148: 2023-02-16
A149: 155 | B149: =IF(A149="","",IFERROR(VLOOKUP(A149,CADASTRO!C:D,2,FALSE),"Produto Não Cadastrado")) -> PÃO FORMA INTEGRAL 1000 | C149: =IFERROR(VLOOKUP(A149,CADASTRO!C:F,3,0),"") -> 0 | D149: =VLOOKUP(A149,CADASTRO!C:F,4,0) -> PADARIA TRADICIONAL | E149: 15 | F149: 2023-02-16
A150: 156 | B150: =IF(A150="","",IFERROR(VLOOKUP(A150,CADASTRO!C:D,2,FALSE),"Produto Não Cadastrado")) -> PÃO FORMA INTEGRAL 700 | C150: =IFERROR(VLOOKUP(A150,CADASTRO!C:F,3,0),"") -> 0 | D150: =VLOOKUP(A150,CADASTRO!C:F,4,0) -> PADARIA TRADICIONAL | E150: 8 | F150: 2023-02-16
A151: 157 | B151: =IF(A151="","",IFERROR(VLOOKUP(A151,CADASTRO!C:D,2,FALSE),"Produto Não Cadastrado")) -> PÃO FORMA LEITE A25 | C151: =IFERROR(VLOOKUP(A151,CADASTRO!C:F,3,0),"") -> 0 | D151: =VLOOKUP(A151,CADASTRO!C:F,4,0) -> PADARIA TRADICIONAL | E151: 5 | F151: 2023-02-16
A152: 158 | B152: =IF(A152="","",IFERROR(VLOOKUP(A152,CADASTRO!C:D,2,FALSE),"Produto Não Cadastrado")) -> PÃO FORMA MILHO A25 | C152: =IFERROR(VLOOKUP(A152,CADASTRO!C:F,3,0),"") -> 0 | D152: =VLOOKUP(A152,CADASTRO!C:F,4,0) -> PADARIA TRADICIONAL | E152: 15 | F152: 2023-02-16
A153: 159 | B153: =IF(A153="","",IFERROR(VLOOKUP(A153,CADASTRO!C:D,2,FALSE),"Produto Não Cadastrado")) -> PÃO FORMA TRADICIONAL 1000 | C153: =IFERROR(VLOOKUP(A153,CADASTRO!C:F,3,0),"") -> 0 | D153: =VLOOKUP(A153,CADASTRO!C:F,4,0) -> PADARIA TRADICIONAL | E153: 8 | F153: 2023-02-16
A154: 160 | B154: =IF(A154="","",IFERROR(VLOOKUP(A154,CADASTRO!C:D,2,FALSE),"Produto Não Cadastrado")) -> PÃO FORMA TRADICIONAL 700 | C154: =IFERROR(VLOOKUP(A154,CADASTRO!C:F,3,0),"") -> 0 | D154: =VLOOKUP(A154,CADASTRO!C:F,4,0) -> PADARIA TRADICIONAL | E154: 5 | F154: 2023-02-16
A155: 167 | B155: =IF(A155="","",IFERROR(VLOOKUP(A155,CADASTRO!C:D,2,FALSE),"Produto Não Cadastrado")) -> PÃO QUEIJO CALABRESA | C155: =IFERROR(VLOOKUP(A155,CADASTRO!C:F,3,0),"") -> 0 | D155: =VLOOKUP(A155,CADASTRO!C:F,4,0) -> PADARIA TRADICIONAL | E155: 15 | F155: 2023-02-16
A156: 170 | B156: =IF(A156="","",IFERROR(VLOOKUP(A156,CADASTRO!C:D,2,FALSE),"Produto Não Cadastrado")) -> PÃO VIENNOIS | C156: =IFERROR(VLOOKUP(A156,CADASTRO!C:F,3,0),"") -> 0 | D156: =VLOOKUP(A156,CADASTRO!C:F,4,0) -> PADARIA TRADICIONAL | E156: 15 | F156: 2023-02-16
A157: 244 | B157: =IF(A157="","",IFERROR(VLOOKUP(A157,CADASTRO!C:D,2,FALSE),"Produto Não Cadastrado")) -> ROSQUINHA DE LEITE (PCT C/ 32UND) | C157: =IFERROR(VLOOKUP(A157,CADASTRO!C:F,3,0),"") -> 0 | D157: =VLOOKUP(A157,CADASTRO!C:F,4,0) -> PADARIA TRADICIONAL | E157: 3 | F157: 2023-02-16
A158: 247 | B158: =IF(A158="","",IFERROR(VLOOKUP(A158,CADASTRO!C:D,2,FALSE),"Produto Não Cadastrado")) -> SONHO | C158: =IFERROR(VLOOKUP(A158,CADASTRO!C:F,3,0),"") -> 0 | D158: =VLOOKUP(A158,CADASTRO!C:F,4,0) -> PADARIA TRADICIONAL | E158: 3 | F158: 2023-02-16
A159: 273 | B159: =IF(A159="","",IFERROR(VLOOKUP(A159,CADASTRO!C:D,2,FALSE),"Produto Não Cadastrado")) -> PÃO BENGALA 5 HORAS | C159: =IFERROR(VLOOKUP(A159,CADASTRO!C:F,3,0),"") -> 0 | D159: =VLOOKUP(A159,CADASTRO!C:F,4,0) -> PADARIA TRADICIONAL | E159: 5 | F159: 2023-02-16
A160: 222 | B160: =IF(A160="","",IFERROR(VLOOKUP(A160,CADASTRO!C:D,2,FALSE),"Produto Não Cadastrado")) -> QUICHE 4 QUEIJOS | C160: =IFERROR(VLOOKUP(A160,CADASTRO!C:F,3,0),"") -> 0 | D160: =VLOOKUP(A160,CADASTRO!C:F,4,0) -> QUITUTERIA | E160: 5 | F160: 2023-02-16
A161: 223 | B161: =IF(A161="","",IFERROR(VLOOKUP(A161,CADASTRO!C:D,2,FALSE),"Produto Não Cadastrado")) -> QUICHE ALHO PORO | C161: =IFERROR(VLOOKUP(A161,CADASTRO!C:F,3,0),"") -> 0 | D161: =VLOOKUP(A161,CADASTRO!C:F,4,0) -> QUITUTERIA | E161: 5 | F161: 2023-02-16
A162: 224 | B162: =IF(A162="","",IFERROR(VLOOKUP(A162,CADASTRO!C:D,2,FALSE),"Produto Não Cadastrado")) -> QUICHE BACALHAU | C162: =IFERROR(VLOOKUP(A162,CADASTRO!C:F,3,0),"") -> 0 | D162: =VLOOKUP(A162,CADASTRO!C:F,4,0) -> QUITUTERIA | E162: 5 | F162: 2023-02-16
A163: 225 | B163: =IF(A163="","",IFERROR(VLOOKUP(A163,CADASTRO!C:D,2,FALSE),"Produto Não Cadastrado")) -> QUICHE FRANGO | C163: =IFERROR(VLOOKUP(A163,CADASTRO!C:F,3,0),"") -> 0 | D163: =VLOOKUP(A163,CADASTRO!C:F,4,0) -> QUITUTERIA | E163: 5 | F163: 2023-02-16
A164: 227 | B164: =IF(A164="","",IFERROR(VLOOKUP(A164,CADASTRO!C:D,2,FALSE),"Produto Não Cadastrado")) -> QUICHE MARAJOARA | C164: =IFERROR(VLOOKUP(A164,CADASTRO!C:F,3,0),"") -> 0 | D164: =VLOOKUP(A164,CADASTRO!C:F,4,0) -> QUITUTERIA | E164: 5 | F164: 2023-02-16
A165: 231 | B165: =IF(A165="","",IFERROR(VLOOKUP(A165,CADASTRO!C:D,2,FALSE),"Produto Não Cadastrado")) -> QUICHE TOMATE SECO | C165: =IFERROR(VLOOKUP(A165,CADASTRO!C:F,3,0),"") -> 0 | D165: =VLOOKUP(A165,CADASTRO!C:F,4,0) -> QUITUTERIA | E165: 5 | F165: 2023-02-16
A166: 28 | B166: =IF(A166="","",IFERROR(VLOOKUP(A166,CADASTRO!C:D,2,FALSE),"Produto Não Cadastrado")) -> CATARINA DE BACALHAU | C166: =IFERROR(VLOOKUP(A166,CADASTRO!C:F,3,0),"") -> 0 | D166: =VLOOKUP(A166,CADASTRO!C:F,4,0) -> FOLHATERIA | E166: 1 | F166: 2023-02-16
A167: 29 | B167: =IF(A167="","",IFERROR(VLOOKUP(A167,CADASTRO!C:D,2,FALSE),"Produto Não Cadastrado")) -> CATARINA DE FRANGO | C167: =IFERROR(VLOOKUP(A167,CADASTRO!C:F,3,0),"") -> 0 | D167: =VLOOKUP(A167,CADASTRO!C:F,4,0) -> FOLHATERIA | E167: 1 | F167: 2023-02-16
A168: 93 | B168: =IF(A168="","",IFERROR(VLOOKUP(A168,CADASTRO!C:D,2,FALSE),"Produto Não Cadastrado")) -> MINI PASTEL FOLHADO | C168: =IFERROR(VLOOKUP(A168,CADASTRO!C:F,3,0),"") -> 0 | D168: =VLOOKUP(A168,CADASTRO!C:F,4,0) -> FOLHATERIA | E168: 3.39 | F168: 2023-02-16
A169: 94 | B169: =IF(A169="","",IFERROR(VLOOKUP(A169,CADASTRO!C:D,2,FALSE),"Produto Não Cadastrado")) -> MINI TRANÇA BACALHAU | C169: =IFERROR(VLOOKUP(A169,CADASTRO!C:F,3,0),"") -> 0 | D169: =VLOOKUP(A169,CADASTRO!C:F,4,0) -> FOLHATERIA | E169: 2 | F169: 2023-02-16
A170: 110 | B170: =IF(A170="","",IFERROR(VLOOKUP(A170,CADASTRO!C:D,2,FALSE),"Produto Não Cadastrado")) -> PALITO CANELA | C170: =IFERROR(VLOOKUP(A170,CADASTRO!C:F,3,0),"") -> 0 | D170: =VLOOKUP(A170,CADASTRO!C:F,4,0) -> FOLHATERIA | E170: 3.9 | F170: 2023-02-16
A171: 111 | B171: =IF(A171="","",IFERROR(VLOOKUP(A171,CADASTRO!C:D,2,FALSE),"Produto Não Cadastrado")) -> PALITO QUEIJO | C171: =IFERROR(VLOOKUP(A171,CADASTRO!C:F,3,0),"") -> 0 | D171: =VLOOKUP(A171,CADASTRO!C:F,4,0) -> FOLHATERIA | E171: 3.9 | F171: 2023-02-16
A172: 176 | B172: =IF(A172="","",IFERROR(VLOOKUP(A172,CADASTRO!C:D,2,FALSE),"Produto Não Cadastrado")) -> PASTEL FOLHADO QUEIJO | C172: =IFERROR(VLOOKUP(A172,CADASTRO!C:F,3,0),"") -> 0 | D172: =VLOOKUP(A172,CADASTRO!C:F,4,0) -> FOLHATERIA | E172: 15 | F172: 2023-02-16
A173: 180 | B173: =IF(A173="","",IFERROR(VLOOKUP(A173,CADASTRO!C:D,2,FALSE),"Produto Não Cadastrado")) -> PIZZA FOLHADA MIX FRIOS | C173: =IFERROR(VLOOKUP(A173,CADASTRO!C:F,3,0),"") -> 0 | D173: =VLOOKUP(A173,CADASTRO!C:F,4,0) -> FOLHATERIA | E173: 20 | F173: 2023-02-16
A174: 263 | B174: =IF(A174="","",IFERROR(VLOOKUP(A174,CADASTRO!C:D,2,FALSE),"Produto Não Cadastrado")) -> TRANÇA FOLHADA BACALHAU | C174: =IFERROR(VLOOKUP(A174,CADASTRO!C:F,3,0),"") -> 0 | D174: =VLOOKUP(A174,CADASTRO!C:F,4,0) -> FOLHATERIA | E174: 1 | F174: 2023-02-16
A175: 264 | B175: =IF(A175="","",IFERROR(VLOOKUP(A175,CADASTRO!C:D,2,FALSE),"Produto Não Cadastrado")) -> TRANÇA FOLHADA CALABRESA | C175: =IFERROR(VLOOKUP(A175,CADASTRO!C:F,3,0),"") -> 0 | D175: =VLOOKUP(A175,CADASTRO!C:F,4,0) -> FOLHATERIA | E175: 3 | F175: 2023-02-16
A176: 267 | B176: =IF(A176="","",IFERROR(VLOOKUP(A176,CADASTRO!C:D,2,FALSE),"Produto Não Cadastrado")) -> TRANÇA FOLHADA MISTA | C176: =IFERROR(VLOOKUP(A176,CADASTRO!C:F,3,0),"") -> 0 | D176: =VLOOKUP(A176,CADASTRO!C:F,4,0) -> FOLHATERIA | E176: 2 | F176: 2023-02-16
A177: 271 | B177: =IF(A177="","",IFERROR(VLOOKUP(A177,CADASTRO!C:D,2,FALSE),"Produto Não Cadastrado")) -> TRANÇA FOLHADA PERU/JAMBU | C177: =IFERROR(VLOOKUP(A177,CADASTRO!C:F,3,0),"") -> 0 | D177: =VLOOKUP(A177,CADASTRO!C:F,4,0) -> FOLHATERIA | E177: 2 | F177: 2023-02-16
A178: 272 | B178: =IF(A178="","",IFERROR(VLOOKUP(A178,CADASTRO!C:D,2,FALSE),"Produto Não Cadastrado")) -> TRANÇA FOLHADA SALAME | C178: =IFERROR(VLOOKUP(A178,CADASTRO!C:F,3,0),"") -> 0 | D178: =VLOOKUP(A178,CADASTRO!C:F,4,0) -> FOLHATERIA | E178: 3 | F178: 2023-02-16
A179: 8 | B179: =IF(A179="","",IFERROR(VLOOKUP(A179,CADASTRO!C:D,2,FALSE),"Produto Não Cadastrado")) -> BAGUETE INTEGRAL (PCT C/ 45 UND = 3 KG) | C179: =IFERROR(VLOOKUP(A179,CADASTRO!C:F,3,0),"") -> 0 | D179: =VLOOKUP(A179,CADASTRO!C:F,4,0) -> PADARIA TRADICIONAL | E179: 1 | F179: 2023-02-18
A180: 11 | B180: =IF(A180="","",IFERROR(VLOOKUP(A180,CADASTRO!C:D,2,FALSE),"Produto Não Cadastrado")) -> BISCOITO ACEBOLADO | C180: =IFERROR(VLOOKUP(A180,CADASTRO!C:F,3,0),"") -> 0 | D180: =VLOOKUP(A180,CADASTRO!C:F,4,0) -> PADARIA TRADICIONAL | E180: 1 | F180: 2023-02-18
A181: 14 | B181: =IF(A181="","",IFERROR(VLOOKUP(A181,CADASTRO!C:D,2,FALSE),"Produto Não Cadastrado")) -> BISCOITO COCO | C181: =IFERROR(VLOOKUP(A181,CADASTRO!C:F,3,0),"") -> 0 | D181: =VLOOKUP(A181,CADASTRO!C:F,4,0) -> PADARIA TRADICIONAL | E181: 2 | F181: 2023-02-18
A182: 17 | B182: =IF(A182="","",IFERROR(VLOOKUP(A182,CADASTRO!C:D,2,FALSE),"Produto Não Cadastrado")) -> BISCOITO MONTEIRO LOPES | C182: =IFERROR(VLOOKUP(A182,CADASTRO!C:F,3,0),"") -> 0 | D182: =VLOOKUP(A182,CADASTRO!C:F,4,0) -> PADARIA TRADICIONAL | E182: 5 | F182: 2023-02-18
A183: 18 | B183: =IF(A183="","",IFERROR(VLOOKUP(A183,CADASTRO!C:D,2,FALSE),"Produto Não Cadastrado")) -> BISCOITO OLHO DE BOI | C183: =IFERROR(VLOOKUP(A183,CADASTRO!C:F,3,0),"") -> 0 | D183: =VLOOKUP(A183,CADASTRO!C:F,4,0) -> PADARIA TRADICIONAL | E183: 2 | F183: 2023-02-18
A184: 19 | B184: =IF(A184="","",IFERROR(VLOOKUP(A184,CADASTRO!C:D,2,FALSE),"Produto Não Cadastrado")) -> BISCOITO PAI D'ÉGUA | C184: =IFERROR(VLOOKUP(A184,CADASTRO!C:F,3,0),"") -> 0 | D184: =VLOOKUP(A184,CADASTRO!C:F,4,0) -> PADARIA TRADICIONAL | E184: 2 | F184: 2023-02-18
A185: 41 | B185: =IF(A185="","",IFERROR(VLOOKUP(A185,CADASTRO!C:D,2,FALSE),"Produto Não Cadastrado")) -> CROISSANT CONGELADO | C185: =IFERROR(VLOOKUP(A185,CADASTRO!C:F,3,0),"") -> 0 | D185: =VLOOKUP(A185,CADASTRO!C:F,4,0) -> PADARIA TRADICIONAL | E185: 500 | F185: 2023-02-18
A186: 49 | B186: =IF(A186="","",IFERROR(VLOOKUP(A186,CADASTRO!C:D,2,FALSE),"Produto Não Cadastrado")) -> DONNUTS | C186: =IFERROR(VLOOKUP(A186,CADASTRO!C:F,3,0),"") -> 0 | D186: =VLOOKUP(A186,CADASTRO!C:F,4,0) -> PADARIA TRADICIONAL | E186: 14 | F186: 2023-02-18
A187: 52 | B187: =IF(A187="","",IFERROR(VLOOKUP(A187,CADASTRO!C:D,2,FALSE),"Produto Não Cadastrado")) -> EMPADA FRANGO/PALMITO | C187: =IFERROR(VLOOKUP(A187,CADASTRO!C:F,3,0),"") -> 0 | D187: =VLOOKUP(A187,CADASTRO!C:F,4,0) -> PADARIA TRADICIONAL | E187: 6 | F187: 2023-02-18
A188: 71 | B188: =IF(A188="","",IFERROR(VLOOKUP(A188,CADASTRO!C:D,2,FALSE),"Produto Não Cadastrado")) -> MASSA MINI PIZZA | C188: =IFERROR(VLOOKUP(A188,CADASTRO!C:F,3,0),"") -> 0 | D188: =VLOOKUP(A188,CADASTRO!C:F,4,0) -> PADARIA TRADICIONAL | E188: 1 | F188: 2023-02-18
A189: 89 | B189: =IF(A189="","",IFERROR(VLOOKUP(A189,CADASTRO!C:D,2,FALSE),"Produto Não Cadastrado")) -> MINI PÃO BATATA HAMBÚRGUER | C189: =IFERROR(VLOOKUP(A189,CADASTRO!C:F,3,0),"") -> 0 | D189: =VLOOKUP(A189,CADASTRO!C:F,4,0) -> PADARIA TRADICIONAL | E189: 105 | F189: 2023-02-18
A190: 91 | B190: =IF(A190="","",IFERROR(VLOOKUP(A190,CADASTRO!C:D,2,FALSE),"Produto Não Cadastrado")) -> MINI PÃO BRIOCHE (PCT C/ 24UND) | C190: =IFERROR(VLOOKUP(A190,CADASTRO!C:F,3,0),"") -> 0 | D190: =VLOOKUP(A190,CADASTRO!C:F,4,0) -> PADARIA TRADICIONAL | E190: 1 | F190: 2023-02-18
A191: 92 | B191: =IF(A191="","",IFERROR(VLOOKUP(A191,CADASTRO!C:D,2,FALSE),"Produto Não Cadastrado")) -> MINI PÃO DELÍCIA (PCT C/ 24UND) | C191: =IFERROR(VLOOKUP(A191,CADASTRO!C:F,3,0),"") -> 0 | D191: =VLOOKUP(A191,CADASTRO!C:F,4,0) -> PADARIA TRADICIONAL | E191: 4 | F191: 2023-02-18
A192: 116 | B192: =IF(A192="","",IFERROR(VLOOKUP(A192,CADASTRO!C:D,2,FALSE),"Produto Não Cadastrado")) -> PÃO BAGUETE 10 HORAS | C192: =IFERROR(VLOOKUP(A192,CADASTRO!C:F,3,0),"") -> 0 | D192: =VLOOKUP(A192,CADASTRO!C:F,4,0) -> PADARIA TRADICIONAL | E192: 5 | F192: 2023-02-18
A193: 88 | B193: =IF(A193="","",IFERROR(VLOOKUP(A193,CADASTRO!C:D,2,FALSE),"Produto Não Cadastrado")) -> MINI PÃO BATATA (ERVAS,PARMESÃO) | C193: =IFERROR(VLOOKUP(A193,CADASTRO!C:F,3,0),"") -> 0 | D193: =VLOOKUP(A193,CADASTRO!C:F,4,0) -> PADARIA TRADICIONAL | E193: 288 | F193: 2023-02-18
A194: 121 | B194: =IF(A194="","",IFERROR(VLOOKUP(A194,CADASTRO!C:D,2,FALSE),"Produto Não Cadastrado")) -> PÃO BAIÃO | C194: =IFERROR(VLOOKUP(A194,CADASTRO!C:F,3,0),"") -> 0 | D194: =VLOOKUP(A194,CADASTRO!C:F,4,0) -> PADARIA TRADICIONAL | E194: 20 | F194: 2023-02-18
A195: 122 | B195: =IF(A195="","",IFERROR(VLOOKUP(A195,CADASTRO!C:D,2,FALSE),"Produto Não Cadastrado")) -> PÃO BENGALA 10 HORAS | C195: =IFERROR(VLOOKUP(A195,CADASTRO!C:F,3,0),"") -> 0 | D195: =VLOOKUP(A195,CADASTRO!C:F,4,0) -> PADARIA TRADICIONAL | E195: 5 | F195: 2023-02-18
A196: 135 | B196: =IF(A196="","",IFERROR(VLOOKUP(A196,CADASTRO!C:D,2,FALSE),"Produto Não Cadastrado")) -> PÃO DE BATATA FILÃO | C196: =IFERROR(VLOOKUP(A196,CADASTRO!C:F,3,0),"") -> 0 | D196: =VLOOKUP(A196,CADASTRO!C:F,4,0) -> PADARIA TRADICIONAL | E196: 48 | F196: 2023-02-18
A197: 159 | B197: =IF(A197="","",IFERROR(VLOOKUP(A197,CADASTRO!C:D,2,FALSE),"Produto Não Cadastrado")) -> PÃO FORMA TRADICIONAL 1000 | C197: =IFERROR(VLOOKUP(A197,CADASTRO!C:F,3,0),"") -> 0 | D197: =VLOOKUP(A197,CADASTRO!C:F,4,0) -> PADARIA TRADICIONAL | E197: 10 | F197: 2023-02-18
A198: 161 | B198: =IF(A198="","",IFERROR(VLOOKUP(A198,CADASTRO!C:D,2,FALSE),"Produto Não Cadastrado")) -> PÃO FRANCÊS 10H | C198: =IFERROR(VLOOKUP(A198,CADASTRO!C:F,3,0),"") -> 0 | D198: =VLOOKUP(A198,CADASTRO!C:F,4,0) -> PADARIA TRADICIONAL | E198: 35 | F198: 2023-02-18
A199: 163 | B199: =IF(A199="","",IFERROR(VLOOKUP(A199,CADASTRO!C:D,2,FALSE),"Produto Não Cadastrado")) -> PÃO FRANCÊS 5H | C199: =IFERROR(VLOOKUP(A199,CADASTRO!C:F,3,0),"") -> 0 | D199: =VLOOKUP(A199,CADASTRO!C:F,4,0) -> PADARIA TRADICIONAL | E199: 30 | F199: 2023-02-18
A200: 169 | B200: =IF(A200="","",IFERROR(VLOOKUP(A200,CADASTRO!C:D,2,FALSE),"Produto Não Cadastrado")) -> PÃO SEMI ITALIANO | C200: =IFERROR(VLOOKUP(A200,CADASTRO!C:F,3,0),"") -> 0 | D200: =VLOOKUP(A200,CADASTRO!C:F,4,0) -> PADARIA TRADICIONAL | E200: 15 | F200: 2023-02-18
... 19800 more rows

Sheet ORDEM DE PRODUÇÃO
A1: Estoque Atual | B1: Mensagem | C1: CÓD | D1: Descrição
B2: PRODUZIR!*
A3: Estoque Atual | B3: Mensagem | C3: CÓD | D3: Descrição
